Workbook

Sheet INGRESO DE DATOS
O2: 24 years | P2: FALSE
O3: Coaseguro (Panamá) | P3: FALSE
O11: Descuento 24 años (por edad) | S11: Type | T11: Nuevo Negocio | V11: Zonas | W11: Guayas/Santa Elena
O12: age | P12: Discount (%) | Q12: Parameter | T12: Pólizas 2020 | W12: El Resto de Ecuador
O13: 24 | P13: 35 | Q13: =1-P13/100 -> 0.65 | T13: Pólizas 2021
O14: 25 | P14: 30 | Q14: =1-P14/100 -> 0.7 | T14: Pólizas 2022
O15: 26 | P15: 25 | Q15: 0.75 | T15: Pólizas 2023
O16: 27 | P16: 20 | Q16: 0.8 | T16: Pólizas Mayo - Agosto 2023
O17: 28 | P17: 15 | Q17: 0.85 | T17: Pólizas Febrero - Abril 2024
O18: 29 | P18: 6 | Q18: 0.94 | T18: Renovaciones
O19: All ages | P19: 0 | Q19: 1 | T19: Renovación: Pólizas mayo - diciembre de 2024 | V19: Zona seleccionada | W19: 1
T20: Renovación: Pólizas enero - julio de 2025
S21: Type selected | T21: 8 | V21: Nombre de la Zona | W21: =IF(W19=1,"Guayas/Santa Elena","Resto de Ecuador") -> Guayas/Santa Elena
H22: FALSE
O23: 1. NEW BUSINESS DISCOUNT | U23: 2. PÓLIZAS 2020
O24: Ultimate | P24: Elite | Q24: Premier | R24: Select | U24: Ultimate | V24: Elite | W24: Premier | X24: Select
O25: 0 | P25: 15 | Q25: 15 | R25: 15 | U25: 0 | V25: 15 | W25: 15 | X25: 20
U27: 3. PÓLIZAS 2021
U28: Ultimate | V28: Elite | W28: Premier | X28: Select
U29: 0 | V29: 15 | W29: 15 | X29: 15
O31: Des 24 años: | P31: =IF(P2,IF(C44=O13,Q13,IF(C44=O14,Q14,IF(C44=O15,Q15,IF(C44=O16,Q16,IF(C44=O17,Q17,IF(C44=O18,Q18,Q19)))))),Q19) -> 1 | U31: 4. PÓLIZAS 2022
U32: Ultimate | V32: Elite | W32: Premier | X32: Select
O33: Des var coaseguro: | P33: =IF(P3=TRUE,0.25,1) -> 1 | U33: 0 | V33: 15 | W33: 15 | X33: 15
U35: 5. PÓLIZAS 2023
O36: Descuento si es nuevo negocio: | U36: Ultimate | V36: Elite | W36: Premier | X36: Select
U37: 0 | V37: 15 | W37: 15 | X37: 15
A38: Nombre del Asegurado Titular: | C38: John Doe | O38: NEW BUSINESS DISCOUNT (MULTIPLICATION FACTOR)
O39: Ultimate | P39: Elite | Q39: Premier | R39: Select | U39: 6. PÓLIZAS MAYO - AGOSTO 2023
A40: Número de adultos en la póliza: | C40: 2 | E40: Número de dependientes menores de 16 años (incluyendo los menores de 10 años): | H40: Número de dependientes menores de 10 años: | O40: =IF($T$21=1,(O25/100),IF($T$21=2,(U25/100),IF($T$21=3,(U29/100),IF($T$21=4,(U33/100),IF($T$21=5,(U37/100),IF($T$21=6,(U41/100),IF($T$21=8,(U45/100),0))))))) -> 0 | P40: =IF($T$21=1,(P25/100),IF($T$21=2,(V25/100),IF($T$21=3,(V29/100),IF($T$21=4,(V33/100),IF($T$21=5,(V37/100),IF($T$21=6,(V41/100),IF($T$21=8,(V45/100),0))))))) -> 0 | Q40: =IF($T$21=1,(Q25/100),IF($T$21=2,(W25/100),IF($T$21=3,(W29/100),IF($T$21=4,(W33/100),IF($T$21=5,(W37/100),IF($T$21=6,(W41/100),IF($T$21=8,(W45/100),0))))))) -> 0 | R40: =IF($T$21=1,(R25/100),IF($T$21=2,(X25/100),IF($T$21=3,(X29/100),IF($T$21=4,(X33/100),IF($T$21=5,(X37/100),IF($T$21=6,(X41/100),IF($T$21=8,(X45/100),0))))))) -> 0 | U40: Ultimate | V40: Elite | W40: Premier | X40: Select
U41: 0 | V41: 0 | W41: 40.5 | X41: 27.75
A42: Número total de dependientes: | C42: 4
E43: 1 | H43: 1 | O43: Descuento combinado 24 años y Nuevo Negocio | U43: 7. RENOVACIONES
A44: Edad del Asegurado Titular: | C44: 39 | U44: Ultimate | V44: Elite | W44: Premier | X44: Select
L45: =IF($T$21=1,"Para nuevos negocios emitidos a partir del 1 de enero de 2025",IF($T$21=2,"Para renovaciones de pólizas vendidas entre el 1ro de enero y el 31 de diciembre de 2020",IF($T$21=3,"Para renovaciones de pólizas vendidas entre el 1ro de enero y el 31 de diciembre de 2020",IF($T$21=4,"Para renovaciones de pólizas vendidas entre el 1ro de enero y el 31 de diciembre de 2021",IF($T$21=5,"Para renovaciones de pólizas vendidas entre el 1ro de enero y el 31 de diciembre de 2022",IF($T$21=6,"Para renovaciones de pólizas vendidas entre el 1ro de enero al 30 de abril y entre el 1ro de septiembre al 31 de diciembre, de 2023",IF($T$21=8,"Para renovaciones de pólizas vendidas entre el 1ro de mayo y el 31 de agosto de 2023",""))))))) -> Para renovaciones de pólizas vendidas entre el 1ro de mayo y el 31 de agosto de 2023 | U45: 0 | V45: 0 | W45: 0 | X45: 0
A46: Edad del/la cónyuge: | C46: 36 | O46: NEW BUSINESS DISCOUNT
O47: Ultimate | P47: Elite | Q47: Premier | R47: Select | U47: 8. RENOVACIONES MAYO - DICIEMBRE 2024 | Y47: PREMIER
O48: =(1-O40)*$P$31 -> 1 | P48: =(1-P40)*$P$31 -> 1 | Q48: =(1-Q40)*$P$31 -> 1 | R48: =(1-R40)*$P$31 -> 1 | U48: 250 | V48: 2000 | W48: 5000 | X48: 10000 | Y48: 20000
U49: =1-(0.85*0.85) -> 0.2775 | V49: =1-(0.85*0.85) -> 0.2775 | W49: =1-(0.85*0.94) -> 0.201 | X49: 0 | Y49: 0
A50: Tarifas en US$ | Validas: 1 de marzo de 2026
U51: 9. RENOVACIONES MAYO - DICIEMBRE 2024 | Y51: SELECT
U52: 250 | V52: 2000 | W52: 5000 | X52: 10000 | Y52: 20000
U53: =1-(0.93*0.85) -> 0.2095 | V53: =1-(0.93*0.85) -> 0.2095 | W53: =1-(0.93*0.85) -> 0.2095 | X53: 0 | Y53: 0
U55: 10. PÓLIZAS FEBRERO - ABRIL 2024 | Y55: PREMIER
U56: 250 | V56: 2000 | W56: 5000 | X56: 10000 | Y56: 20000
U57: =1-(0.85*0.7) -> 0.405 | V57: =1-(0.85*0.7) -> 0.405 | W57: 0.405 | X57: 0.405 | Y57: 0.405
U59: 11. PÓLIZAS FEBRERO - ABRIL 2024 | Y59: SELECT
U60: 250 | V60: 2000 | W60: 5000 | X60: 10000 | Y60: 20000
U61: =1-(0.85*0.85) -> 0.2775 | V61: =1-(0.85*0.85) -> 0.2775 | W61: 0.2775 | X61: 0.2775 | Y61: 0.2775
U63: 12. RENOVACIONES ENERO - JULIO 2025 | Y63: PREMIER
U64: 250 | V64: 2000 | W64: 5000 | X64: 10000 | Y64: 20000
U65: 0.15 | V65: 0.15 | W65: 0.06 | X65: 0 | Y65: 0
U67: 13. RENOVACIONES ENERO - JULIO 2025 | Y67: SELECT
U68: 250 | V68: 2000 | W68: 5000 | X68: 10000 | Y68: 20000
U69: 0.07 | V69: 0.07 | W69: 0.07 | X69: 0 | Y69: 0

Sheet Global Ultimate
C1: FALSE | H1: RESUMEN DE BENEFICIOS | W1: RESUMEN DE BENEFICIOS | AL1: RESUMEN DE BENEFICIOS
A5: Cotización de Seguro Médico Internacional Global Ultimate Health Plan Tarifas en US$ | Validas: 1 de marzo de 2026 | D5: REGIÓN
D7: ='INGRESO DE DATOS'!W21 -> Guayas/Santa Elena
A13: Nombre del Asegurado Titular | B13: =+'INGRESO DE DATOS'!$C$38 -> John Doe
A15: Número de adultos en la póliza | B15: =+'INGRESO DE DATOS'!$C$42 -> 4
A17: Número de Dependientes en la póliza | B17: =+'INGRESO DE DATOS'!$C$40 -> 2 | C17: =IF('INGRESO DE DATOS'!$P$2=TRUE, "Cotización para dependiente de 24 años","") -> 
A19: Número de Dependientes menores de 16 años | B19: =+'INGRESO DE DATOS'!$E$43 -> 1
A21: Edad del Asegurado Titular | B21: =+'INGRESO DE DATOS'!$C$44 -> 39 | C21: Edad del/la conyuge | D21: =+'INGRESO DE DATOS'!$C$46 -> 36 | I21: FALSE
A23: Fecha de la cotización | B23: =NOW() -> 2026-03-13T12:16:11.470
A26: DEDUCIBLES | C26: PLAN 1 | D26: PLAN 2 | E26: PLAN 3
A27: En el país de residencia | C27: $0 | D27: 1000 | E27: 2000
A28: Fuera del país de residencia | C28: $0 | D28: 1000 | E28: 2000
A30: TARIFAS ANUALES
A31: Prima para Asegurado Titular | C31: =VLOOKUP($B$21,Tablas!$A$231:$G$297,3,TRUE)+75 -> 46539 | D31: =VLOOKUP($B$21,Tablas!$A$231:$G$297,4,TRUE)+75 -> 33609 | E31: =VLOOKUP($B$21,Tablas!$A$231:$G$297,3,TRUE)+75 -> 46539
A32: Prima para conyuge | C32: =IF($B$17=1,0,(VLOOKUP($D$21,Tablas!$A$231:$G$297,3,TRUE))) -> 46464 | D32: =IF($B$17=1,0,(VLOOKUP($D$21,Tablas!$A$231:$G$297,4,TRUE))) -> 33534 | E32: =IF($B$17=1,0,(VLOOKUP($D$21,Tablas!$A$231:$G$297,5,TRUE))) -> 0
A33: Prima para hijo (s) | C33: =IF($B$17=1, (IF($B$15=0, 0, (IF($B$19>$B$15, (VLOOKUP($B$15,Tablas!$A$298:$G$300,3,TRUE)), (IF($B$15>4,(IF($B$19=0, (VLOOKUP(3,Tablas!$A$298:$G$300,3,TRUE)), (IF($B$19=1, (VLOOKUP(3,Tablas!$A$298:$G$300,3,TRUE)), (IF($B$19=2, (VLOOKUP(3,Tablas!$A$298:$G$300,3,TRUE)), (VLOOKUP(3,Tablas!$A$298:$G$300,3,TRUE)))))))), (IF($B$15=4,(IF(4-$B$19=0,(VLOOKUP(2,Tablas!$A$298:$G$300,3,TRUE)), (IF(4-$B$19=1,(VLOOKUP(2,Tablas!$A$298:$G$300,3,TRUE)), (IF(4-$B$19=2, (VLOOKUP(2,Tablas!$A$298:$G$300,3,TRUE)), (VLOOKUP(3,Tablas!$A$298:$G$300,3,TRUE)))))))), (IF($B$15=3,(IF(3-$B$19=0,(VLOOKUP(1,Tablas!$A$298:$G$300,3,TRUE)), (IF(3-$B$19=1,(VLOOKUP(1,Tablas!$A$298:$G$300,3,TRUE)), (IF(3-$B$19=2, (VLOOKUP(2,Tablas!$A$298:$G$300,3,TRUE)), (VLOOKUP(3,Tablas!$A$298:$G$300,3,TRUE)))))))), (IF($B$15=2,(IF(2-$B$19=0, 0, (IF(2-$B$19=1,(VLOOKUP(1,Tablas!$A$298:$G$300,3,TRUE)), (IF(2-$B$19=2, (VLOOKUP(2,Tablas!$A$298:$G$300,3,TRUE)), 0)))))), (IF($B$15=1,(IF(1-$B$19=0, 0, (IF(1-$B$19=1,(VLOOKUP(1,Tablas!$A$298:$G$300,3,TRUE)),0)))),0)))))))))))))), (IF($B$15=0, 0, (IF($B$19>$B$15, (VLOOKUP($B$15,Tablas!$A$298:$G$300,3,TRUE)), (IF($B$15=4,(IF(4-$B$19=0, 0, (IF(4-$B$19=1, (VLOOKUP(1,Tablas!$A$298:$G$300,3,TRUE)), (IF(4-$B$19=2, (VLOOKUP(2,Tablas!$A$298:$G$300,3,TRUE)), (IF(4-$B$19=3, (VLOOKUP(3,Tablas!$A$298:$G$300,3,TRUE)), (IF(4-$B$19=4, (VLOOKUP(3,Tablas!$A$298:$G$300,3,TRUE)), 0)))))))))), (IF($B$15=5,(IF(5-$B$19=0, (VLOOKUP(1,Tablas!$A$298:$G$300,3,TRUE)), (IF(5-$B$19=1, (VLOOKUP(1,Tablas!$A$298:$G$300,3,TRUE)), (IF(5-$B$19=2, (VLOOKUP(2,Tablas!$A$298:$G$300,3,TRUE)), (IF(5-$B$19=3, (VLOOKUP(3,Tablas!$A$298:$G$300,3,TRUE)), (IF(5-$B$19=4, (VLOOKUP(3,Tablas!$A$298:$G$300,3,TRUE)), (VLOOKUP(3,Tablas!$A$298:$G$300,3,TRUE)))))))))))), (IF($B$15=6,(IF(6-$B$19=0, (VLOOKUP(2,Tablas!$A$298:$G$300,3,TRUE)), (IF(6-$B$19=1, (VLOOKUP(2,Tablas!$A$298:$G$300,3,TRUE)), (IF(6-$B$19=2, (VLOOKUP(2,Tablas!$A$298:$G$300,3,TRUE)), (IF(6-$B$19=3, (VLOOKUP(3,Tablas!$A$298:$G$300,3,TRUE)), (IF(6-$B$19=4, (VLOOKUP(3,Tablas!$A$298:$G$300,3,TRUE)), (VLOOKUP(3,Tablas!$A$298:$G$300,3,TRUE)))))))))))), (IF($B$15>6,(IF(7-$B$19=0, (VLOOKUP(3,Tablas!$A$298:$G$300,3,TRUE)), (IF(7-$B$19=1, (VLOOKUP(3,Tablas!$A$298:$G$300,3,TRUE)), (IF(7-$B$19=2, (VLOOKUP(3,Tablas!$A$298:$G$300,3,TRUE)), (IF(7-$B$19=3, (VLOOKUP(3,Tablas!$A$298:$G$300,3,TRUE)), (IF(7-$B$19=4, (VLOOKUP(3,Tablas!$A$298:$G$300,3,TRUE)), (VLOOKUP(3,Tablas!$A$298:$G$300,3,TRUE)))))))))))), (IF($B$15=3,(IF(3-$B$19=0,0, (IF(3-$B$19=1,(VLOOKUP(1,Tablas!$A$298:$G$300,3,TRUE)), (IF(3-$B$19=2, (VLOOKUP(2,Tablas!$A$298:$G$300,3,TRUE)), (VLOOKUP(3,Tablas!$A$298:$G$300,3,TRUE)))))))), (IF($B$15=2,(IF(2-$B$19=0, 0, (IF(2-$B$19=1,(VLOOKUP(1,Tablas!$A$298:$G$300,3,TRUE)), (IF(2-$B$19=2, (VLOOKUP(2,Tablas!$A$298:$G$300,3,TRUE)), 0)))))), (IF($B$15=1,(IF(1-$B$19=0, 0, (IF(1-$B$19=1,(VLOOKUP(1,Tablas!$A$298:$G$300,3,TRUE)),0)))),0))))))))))))))))))) -> 33530 | D33: =IF($B$17=1, (IF($B$15=0, 0, (IF($B$19>$B$15, (VLOOKUP($B$15,Tablas!$A$298:$G$300,4,TRUE)), (IF($B$15>4,(IF($B$19=0, (VLOOKUP(3,Tablas!$A$298:$G$300,4,TRUE)), (IF($B$19=1, (VLOOKUP(3,Tablas!$A$298:$G$300,4,TRUE)), (IF($B$19=2, (VLOOKUP(3,Tablas!$A$298:$G$300,4,TRUE)), (VLOOKUP(3,Tablas!$A$298:$G$300,4,TRUE)))))))), (IF($B$15=4,(IF(4-$B$19=0,(VLOOKUP(2,Tablas!$A$298:$G$300,4,TRUE)), (IF(4-$B$19=1,(VLOOKUP(2,Tablas!$A$298:$G$300,4,TRUE)), (IF(4-$B$19=2, (VLOOKUP(2,Tablas!$A$298:$G$300,4,TRUE)), (VLOOKUP(3,Tablas!$A$298:$G$300,4,TRUE)))))))), (IF($B$15=3,(IF(3-$B$19=0,(VLOOKUP(1,Tablas!$A$298:$G$300,4,TRUE)), (IF(3-$B$19=1,(VLOOKUP(1,Tablas!$A$298:$G$300,4,TRUE)), (IF(3-$B$19=2, (VLOOKUP(2,Tablas!$A$298:$G$300,4,TRUE)), (VLOOKUP(3,Tablas!$A$298:$G$300,4,TRUE)))))))), (IF($B$15=2,(IF(2-$B$19=0, 0, (IF(2-$B$19=1,(VLOOKUP(1,Tablas!$A$298:$G$300,4,TRUE)), (IF(2-$B$19=2, (VLOOKUP(2,Tablas!$A$298:$G$300,4,TRUE)), 0)))))), (IF($B$15=1,(IF(1-$B$19=0, 0, (IF(1-$B$19=1,(VLOOKUP(1,Tablas!$A$298:$G$300,4,TRUE)),0)))),0)))))))))))))), (IF($B$15=0, 0, (IF($B$19>$B$15, (VLOOKUP($B$15,Tablas!$A$298:$G$300,4,TRUE)), (IF($B$15=4,(IF(4-$B$19=0, 0, (IF(4-$B$19=1, (VLOOKUP(1,Tablas!$A$298:$G$300,4,TRUE)), (IF(4-$B$19=2, (VLOOKUP(2,Tablas!$A$298:$G$300,4,TRUE)), (IF(4-$B$19=3, (VLOOKUP(3,Tablas!$A$298:$G$300,4,TRUE)), (IF(4-$B$19=4, (VLOOKUP(3,Tablas!$A$298:$G$300,4,TRUE)), 0)))))))))), (IF($B$15=5,(IF(5-$B$19=0, (VLOOKUP(1,Tablas!$A$298:$G$300,4,TRUE)), (IF(5-$B$19=1, (VLOOKUP(1,Tablas!$A$298:$G$300,4,TRUE)), (IF(5-$B$19=2, (VLOOKUP(2,Tablas!$A$298:$G$300,4,TRUE)), (IF(5-$B$19=3, (VLOOKUP(3,Tablas!$A$298:$G$300,4,TRUE)), (IF(5-$B$19=4, (VLOOKUP(3,Tablas!$A$298:$G$300,4,TRUE)), (VLOOKUP(3,Tablas!$A$298:$G$300,4,TRUE)))))))))))), (IF($B$15=6,(IF(6-$B$19=0, (VLOOKUP(2,Tablas!$A$298:$G$300,4,TRUE)), (IF(6-$B$19=1, (VLOOKUP(2,Tablas!$A$298:$G$300,4,TRUE)), (IF(6-$B$19=2, (VLOOKUP(2,Tablas!$A$298:$G$300,4,TRUE)), (IF(6-$B$19=3, (VLOOKUP(3,Tablas!$A$298:$G$300,4,TRUE)), (IF(6-$B$19=4, (VLOOKUP(3,Tablas!$A$298:$G$300,4,TRUE)), (VLOOKUP(3,Tablas!$A$298:$G$300,4,TRUE)))))))))))), (IF($B$15>6,(IF(7-$B$19=0, (VLOOKUP(3,Tablas!$A$298:$G$300,4,TRUE)), (IF(7-$B$19=1, (VLOOKUP(3,Tablas!$A$298:$G$300,4,TRUE)), (IF(7-$B$19=2, (VLOOKUP(3,Tablas!$A$298:$G$300,4,TRUE)), (IF(7-$B$19=3, (VLOOKUP(3,Tablas!$A$298:$G$300,4,TRUE)), (IF(7-$B$19=4, (VLOOKUP(3,Tablas!$A$298:$G$300,4,TRUE)), (VLOOKUP(3,Tablas!$A$298:$G$300,4,TRUE)))))))))))), (IF($B$15=3,(IF(3-$B$19=0,0, (IF(3-$B$19=1,(VLOOKUP(1,Tablas!$A$298:$G$300,4,TRUE)), (IF(3-$B$19=2, (VLOOKUP(2,Tablas!$A$298:$G$300,4,TRUE)), (VLOOKUP(3,Tablas!$A$298:$G$300,4,TRUE)))))))), (IF($B$15=2,(IF(2-$B$19=0, 0, (IF(2-$B$19=1,(VLOOKUP(1,Tablas!$A$298:$G$300,4,TRUE)), (IF(2-$B$19=2, (VLOOKUP(2,Tablas!$A$298:$G$300,4,TRUE)), 0)))))), (IF($B$15=1,(IF(1-$B$19=0, 0, (IF(1-$B$19=1,(VLOOKUP(1,Tablas!$A$298:$G$300,4,TRUE)),0)))),0))))))))))))))))))) -> 24028 | E33: =IF($B$17=1, (IF($B$15=0, 0, (IF($B$19>$B$15, (VLOOKUP($B$15,Tablas!$A$298:$G$300,5,TRUE)), (IF($B$15>4,(IF($B$19=0, (VLOOKUP(3,Tablas!$A$298:$G$300,5,TRUE)), (IF($B$19=1, (VLOOKUP(3,Tablas!$A$298:$G$300,5,TRUE)), (IF($B$19=2, (VLOOKUP(3,Tablas!$A$298:$G$300,5,TRUE)), (VLOOKUP(3,Tablas!$A$298:$G$300,5,TRUE)))))))), (IF($B$15=4,(IF(4-$B$19=0,(VLOOKUP(2,Tablas!$A$298:$G$300,5,TRUE)), (IF(4-$B$19=1,(VLOOKUP(2,Tablas!$A$298:$G$300,5,TRUE)), (IF(4-$B$19=2, (VLOOKUP(2,Tablas!$A$298:$G$300,5,TRUE)), (VLOOKUP(3,Tablas!$A$298:$G$300,5,TRUE)))))))), (IF($B$15=3,(IF(3-$B$19=0,(VLOOKUP(1,Tablas!$A$298:$G$300,5,TRUE)), (IF(3-$B$19=1,(VLOOKUP(1,Tablas!$A$298:$G$300,5,TRUE)), (IF(3-$B$19=2, (VLOOKUP(2,Tablas!$A$298:$G$300,5,TRUE)), (VLOOKUP(3,Tablas!$A$298:$G$300,5,TRUE)))))))), (IF($B$15=2,(IF(2-$B$19=0, 0, (IF(2-$B$19=1,(VLOOKUP(1,Tablas!$A$298:$G$300,5,TRUE)), (IF(2-$B$19=2, (VLOOKUP(2,Tablas!$A$298:$G$300,5,TRUE)), 0)))))), (IF($B$15=1,(IF(1-$B$19=0, 0, (IF(1-$B$19=1,(VLOOKUP(1,Tablas!$A$298:$G$300,5,TRUE)),0)))),0)))))))))))))), (IF($B$15=0, 0, (IF($B$19>$B$15, (VLOOKUP($B$15,Tablas!$A$298:$G$300,5,TRUE)), (IF($B$15=4,(IF(4-$B$19=0, 0, (IF(4-$B$19=1, (VLOOKUP(1,Tablas!$A$298:$G$300,5,TRUE)), (IF(4-$B$19=2, (VLOOKUP(2,Tablas!$A$298:$G$300,5,TRUE)), (IF(4-$B$19=3, (VLOOKUP(3,Tablas!$A$298:$G$300,5,TRUE)), (IF(4-$B$19=4, (VLOOKUP(3,Tablas!$A$298:$G$300,5,TRUE)), 0)))))))))), (IF($B$15=5,(IF(5-$B$19=0, (VLOOKUP(1,Tablas!$A$298:$G$300,5,TRUE)), (IF(5-$B$19=1, (VLOOKUP(1,Tablas!$A$298:$G$300,5,TRUE)), (IF(5-$B$19=2, (VLOOKUP(2,Tablas!$A$298:$G$300,5,TRUE)), (IF(5-$B$19=3, (VLOOKUP(3,Tablas!$A$298:$G$300,5,TRUE)), (IF(5-$B$19=4, (VLOOKUP(3,Tablas!$A$298:$G$300,5,TRUE)), (VLOOKUP(3,Tablas!$A$298:$G$300,5,TRUE)))))))))))), (IF($B$15=6,(IF(6-$B$19=0, (VLOOKUP(2,Tablas!$A$298:$G$300,5,TRUE)), (IF(6-$B$19=1, (VLOOKUP(2,Tablas!$A$298:$G$300,5,TRUE)), (IF(6-$B$19=2, (VLOOKUP(2,Tablas!$A$298:$G$300,5,TRUE)), (IF(6-$B$19=3, (VLOOKUP(3,Tablas!$A$298:$G$300,5,TRUE)), (IF(6-$B$19=4, (VLOOKUP(3,Tablas!$A$298:$G$300,5,TRUE)), (VLOOKUP(3,Tablas!$A$298:$G$300,5,TRUE)))))))))))), (IF($B$15>6,(IF(7-$B$19=0, (VLOOKUP(3,Tablas!$A$298:$G$300,5,TRUE)), (IF(7-$B$19=1, (VLOOKUP(3,Tablas!$A$298:$G$300,5,TRUE)), (IF(7-$B$19=2, (VLOOKUP(3,Tablas!$A$298:$G$300,5,TRUE)), (IF(7-$B$19=3, (VLOOKUP(3,Tablas!$A$298:$G$300,5,TRUE)), (IF(7-$B$19=4, (VLOOKUP(3,Tablas!$A$298:$G$300,5,TRUE)), (VLOOKUP(3,Tablas!$A$298:$G$300,5,TRUE)))))))))))), (IF($B$15=3,(IF(3-$B$19=0,0, (IF(3-$B$19=1,(VLOOKUP(1,Tablas!$A$298:$G$300,5,TRUE)), (IF(3-$B$19=2, (VLOOKUP(2,Tablas!$A$298:$G$300,5,TRUE)), (VLOOKUP(3,Tablas!$A$298:$G$300,5,TRUE)))))))), (IF($B$15=2,(IF(2-$B$19=0, 0, (IF(2-$B$19=1,(VLOOKUP(1,Tablas!$A$298:$G$300,5,TRUE)), (IF(2-$B$19=2, (VLOOKUP(2,Tablas!$A$298:$G$300,5,TRUE)), 0)))))), (IF($B$15=1,(IF(1-$B$19=0, 0, (IF(1-$B$19=1,(VLOOKUP(1,Tablas!$A$298:$G$300,5,TRUE)),0)))),0))))))))))))))))))) -> 0
A34: Total de Prima neta | C34: =SUM(C31:C33) -> 126533 | D34: =SUM(D31:D33) -> 91171 | E34: =SUM(E31:E33) -> 46539
A35: Contribución 3.5% Superintendencia de Bancos Contribución 0.5% Seguro Social Campesino | C35: =C34*Tablas!$X$3 -> 5061.32 | D35: =D34*Tablas!$X$3 -> 3646.84 | E35: =75*Tablas!$X$2 -> 75
A36: VAT (5%)
A37: ITBMS (7%)
A38: TOTAL ANUAL | C38: =C34+C35 -> 131594.32 | D38: =D34+D35 -> 94817.84 | E38: =SUM(E34:E37) -> 46614
A39: Ahorros en tarifas de prima para Dependientes | C39: =IF($B$17=1,IF($B$15=0,0,IF($B$19=0,0,IF($B$19=1,(VLOOKUP(1,Tablas!$A$298:$G$300,3,TRUE)),(VLOOKUP(2,Tablas!$A$298:$G$300,3,TRUE))))), IF($B$15=0,0,IF($B$19=0,0,IF($B$19=1,(VLOOKUP(1,Tablas!$A$298:$G$300,3,TRUE)),IF($B$19=2,(VLOOKUP(2,Tablas!$A$298:$G$300,3,TRUE)), (VLOOKUP(3,Tablas!$A$298:$G$300,3,TRUE))))))) -> 11805 | D39: =IF($B$17=1,IF($B$15=0,0,IF($B$19=0,0,IF($B$19=1,(VLOOKUP(1,Tablas!$A$298:$G$300,4,TRUE)),(VLOOKUP(2,Tablas!$A$298:$G$300,4,TRUE))))), IF($B$15=0,0,IF($B$19=0,0,IF($B$19=1,(VLOOKUP(1,Tablas!$A$298:$G$300,4,TRUE)),IF($B$19=2,(VLOOKUP(2,Tablas!$A$298:$G$300,4,TRUE)), (VLOOKUP(3,Tablas!$A$298:$G$300,4,TRUE))))))) -> 8747 | E39: =IF($B$17=1,IF($B$15=0,0,IF($B$19=0,0,IF($B$19=1,(VLOOKUP(1,Tablas!$A$298:$G$300,5,TRUE)),(VLOOKUP(2,Tablas!$A$298:$G$300,5,TRUE))))), IF($B$15=0,0,IF($B$19=0,0,IF($B$19=1,(VLOOKUP(1,Tablas!$A$298:$G$300,5,TRUE)),IF($B$19=2,(VLOOKUP(2,Tablas!$A$298:$G$300,5,TRUE)), (VLOOKUP(3,Tablas!$A$298:$G$300,5,TRUE))))))) -> 0
A41: TARIFAS SEMIANUALES
A42: Prima para Asegurado Titular | C42: =(C31-75)*Tablas!$K$4+75 -> 24700.92 | D42: =(D31-75)*Tablas!$K$4+75 -> 17848.02 | E42: =VLOOKUP($B$21,Tablas!#REF!,5,TRUE) -> 
A43: Prima para conyuge | C43: =C32*Tablas!$K$4 -> 24625.92 | D43: =D32*Tablas!$K$4 -> 17773.02 | E43: =IF($B$17=1,0,(VLOOKUP($D$21,Tablas!#REF!,5,TRUE))) -> 
A44: Prima para hijo (s) | C44: =C33*Tablas!$K$4 -> 17770.9 | D44: =D33*Tablas!$K$4 -> 12734.84 | E44: =IF($B$17=1, (IF($B$15=0, 0, (IF($B$19>$B$15, (VLOOKUP($B$15,Tablas!#REF!,5,TRUE)), (IF($B$15>4,(IF($B$19=0, (VLOOKUP(3,Tablas!#REF!,5,TRUE)), (IF($B$19=1, (VLOOKUP(3,Tablas!#REF!,5,TRUE)), (IF($B$19=2, (VLOOKUP(3,Tablas!#REF!,5,TRUE)), (VLOOKUP(3,Tablas!#REF!,5,TRUE)))))))), (IF($B$15=4,(IF(4-$B$19=0,(VLOOKUP(2,Tablas!#REF!,5,TRUE)), (IF(4-$B$19=1,(VLOOKUP(2,Tablas!#REF!,5,TRUE)), (IF(4-$B$19=2, (VLOOKUP(2,Tablas!#REF!,5,TRUE)), (VLOOKUP(3,Tablas!#REF!,5,TRUE)))))))), (IF($B$15=3,(IF(3-$B$19=0,(VLOOKUP(1,Tablas!#REF!,5,TRUE)), (IF(3-$B$19=1,(VLOOKUP(1,Tablas!#REF!,5,TRUE)), (IF(3-$B$19=2, (VLOOKUP(2,Tablas!#REF!,5,TRUE)), (VLOOKUP(3,Tablas!#REF!,5,TRUE)))))))), (IF($B$15=2,(IF(2-$B$19=0, 0, (IF(2-$B$19=1,(VLOOKUP(1,Tablas!#REF!,5,TRUE)), (IF(2-$B$19=2, (VLOOKUP(2,Tablas!#REF!,5,TRUE)), 0)))))), (IF($B$15=1,(IF(1-$B$19=0, 0, (IF(1-$B$19=1,(VLOOKUP(1,Tablas!#REF!,5,TRUE)),0)))),0)))))))))))))), (IF($B$15=0, 0, (IF($B$19>$B$15, (VLOOKUP($B$15,Tablas!#REF!,5,TRUE)), (IF($B$15=4,(IF(4-$B$19=0, 0, (IF(4-$B$19=1, (VLOOKUP(1,Tablas!#REF!,5,TRUE)), (IF(4-$B$19=2, (VLOOKUP(2,Tablas!#REF!,5,TRUE)), (IF(4-$B$19=3, (VLOOKUP(3,Tablas!#REF!,5,TRUE)), (IF(4-$B$19=4, (VLOOKUP(3,Tablas!#REF!,5,TRUE)), 0)))))))))), (IF($B$15=5,(IF(5-$B$19=0, (VLOOKUP(1,Tablas!#REF!,5,TRUE)), (IF(5-$B$19=1, (VLOOKUP(1,Tablas!#REF!,5,TRUE)), (IF(5-$B$19=2, (VLOOKUP(2,Tablas!#REF!,5,TRUE)), (IF(5-$B$19=3, (VLOOKUP(3,Tablas!#REF!,5,TRUE)), (IF(5-$B$19=4, (VLOOKUP(3,Tablas!#REF!,5,TRUE)), (VLOOKUP(3,Tablas!#REF!,5,TRUE)))))))))))), (IF($B$15=6,(IF(6-$B$19=0, (VLOOKUP(2,Tablas!#REF!,5,TRUE)), (IF(6-$B$19=1, (VLOOKUP(2,Tablas!#REF!,5,TRUE)), (IF(6-$B$19=2, (VLOOKUP(2,Tablas!#REF!,5,TRUE)), (IF(6-$B$19=3, (VLOOKUP(3,Tablas!#REF!,5,TRUE)), (IF(6-$B$19=4, (VLOOKUP(3,Tablas!#REF!,5,TRUE)), (VLOOKUP(3,Tablas!#REF!,5,TRUE)))))))))))), (IF($B$15>6,(IF(7-$B$19=0, (VLOOKUP(3,Tablas!#REF!,5,TRUE)), (IF(7-$B$19=1, (VLOOKUP(3,Tablas!#REF!,5,TRUE)), (IF(7-$B$19=2, (VLOOKUP(3,Tablas!#REF!,5,TRUE)), (IF(7-$B$19=3, (VLOOKUP(3,Tablas!#REF!,5,TRUE)), (IF(7-$B$19=4, (VLOOKUP(3,Tablas!#REF!,5,TRUE)), (VLOOKUP(3,Tablas!#REF!,5,TRUE)))))))))))), (IF($B$15=3,(IF(3-$B$19=0,0, (IF(3-$B$19=1,(VLOOKUP(1,Tablas!#REF!,5,TRUE)), (IF(3-$B$19=2, (VLOOKUP(2,Tablas!#REF!,5,TRUE)), (VLOOKUP(3,Tablas!#REF!,5,TRUE)))))))), (IF($B$15=2,(IF(2-$B$19=0, 0, (IF(2-$B$19=1,(VLOOKUP(1,Tablas!#REF!,5,TRUE)), (IF(2-$B$19=2, (VLOOKUP(2,Tablas!#REF!,5,TRUE)), 0)))))), (IF($B$15=1,(IF(1-$B$19=0, 0, (IF(1-$B$19=1,(VLOOKUP(1,Tablas!#REF!,5,TRUE)),0)))),0))))))))))))))))))) -> 
A45: Total de Prima neta | C45: =SUM(C42:C44) -> 67097.74 | D45: =SUM(D42:D44) -> 48355.88 | E45: =SUM(E42:E44) -> 
A46: =A35 -> Contribución 3.5% Superintendencia de Bancos Contribución 0.5% Seguro Social Campesino | C46: =C45*Tablas!$X$3 -> 2683.9096 | D46: =D45*Tablas!$X$3 -> 1934.2352 | E46: =75*Tablas!$X$2 -> 75
A47: VAT (5%)
A48: ITBMS (7%)
A49: TOTAL de primera cuota | C49: =SUM(C45:C48) -> 69781.6496 | D49: =SUM(D45:D48) -> 50290.1152 | E49: =SUM(E45:E48) -> 
A50: Costo de segunda cuota | C50: =C45+C46-78 -> 69703.6496 | D50: =D45+D46-78 -> 50212.1152 | E50: =(E45 + E47)+((E31+E32+E33)*0.06*0.07)/2 -> 
A51: TOTAL ANUAL | C51: =C49+C50 -> 139485.2992 | D51: =D49+D50 -> 100502.2304 | E51: =E49+E50 -> 
A52: Ahorros en tarifas de prima para Dependientes | C52: =C39*Tablas!$K$4 -> 6256.65 | D52: =D39*Tablas!$K$4 -> 4635.91 | E52: =IF($B$17=1,IF($B$15=0,0,IF($B$19=0,0,IF($B$19=1,(VLOOKUP(1,Tablas!#REF!,5,TRUE)),(VLOOKUP(2,Tablas!#REF!,5,TRUE))))), IF($B$15=0,0,IF($B$19=0,0,IF($B$19=1,(VLOOKUP(1,Tablas!#REF!,5,TRUE)),IF($B$19=2,(VLOOKUP(2,Tablas!#REF!,5,TRUE)), (VLOOKUP(3,Tablas!#REF!,5,TRUE))))))) -> 
A54: TARIFAS TRIMESTRALES
A55: Prima para Asegurado Titular | C55: =(C31-75)*Tablas!K3+75 -> 12852.6 | D55: =(D31-75)*Tablas!K3+75 -> 9296.85 | E55: =VLOOKUP($B$21,Tablas!#REF!,5,TRUE) -> 
A56: Prima para conyuge | C56: =C32*Tablas!K3 -> 12777.6 | D56: =D32*Tablas!K3 -> 9221.85 | E56: =IF($B$17=1,0,(VLOOKUP($D$21,Tablas!#REF!,5,TRUE))) -> 
A57: Prima para hijo (s) | C57: =C33*Tablas!K3 -> 9220.75 | D57: =D33*Tablas!K3 -> 6607.7 | E57: =IF($B$17=1, (IF($B$15=0, 0, (IF($B$19>$B$15, (VLOOKUP($B$15,Tablas!#REF!,5,TRUE)), (IF($B$15>4,(IF($B$19=0, (VLOOKUP(3,Tablas!#REF!,5,TRUE)), (IF($B$19=1, (VLOOKUP(3,Tablas!#REF!,5,TRUE)), (IF($B$19=2, (VLOOKUP(3,Tablas!#REF!,5,TRUE)), (VLOOKUP(3,Tablas!#REF!,5,TRUE)))))))), (IF($B$15=4,(IF(4-$B$19=0,(VLOOKUP(2,Tablas!#REF!,5,TRUE)), (IF(4-$B$19=1,(VLOOKUP(2,Tablas!#REF!,5,TRUE)), (IF(4-$B$19=2, (VLOOKUP(2,Tablas!#REF!,5,TRUE)), (VLOOKUP(3,Tablas!#REF!,5,TRUE)))))))), (IF($B$15=3,(IF(3-$B$19=0,(VLOOKUP(1,Tablas!#REF!,5,TRUE)), (IF(3-$B$19=1,(VLOOKUP(1,Tablas!#REF!,5,TRUE)), (IF(3-$B$19=2, (VLOOKUP(2,Tablas!#REF!,5,TRUE)), (VLOOKUP(3,Tablas!#REF!,5,TRUE)))))))), (IF($B$15=2,(IF(2-$B$19=0, 0, (IF(2-$B$19=1,(VLOOKUP(1,Tablas!#REF!,5,TRUE)), (IF(2-$B$19=2, (VLOOKUP(2,Tablas!#REF!,5,TRUE)), 0)))))), (IF($B$15=1,(IF(1-$B$19=0, 0, (IF(1-$B$19=1,(VLOOKUP(1,Tablas!#REF!,5,TRUE)),0)))),0)))))))))))))), (IF($B$15=0, 0, (IF($B$19>$B$15, (VLOOKUP($B$15,Tablas!#REF!,5,TRUE)), (IF($B$15=4,(IF(4-$B$19=0, 0, (IF(4-$B$19=1, (VLOOKUP(1,Tablas!#REF!,5,TRUE)), (IF(4-$B$19=2, (VLOOKUP(2,Tablas!#REF!,5,TRUE)), (IF(4-$B$19=3, (VLOOKUP(3,Tablas!#REF!,5,TRUE)), (IF(4-$B$19=4, (VLOOKUP(3,Tablas!#REF!,5,TRUE)), 0)))))))))), (IF($B$15=5,(IF(5-$B$19=0, (VLOOKUP(1,Tablas!#REF!,5,TRUE)), (IF(5-$B$19=1, (VLOOKUP(1,Tablas!#REF!,5,TRUE)), (IF(5-$B$19=2, (VLOOKUP(2,Tablas!#REF!,5,TRUE)), (IF(5-$B$19=3, (VLOOKUP(3,Tablas!#REF!,5,TRUE)), (IF(5-$B$19=4, (VLOOKUP(3,Tablas!#REF!,5,TRUE)), (VLOOKUP(3,Tablas!#REF!,5,TRUE)))))))))))), (IF($B$15=6,(IF(6-$B$19=0, (VLOOKUP(2,Tablas!#REF!,5,TRUE)), (IF(6-$B$19=1, (VLOOKUP(2,Tablas!#REF!,5,TRUE)), (IF(6-$B$19=2, (VLOOKUP(2,Tablas!#REF!,5,TRUE)), (IF(6-$B$19=3, (VLOOKUP(3,Tablas!#REF!,5,TRUE)), (IF(6-$B$19=4, (VLOOKUP(3,Tablas!#REF!,5,TRUE)), (VLOOKUP(3,Tablas!#REF!,5,TRUE)))))))))))), (IF($B$15>6,(IF(7-$B$19=0, (VLOOKUP(3,Tablas!#REF!,5,TRUE)), (IF(7-$B$19=1, (VLOOKUP(3,Tablas!#REF!,5,TRUE)), (IF(7-$B$19=2, (VLOOKUP(3,Tablas!#REF!,5,TRUE)), (IF(7-$B$19=3, (VLOOKUP(3,Tablas!#REF!,5,TRUE)), (IF(7-$B$19=4, (VLOOKUP(3,Tablas!#REF!,5,TRUE)), (VLOOKUP(3,Tablas!#REF!,5,TRUE)))))))))))), (IF($B$15=3,(IF(3-$B$19=0,0, (IF(3-$B$19=1,(VLOOKUP(1,Tablas!#REF!,5,TRUE)), (IF(3-$B$19=2, (VLOOKUP(2,Tablas!#REF!,5,TRUE)), (VLOOKUP(3,Tablas!#REF!,5,TRUE)))))))), (IF($B$15=2,(IF(2-$B$19=0, 0, (IF(2-$B$19=1,(VLOOKUP(1,Tablas!#REF!,5,TRUE)), (IF(2-$B$19=2, (VLOOKUP(2,Tablas!#REF!,5,TRUE)), 0)))))), (IF($B$15=1,(IF(1-$B$19=0, 0, (IF(1-$B$19=1,(VLOOKUP(1,Tablas!#REF!,5,TRUE)),0)))),0))))))))))))))))))) -> 
A58: Total de Prima neta | C58: =SUM(C55:C57) -> 34850.95 | D58: =SUM(D55:D57) -> 25126.4 | E58: =SUM(E55:E57) -> 
A59: =A46 -> Contribución 3.5% Superintendencia de Bancos Contribución 0.5% Seguro Social Campesino | C59: =C58*Tablas!$X$3 -> 1394.038 | D59: =D58*Tablas!$X$3 -> 1005.056 | E59: =75*Tablas!$X$2 -> 75
A60: VAT (5%)
A61: ITBMS (7%)
A62: TOTAL de primera cuota | C62: =SUM(C58:C61) -> 36244.988 | D62: =SUM(D58:D61) -> 26131.456 | E62: =SUM(E58:E61) -> 
A63: Costo de tarifa trimestral 2 a 4 | C63: =C58+C59-78 -> 36166.988 | D63: =D58+D59-78 -> 26053.456 | E63: =(E58 + E60)+((E31+E32+E33)*0.1*0.07)/4 -> 
A64: TOTAL ANUAL | C64: =C62+(C63*3) -> 144745.952 | D64: =D62+(D63*3) -> 104291.824 | E64: =E62+(E63*3) -> 
A65: Ahorros en tarifas de prima para Dependientes | C65: =C39*Tablas!K3 -> 3246.375 | D65: =D39*Tablas!K3 -> 2405.425 | E65: =IF($B$17=1,IF($B$15=0,0,IF($B$19=0,0,IF($B$19=1,(VLOOKUP(1,Tablas!#REF!,5,TRUE)),(VLOOKUP(2,Tablas!#REF!,5,TRUE))))), IF($B$15=0,0,IF($B$19=0,0,IF($B$19=1,(VLOOKUP(1,Tablas!#REF!,5,TRUE)),IF($B$19=2,(VLOOKUP(2,Tablas!#REF!,5,TRUE)), (VLOOKUP(3,Tablas!#REF!,5,TRUE))))))) -> 
A67: TARIFAS MENSUALES
A68: Prima para Asegurado Titular | C68: =(C31-75)*Tablas!$K$2+75 -> 4411.64 | D68: =(D31-75)*Tablas!$K$2+75 -> 3204.84 | E68: =VLOOKUP($B$21,Tablas!#REF!,5,TRUE) -> 
A69: Prima para conyuge | C69: =C32*Tablas!$K$2 -> 4336.64 | D69: =D32*Tablas!$K$2 -> 3129.84 | E69: =IF($B$17=1,0,(VLOOKUP($D$21,Tablas!#REF!,5,TRUE))) -> 
A70: Prima para hijo (s) | C70: =C33*Tablas!$K$2 -> 3129.466667 | D70: =D33*Tablas!$K$2 -> 2242.613333 | E70: =IF($B$17=1, (IF($B$15=0, 0, (IF($B$19>$B$15, (VLOOKUP($B$15,Tablas!#REF!,5,TRUE)), (IF($B$15>4,(IF($B$19=0, (VLOOKUP(3,Tablas!#REF!,5,TRUE)), (IF($B$19=1, (VLOOKUP(3,Tablas!#REF!,5,TRUE)), (IF($B$19=2, (VLOOKUP(3,Tablas!#REF!,5,TRUE)), (VLOOKUP(3,Tablas!#REF!,5,TRUE)))))))), (IF($B$15=4,(IF(4-$B$19=0,(VLOOKUP(2,Tablas!#REF!,5,TRUE)), (IF(4-$B$19=1,(VLOOKUP(2,Tablas!#REF!,5,TRUE)), (IF(4-$B$19=2, (VLOOKUP(2,Tablas!#REF!,5,TRUE)), (VLOOKUP(3,Tablas!#REF!,5,TRUE)))))))), (IF($B$15=3,(IF(3-$B$19=0,(VLOOKUP(1,Tablas!#REF!,5,TRUE)), (IF(3-$B$19=1,(VLOOKUP(1,Tablas!#REF!,5,TRUE)), (IF(3-$B$19=2, (VLOOKUP(2,Tablas!#REF!,5,TRUE)), (VLOOKUP(3,Tablas!#REF!,5,TRUE)))))))), (IF($B$15=2,(IF(2-$B$19=0, 0, (IF(2-$B$19=1,(VLOOKUP(1,Tablas!#REF!,5,TRUE)), (IF(2-$B$19=2, (VLOOKUP(2,Tablas!#REF!,5,TRUE)), 0)))))), (IF($B$15=1,(IF(1-$B$19=0, 0, (IF(1-$B$19=1,(VLOOKUP(1,Tablas!#REF!,5,TRUE)),0)))),0)))))))))))))), (IF($B$15=0, 0, (IF($B$19>$B$15, (VLOOKUP($B$15,Tablas!#REF!,5,TRUE)), (IF($B$15=4,(IF(4-$B$19=0, 0, (IF(4-$B$19=1, (VLOOKUP(1,Tablas!#REF!,5,TRUE)), (IF(4-$B$19=2, (VLOOKUP(2,Tablas!#REF!,5,TRUE)), (IF(4-$B$19=3, (VLOOKUP(3,Tablas!#REF!,5,TRUE)), (IF(4-$B$19=4, (VLOOKUP(3,Tablas!#REF!,5,TRUE)), 0)))))))))), (IF($B$15=5,(IF(5-$B$19=0, (VLOOKUP(1,Tablas!#REF!,5,TRUE)), (IF(5-$B$19=1, (VLOOKUP(1,Tablas!#REF!,5,TRUE)), (IF(5-$B$19=2, (VLOOKUP(2,Tablas!#REF!,5,TRUE)), (IF(5-$B$19=3, (VLOOKUP(3,Tablas!#REF!,5,TRUE)), (IF(5-$B$19=4, (VLOOKUP(3,Tablas!#REF!,5,TRUE)), (VLOOKUP(3,Tablas!#REF!,5,TRUE)))))))))))), (IF($B$15=6,(IF(6-$B$19=0, (VLOOKUP(2,Tablas!#REF!,5,TRUE)), (IF(6-$B$19=1, (VLOOKUP(2,Tablas!#REF!,5,TRUE)), (IF(6-$B$19=2, (VLOOKUP(2,Tablas!#REF!,5,TRUE)), (IF(6-$B$19=3, (VLOOKUP(3,Tablas!#REF!,5,TRUE)), (IF(6-$B$19=4, (VLOOKUP(3,Tablas!#REF!,5,TRUE)), (VLOOKUP(3,Tablas!#REF!,5,TRUE)))))))))))), (IF($B$15>6,(IF(7-$B$19=0, (VLOOKUP(3,Tablas!#REF!,5,TRUE)), (IF(7-$B$19=1, (VLOOKUP(3,Tablas!#REF!,5,TRUE)), (IF(7-$B$19=2, (VLOOKUP(3,Tablas!#REF!,5,TRUE)), (IF(7-$B$19=3, (VLOOKUP(3,Tablas!#REF!,5,TRUE)), (IF(7-$B$19=4, (VLOOKUP(3,Tablas!#REF!,5,TRUE)), (VLOOKUP(3,Tablas!#REF!,5,TRUE)))))))))))), (IF($B$15=3,(IF(3-$B$19=0,0, (IF(3-$B$19=1,(VLOOKUP(1,Tablas!#REF!,5,TRUE)), (IF(3-$B$19=2, (VLOOKUP(2,Tablas!#REF!,5,TRUE)), (VLOOKUP(3,Tablas!#REF!,5,TRUE)))))))), (IF($B$15=2,(IF(2-$B$19=0, 0, (IF(2-$B$19=1,(VLOOKUP(1,Tablas!#REF!,5,TRUE)), (IF(2-$B$19=2, (VLOOKUP(2,Tablas!#REF!,5,TRUE)), 0)))))), (IF($B$15=1,(IF(1-$B$19=0, 0, (IF(1-$B$19=1,(VLOOKUP(1,Tablas!#REF!,5,TRUE)),0)))),0))))))))))))))))))) -> 
A71: Total de Prima neta | C71: =SUM(C68:C70) -> 11877.74667 | D71: =SUM(D68:D70) -> 8577.293333 | E71: =SUM(E68:E70) -> 
A72: =A59 -> Contribución 3.5% Superintendencia de Bancos Contribución 0.5% Seguro Social Campesino | C72: =C71*Tablas!$X$3 -> 475.1098667 | D72: =D71*Tablas!$X$3 -> 343.0917333 | E72: =75*Tablas!$X$2 -> 75
A73: VAT (5%)
A74: ITBMS (7%)
A75: TOTAL de primera cuota | C75: =SUM(C71:C74) -> 12352.85653 | D75: =SUM(D71:D74) -> 8920.385067 | E75: =SUM(E71:E74) -> 
A76: Costo de Tarifa mensual de 2 a 12 | C76: =C71+C72-78 -> 12274.85653 | D76: =D71+D72-78 -> 8842.385067 | E76: =(E71 + E73)+((E31+E32+E33)*0.12*0.07)/12 -> 
A77: TOTAL ANUAL | C77: =C75+(C76*11) -> 147376.2784 | D77: =D75+(D76*11) -> 106186.6208 | E77: =E75+(E76*11) -> 
A78: Ahorros en tarifas de prima para Dependientes | C78: =C39*Tablas!K2 -> 1101.8 | D78: =D39*Tablas!K2 -> 816.3866667 | E78: =IF($B$17=1,IF($B$15=0,0,IF($B$19=0,0,IF($B$19=1,(VLOOKUP(1,Tablas!#REF!,5,TRUE)),(VLOOKUP(2,Tablas!#REF!,5,TRUE))))), IF($B$15=0,0,IF($B$19=0,0,IF($B$19=1,(VLOOKUP(1,Tablas!#REF!,5,TRUE)),IF($B$19=2,(VLOOKUP(2,Tablas!#REF!,5,TRUE)), (VLOOKUP(3,Tablas!#REF!,5,TRUE))))))) -> 
A80: Este presupuesto solamente tiene carácter informativo y en ningún momento expresa compromiso legal para suministrarle cobertura de seguro. La emisión de una póliza de seguro Bupa está sujeta a todas las evaluaciones de riesgo por parte de Bupa y a la recepción de todos los pagos de prima requeridos.

Sheet Global Elite
K1: RESUMEN DE BENEFICIOS | Z1: RESUMEN DE BENEFICIOS | AO1: RESUMEN DE BENEFICIOS
A5: Cotización de Seguro Médico Internacional Global Elite Health Plan Tarifas en US$ | Validas: 1 de marzo de 2026 | G5: REGIÓN
G7: ='INGRESO DE DATOS'!W21 -> Guayas/Santa Elena
A13: Nombre del Asegurado Titular | B13: =+'INGRESO DE DATOS'!$C$38 -> John Doe
A15: Número de adultos en la póliza | B15: =+'INGRESO DE DATOS'!$C$40 -> 2
A17: Número de Dependientes en la póliza | B17: =+'INGRESO DE DATOS'!$C$42 -> 4 | C17: =IF('INGRESO DE DATOS'!$P$2=TRUE, "Cotización para dependiente de 24 años","") -> 
A19: Número de Dependientes menores de 10 años | B19: =+'INGRESO DE DATOS'!$H$43 -> 1
A21: Edad del Asegurado Titular | B21: =+'INGRESO DE DATOS'!$C$44 -> 39 | E21: Edad del/la conyuge | G21: =+'INGRESO DE DATOS'!$C$46 -> 36 | L21: FALSE | AA21: FALSE | AP21: FALSE
A23: Fecha de la cotización | B23: =NOW() -> 2026-03-13T12:16:11.470
A25: =IF('INGRESO DE DATOS'!P3=TRUE,"Variante con coaseguro fuera del país de residencia: SI","Variante con coaseguro fuera del país de residencia: NO") -> Variante con coaseguro fuera del país de residencia: NO
A27: DEDUCIBlES | C27: PLAN 1 | D27: PLAN 2 | E27: PLAN 3 | F27: PLAN 4 | G27: PLAN 5
A28: En el país de residencia | C28: 250 | D28: 2000 | E28: 3500 | F28: 5000 | G28: 10000
A29: Fuera del país de residencia | C29: 5000 | D29: 2000 | E29: 3500 | F29: 5000 | G29: 10000
A31: TARIFAS ANUALES
A32: Prima para Asegurado Titular | C32: =VLOOKUP($B$21,Tablas!$A$6:$G$72,3,TRUE)+75 -> 19635 | D32: =VLOOKUP($B$21,Tablas!$A$6:$G$72,4,TRUE)+75 -> 15364 | E32: =VLOOKUP($B$21,Tablas!$A$6:$G$72,5,TRUE)+75 -> 13392 | F32: =VLOOKUP($B$21,Tablas!$A$6:$G$72,6,TRUE)+75 -> 11633 | G32: =VLOOKUP($B$21,Tablas!$A$6:$G$72,7,TRUE)+75 -> 9162
A33: Prima para conyuge | C33: =IF($B$15=1,0,(VLOOKUP($G$21,Tablas!$A$6:$G$72,3,TRUE))) -> 19560 | D33: =IF($B$15=1,0,(VLOOKUP($G$21,Tablas!$A$6:$G$72,4,TRUE))) -> 15289 | E33: =IF($B$15=1,0,(VLOOKUP($G$21,Tablas!$A$6:$G$72,5,TRUE))) -> 13317 | F33: =IF($B$15=1,0,(VLOOKUP($G$21,Tablas!$A$6:$G$72,6,TRUE))) -> 11558 | G33: =IF($B$15=1,0,(VLOOKUP($G$21,Tablas!$A$6:$G$72,7,TRUE))) -> 9087
A34: Prima para hijo (s) | C34: =IF($B$15=1, (IF($B$17=0, 0, (IF($B$19>$B$17, (VLOOKUP($B$17,Tablas!$A$73:$G$75,3,TRUE)), (IF($B$17>4,(IF($B$19=0, (VLOOKUP(3,Tablas!$A$73:$G$75,3,TRUE)), (IF($B$19=1, (VLOOKUP(3,Tablas!$A$73:$G$75,3,TRUE)), (IF($B$19=2, (VLOOKUP(3,Tablas!$A$73:$G$75,3,TRUE)), (VLOOKUP(3,Tablas!$A$73:$G$75,3,TRUE)))))))), (IF($B$17=4,(IF(4-$B$19=0,(VLOOKUP(2,Tablas!$A$73:$G$75,3,TRUE)), (IF(4-$B$19=1,(VLOOKUP(2,Tablas!$A$73:$G$75,3,TRUE)), (IF(4-$B$19=2, (VLOOKUP(2,Tablas!$A$73:$G$75,3,TRUE)), (VLOOKUP(3,Tablas!$A$73:$G$75,3,TRUE)))))))), (IF($B$17=3,(IF(3-$B$19=0,(VLOOKUP(1,Tablas!$A$73:$G$75,3,TRUE)), (IF(3-$B$19=1,(VLOOKUP(1,Tablas!$A$73:$G$75,3,TRUE)), (IF(3-$B$19=2, (VLOOKUP(2,Tablas!$A$73:$G$75,3,TRUE)), (VLOOKUP(3,Tablas!$A$73:$G$75,3,TRUE)))))))), (IF($B$17=2,(IF(2-$B$19=0, 0, (IF(2-$B$19=1,(VLOOKUP(1,Tablas!$A$73:$G$75,3,TRUE)), (IF(2-$B$19=2, (VLOOKUP(2,Tablas!$A$73:$G$75,3,TRUE)), 0)))))), (IF($B$17=1,(IF(1-$B$19=0, 0, (IF(1-$B$19=1,(VLOOKUP(1,Tablas!$A$73:$G$75,3,TRUE)),0)))),0)))))))))))))), (IF($B$17=0, 0, (IF($B$19>$B$17, (VLOOKUP($B$17,Tablas!$A$73:$G$75,3,TRUE)), (IF($B$17=4,(IF(4-$B$19=0, 0, (IF(4-$B$19=1, (VLOOKUP(1,Tablas!$A$73:$G$75,3,TRUE)), (IF(4-$B$19=2, (VLOOKUP(2,Tablas!$A$73:$G$75,3,TRUE)), (IF(4-$B$19=3, (VLOOKUP(3,Tablas!$A$73:$G$75,3,TRUE)), (IF(4-$B$19=4, (VLOOKUP(3,Tablas!$A$73:$G$75,3,TRUE)), 0)))))))))), (IF($B$17=5,(IF(5-$B$19=0, (VLOOKUP(1,Tablas!$A$73:$G$75,3,TRUE)), (IF(5-$B$19=1, (VLOOKUP(1,Tablas!$A$73:$G$75,3,TRUE)), (IF(5-$B$19=2, (VLOOKUP(2,Tablas!$A$73:$G$75,3,TRUE)), (IF(5-$B$19=3, (VLOOKUP(3,Tablas!$A$73:$G$75,3,TRUE)), (IF(5-$B$19=4, (VLOOKUP(3,Tablas!$A$73:$G$75,3,TRUE)), (VLOOKUP(3,Tablas!$A$73:$G$75,3,TRUE)))))))))))), (IF($B$17=6,(IF(6-$B$19=0, (VLOOKUP(2,Tablas!$A$73:$G$75,3,TRUE)), (IF(6-$B$19=1, (VLOOKUP(2,Tablas!$A$73:$G$75,3,TRUE)), (IF(6-$B$19=2, (VLOOKUP(2,Tablas!$A$73:$G$75,3,TRUE)), (IF(6-$B$19=3, (VLOOKUP(3,Tablas!$A$73:$G$75,3,TRUE)), (IF(6-$B$19=4, (VLOOKUP(3,Tablas!$A$73:$G$75,3,TRUE)), (VLOOKUP(3,Tablas!$A$73:$G$75,3,TRUE)))))))))))), (IF($B$17>6,(IF(7-$B$19=0, (VLOOKUP(3,Tablas!$A$73:$G$75,3,TRUE)), (IF(7-$B$19=1, (VLOOKUP(3,Tablas!$A$73:$G$75,3,TRUE)), (IF(7-$B$19=2, (VLOOKUP(3,Tablas!$A$73:$G$75,3,TRUE)), (IF(7-$B$19=3, (VLOOKUP(3,Tablas!$A$73:$G$75,3,TRUE)), (IF(7-$B$19=4, (VLOOKUP(3,Tablas!$A$73:$G$75,3,TRUE)), (VLOOKUP(3,Tablas!$A$73:$G$75,3,TRUE)))))))))))), (IF($B$17=3,(IF(3-$B$19=0,0, (IF(3-$B$19=1,(VLOOKUP(1,Tablas!$A$73:$G$75,3,TRUE)), (IF(3-$B$19=2, (VLOOKUP(2,Tablas!$A$73:$G$75,3,TRUE)), (VLOOKUP(3,Tablas!$A$73:$G$75,3,TRUE)))))))), (IF($B$17=2,(IF(2-$B$19=0, 0, (IF(2-$B$19=1,(VLOOKUP(1,Tablas!$A$73:$G$75,3,TRUE)), (IF(2-$B$19=2, (VLOOKUP(2,Tablas!$A$73:$G$75,3,TRUE)), 0)))))), (IF($B$17=1,(IF(1-$B$19=0, 0, (IF(1-$B$19=1,(VLOOKUP(1,Tablas!$A$73:$G$75,3,TRUE)),0)))),0))))))))))))))))))) -> 8687 | D34: =IF($B$15=1, (IF($B$17=0, 0, (IF($B$19>$B$17, (VLOOKUP($B$17,Tablas!$A$73:$G$75,4,TRUE)), (IF($B$17>4,(IF($B$19=0, (VLOOKUP(3,Tablas!$A$73:$G$75,4,TRUE)), (IF($B$19=1, (VLOOKUP(3,Tablas!$A$73:$G$75,4,TRUE)), (IF($B$19=2, (VLOOKUP(3,Tablas!$A$73:$G$75,4,TRUE)), (VLOOKUP(3,Tablas!$A$73:$G$75,4,TRUE)))))))), (IF($B$17=4,(IF(4-$B$19=0,(VLOOKUP(2,Tablas!$A$73:$G$75,4,TRUE)), (IF(4-$B$19=1,(VLOOKUP(2,Tablas!$A$73:$G$75,4,TRUE)), (IF(4-$B$19=2, (VLOOKUP(2,Tablas!$A$73:$G$75,4,TRUE)), (VLOOKUP(3,Tablas!$A$73:$G$75,4,TRUE)))))))), (IF($B$17=3,(IF(3-$B$19=0,(VLOOKUP(1,Tablas!$A$73:$G$75,4,TRUE)), (IF(3-$B$19=1,(VLOOKUP(1,Tablas!$A$73:$G$75,4,TRUE)), (IF(3-$B$19=2, (VLOOKUP(2,Tablas!$A$73:$G$75,4,TRUE)), (VLOOKUP(3,Tablas!$A$73:$G$75,4,TRUE)))))))), (IF($B$17=2,(IF(2-$B$19=0, 0, (IF(2-$B$19=1,(VLOOKUP(1,Tablas!$A$73:$G$75,4,TRUE)), (IF(2-$B$19=2, (VLOOKUP(2,Tablas!$A$73:$G$75,4,TRUE)), 0)))))), (IF($B$17=1,(IF(1-$B$19=0, 0, (IF(1-$B$19=1,(VLOOKUP(1,Tablas!$A$73:$G$75,4,TRUE)),0)))),0)))))))))))))), (IF($B$17=0, 0, (IF($B$19>$B$17, (VLOOKUP($B$17,Tablas!$A$73:$G$75,4,TRUE)), (IF($B$17=4,(IF(4-$B$19=0, 0, (IF(4-$B$19=1, (VLOOKUP(1,Tablas!$A$73:$G$75,4,TRUE)), (IF(4-$B$19=2, (VLOOKUP(2,Tablas!$A$73:$G$75,4,TRUE)), (IF(4-$B$19=3, (VLOOKUP(3,Tablas!$A$73:$G$75,4,TRUE)), (IF(4-$B$19=4, (VLOOKUP(3,Tablas!$A$73:$G$75,4,TRUE)), 0)))))))))), (IF($B$17=5,(IF(5-$B$19=0, (VLOOKUP(1,Tablas!$A$73:$G$75,4,TRUE)), (IF(5-$B$19=1, (VLOOKUP(1,Tablas!$A$73:$G$75,4,TRUE)), (IF(5-$B$19=2, (VLOOKUP(2,Tablas!$A$73:$G$75,4,TRUE)), (IF(5-$B$19=3, (VLOOKUP(3,Tablas!$A$73:$G$75,4,TRUE)), (IF(5-$B$19=4, (VLOOKUP(3,Tablas!$A$73:$G$75,4,TRUE)), (VLOOKUP(3,Tablas!$A$73:$G$75,4,TRUE)))))))))))), (IF($B$17=6,(IF(6-$B$19=0, (VLOOKUP(2,Tablas!$A$73:$G$75,4,TRUE)), (IF(6-$B$19=1, (VLOOKUP(2,Tablas!$A$73:$G$75,4,TRUE)), (IF(6-$B$19=2, (VLOOKUP(2,Tablas!$A$73:$G$75,4,TRUE)), (IF(6-$B$19=3, (VLOOKUP(3,Tablas!$A$73:$G$75,4,TRUE)), (IF(6-$B$19=4, (VLOOKUP(3,Tablas!$A$73:$G$75,4,TRUE)), (VLOOKUP(3,Tablas!$A$73:$G$75,4,TRUE)))))))))))), (IF($B$17>6,(IF(7-$B$19=0, (VLOOKUP(3,Tablas!$A$73:$G$75,4,TRUE)), (IF(7-$B$19=1, (VLOOKUP(3,Tablas!$A$73:$G$75,4,TRUE)), (IF(7-$B$19=2, (VLOOKUP(3,Tablas!$A$73:$G$75,4,TRUE)), (IF(7-$B$19=3, (VLOOKUP(3,Tablas!$A$73:$G$75,4,TRUE)), (IF(7-$B$19=4, (VLOOKUP(3,Tablas!$A$73:$G$75,4,TRUE)), (VLOOKUP(3,Tablas!$A$73:$G$75,4,TRUE)))))))))))), (IF($B$17=3,(IF(3-$B$19=0,0, (IF(3-$B$19=1,(VLOOKUP(1,Tablas!$A$73:$G$75,4,TRUE)), (IF(3-$B$19=2, (VLOOKUP(2,Tablas!$A$73:$G$75,4,TRUE)), (VLOOKUP(3,Tablas!$A$73:$G$75,4,TRUE)))))))), (IF($B$17=2,(IF(2-$B$19=0, 0, (IF(2-$B$19=1,(VLOOKUP(1,Tablas!$A$73:$G$75,4,TRUE)), (IF(2-$B$19=2, (VLOOKUP(2,Tablas!$A$73:$G$75,4,TRUE)), 0)))))), (IF($B$17=1,(IF(1-$B$19=0, 0, (IF(1-$B$19=1,(VLOOKUP(1,Tablas!$A$73:$G$75,4,TRUE)),0)))),0))))))))))))))))))) -> 5469 | E34: =IF($B$15=1, (IF($B$17=0, 0, (IF($B$19>$B$17, (VLOOKUP($B$17,Tablas!$A$73:$G$75,5,TRUE)), (IF($B$17>4,(IF($B$19=0, (VLOOKUP(3,Tablas!$A$73:$G$75,5,TRUE)), (IF($B$19=1, (VLOOKUP(3,Tablas!$A$73:$G$75,5,TRUE)), (IF($B$19=2, (VLOOKUP(3,Tablas!$A$73:$G$75,5,TRUE)), (VLOOKUP(3,Tablas!$A$73:$G$75,5,TRUE)))))))), (IF($B$17=4,(IF(4-$B$19=0,(VLOOKUP(2,Tablas!$A$73:$G$75,5,TRUE)), (IF(4-$B$19=1,(VLOOKUP(2,Tablas!$A$73:$G$75,5,TRUE)), (IF(4-$B$19=2, (VLOOKUP(2,Tablas!$A$73:$G$75,5,TRUE)), (VLOOKUP(3,Tablas!$A$73:$G$75,5,TRUE)))))))), (IF($B$17=3,(IF(3-$B$19=0,(VLOOKUP(1,Tablas!$A$73:$G$75,5,TRUE)), (IF(3-$B$19=1,(VLOOKUP(1,Tablas!$A$73:$G$75,5,TRUE)), (IF(3-$B$19=2, (VLOOKUP(2,Tablas!$A$73:$G$75,5,TRUE)), (VLOOKUP(3,Tablas!$A$73:$G$75,5,TRUE)))))))), (IF($B$17=2,(IF(2-$B$19=0, 0, (IF(2-$B$19=1,(VLOOKUP(1,Tablas!$A$73:$G$75,5,TRUE)), (IF(2-$B$19=2, (VLOOKUP(2,Tablas!$A$73:$G$75,5,TRUE)), 0)))))), (IF($B$17=1,(IF(1-$B$19=0, 0, (IF(1-$B$19=1,(VLOOKUP(1,Tablas!$A$73:$G$75,5,TRUE)),0)))),0)))))))))))))), (IF($B$17=0, 0, (IF($B$19>$B$17, (VLOOKUP($B$17,Tablas!$A$73:$G$75,5,TRUE)), (IF($B$17=4,(IF(4-$B$19=0, 0, (IF(4-$B$19=1, (VLOOKUP(1,Tablas!$A$73:$G$75,5,TRUE)), (IF(4-$B$19=2, (VLOOKUP(2,Tablas!$A$73:$G$75,5,TRUE)), (IF(4-$B$19=3, (VLOOKUP(3,Tablas!$A$73:$G$75,5,TRUE)), (IF(4-$B$19=4, (VLOOKUP(3,Tablas!$A$73:$G$75,5,TRUE)), 0)))))))))), (IF($B$17=5,(IF(5-$B$19=0, (VLOOKUP(1,Tablas!$A$73:$G$75,5,TRUE)), (IF(5-$B$19=1, (VLOOKUP(1,Tablas!$A$73:$G$75,5,TRUE)), (IF(5-$B$19=2, (VLOOKUP(2,Tablas!$A$73:$G$75,5,TRUE)), (IF(5-$B$19=3, (VLOOKUP(3,Tablas!$A$73:$G$75,5,TRUE)), (IF(5-$B$19=4, (VLOOKUP(3,Tablas!$A$73:$G$75,5,TRUE)), (VLOOKUP(3,Tablas!$A$73:$G$75,5,TRUE)))))))))))), (IF($B$17=6,(IF(6-$B$19=0, (VLOOKUP(2,Tablas!$A$73:$G$75,5,TRUE)), (IF(6-$B$19=1, (VLOOKUP(2,Tablas!$A$73:$G$75,5,TRUE)), (IF(6-$B$19=2, (VLOOKUP(2,Tablas!$A$73:$G$75,5,TRUE)), (IF(6-$B$19=3, (VLOOKUP(3,Tablas!$A$73:$G$75,5,TRUE)), (IF(6-$B$19=4, (VLOOKUP(3,Tablas!$A$73:$G$75,5,TRUE)), (VLOOKUP(3,Tablas!$A$73:$G$75,5,TRUE)))))))))))), (IF($B$17>6,(IF(7-$B$19=0, (VLOOKUP(3,Tablas!$A$73:$G$75,5,TRUE)), (IF(7-$B$19=1, (VLOOKUP(3,Tablas!$A$73:$G$75,5,TRUE)), (IF(7-$B$19=2, (VLOOKUP(3,Tablas!$A$73:$G$75,5,TRUE)), (IF(7-$B$19=3, (VLOOKUP(3,Tablas!$A$73:$G$75,5,TRUE)), (IF(7-$B$19=4, (VLOOKUP(3,Tablas!$A$73:$G$75,5,TRUE)), (VLOOKUP(3,Tablas!$A$73:$G$75,5,TRUE)))))))))))), (IF($B$17=3,(IF(3-$B$19=0,0, (IF(3-$B$19=1,(VLOOKUP(1,Tablas!$A$73:$G$75,5,TRUE)), (IF(3-$B$19=2, (VLOOKUP(2,Tablas!$A$73:$G$75,5,TRUE)), (VLOOKUP(3,Tablas!$A$73:$G$75,5,TRUE)))))))), (IF($B$17=2,(IF(2-$B$19=0, 0, (IF(2-$B$19=1,(VLOOKUP(1,Tablas!$A$73:$G$75,5,TRUE)), (IF(2-$B$19=2, (VLOOKUP(2,Tablas!$A$73:$G$75,5,TRUE)), 0)))))), (IF($B$17=1,(IF(1-$B$19=0, 0, (IF(1-$B$19=1,(VLOOKUP(1,Tablas!$A$73:$G$75,5,TRUE)),0)))),0))))))))))))))))))) -> 4389 | F34: =IF($B$15=1, (IF($B$17=0, 0, (IF($B$19>$B$17, (VLOOKUP($B$17,Tablas!$A$73:$G$75,6,TRUE)), (IF($B$17>4,(IF($B$19=0, (VLOOKUP(3,Tablas!$A$73:$G$75,6,TRUE)), (IF($B$19=1, (VLOOKUP(3,Tablas!$A$73:$G$75,6,TRUE)), (IF($B$19=2, (VLOOKUP(3,Tablas!$A$73:$G$75,6,TRUE)), (VLOOKUP(3,Tablas!$A$73:$G$75,6,TRUE)))))))), (IF($B$17=4,(IF(4-$B$19=0,(VLOOKUP(2,Tablas!$A$73:$G$75,6,TRUE)), (IF(4-$B$19=1,(VLOOKUP(2,Tablas!$A$73:$G$75,6,TRUE)), (IF(4-$B$19=2, (VLOOKUP(2,Tablas!$A$73:$G$75,6,TRUE)), (VLOOKUP(3,Tablas!$A$73:$G$75,6,TRUE)))))))), (IF($B$17=3,(IF(3-$B$19=0,(VLOOKUP(1,Tablas!$A$73:$G$75,6,TRUE)), (IF(3-$B$19=1,(VLOOKUP(1,Tablas!$A$73:$G$75,6,TRUE)), (IF(3-$B$19=2, (VLOOKUP(2,Tablas!$A$73:$G$75,6,TRUE)), (VLOOKUP(3,Tablas!$A$73:$G$75,6,TRUE)))))))), (IF($B$17=2,(IF(2-$B$19=0, 0, (IF(2-$B$19=1,(VLOOKUP(1,Tablas!$A$73:$G$75,6,TRUE)), (IF(2-$B$19=2, (VLOOKUP(2,Tablas!$A$73:$G$75,6,TRUE)), 0)))))), (IF($B$17=1,(IF(1-$B$19=0, 0, (IF(1-$B$19=1,(VLOOKUP(1,Tablas!$A$73:$G$75,6,TRUE)),0)))),0)))))))))))))), (IF($B$17=0, 0, (IF($B$19>$B$17, (VLOOKUP($B$17,Tablas!$A$73:$G$75,6,TRUE)), (IF($B$17=4,(IF(4-$B$19=0, 0, (IF(4-$B$19=1, (VLOOKUP(1,Tablas!$A$73:$G$75,6,TRUE)), (IF(4-$B$19=2, (VLOOKUP(2,Tablas!$A$73:$G$75,6,TRUE)), (IF(4-$B$19=3, (VLOOKUP(3,Tablas!$A$73:$G$75,6,TRUE)), (IF(4-$B$19=4, (VLOOKUP(3,Tablas!$A$73:$G$75,6,TRUE)), 0)))))))))), (IF($B$17=5,(IF(5-$B$19=0, (VLOOKUP(1,Tablas!$A$73:$G$75,6,TRUE)), (IF(5-$B$19=1, (VLOOKUP(1,Tablas!$A$73:$G$75,6,TRUE)), (IF(5-$B$19=2, (VLOOKUP(2,Tablas!$A$73:$G$75,6,TRUE)), (IF(5-$B$19=3, (VLOOKUP(3,Tablas!$A$73:$G$75,6,TRUE)), (IF(5-$B$19=4, (VLOOKUP(3,Tablas!$A$73:$G$75,6,TRUE)), (VLOOKUP(3,Tablas!$A$73:$G$75,6,TRUE)))))))))))), (IF($B$17=6,(IF(6-$B$19=0, (VLOOKUP(2,Tablas!$A$73:$G$75,6,TRUE)), (IF(6-$B$19=1, (VLOOKUP(2,Tablas!$A$73:$G$75,6,TRUE)), (IF(6-$B$19=2, (VLOOKUP(2,Tablas!$A$73:$G$75,6,TRUE)), (IF(6-$B$19=3, (VLOOKUP(3,Tablas!$A$73:$G$75,6,TRUE)), (IF(6-$B$19=4, (VLOOKUP(3,Tablas!$A$73:$G$75,6,TRUE)), (VLOOKUP(3,Tablas!$A$73:$G$75,6,TRUE)))))))))))), (IF($B$17>6,(IF(7-$B$19=0, (VLOOKUP(3,Tablas!$A$73:$G$75,6,TRUE)), (IF(7-$B$19=1, (VLOOKUP(3,Tablas!$A$73:$G$75,6,TRUE)), (IF(7-$B$19=2, (VLOOKUP(3,Tablas!$A$73:$G$75,6,TRUE)), (IF(7-$B$19=3, (VLOOKUP(3,Tablas!$A$73:$G$75,6,TRUE)), (IF(7-$B$19=4, (VLOOKUP(3,Tablas!$A$73:$G$75,6,TRUE)), (VLOOKUP(3,Tablas!$A$73:$G$75,6,TRUE)))))))))))), (IF($B$17=3,(IF(3-$B$19=0,0, (IF(3-$B$19=1,(VLOOKUP(1,Tablas!$A$73:$G$75,6,TRUE)), (IF(3-$B$19=2, (VLOOKUP(2,Tablas!$A$73:$G$75,6,TRUE)), (VLOOKUP(3,Tablas!$A$73:$G$75,6,TRUE)))))))), (IF($B$17=2,(IF(2-$B$19=0, 0, (IF(2-$B$19=1,(VLOOKUP(1,Tablas!$A$73:$G$75,6,TRUE)), (IF(2-$B$19=2, (VLOOKUP(2,Tablas!$A$73:$G$75,6,TRUE)), 0)))))), (IF($B$17=1,(IF(1-$B$19=0, 0, (IF(1-$B$19=1,(VLOOKUP(1,Tablas!$A$73:$G$75,6,TRUE)),0)))),0))))))))))))))))))) -> 4073 | G34: =IF($B$15=1, (IF($B$17=0, 0, (IF($B$19>$B$17, (VLOOKUP($B$17,Tablas!$A$73:$G$75,7,TRUE)), (IF($B$17>4,(IF($B$19=0, (VLOOKUP(3,Tablas!$A$73:$G$75,7,TRUE)), (IF($B$19=1, (VLOOKUP(3,Tablas!$A$73:$G$75,7,TRUE)), (IF($B$19=2, (VLOOKUP(3,Tablas!$A$73:$G$75,7,TRUE)), (VLOOKUP(3,Tablas!$A$73:$G$75,7,TRUE)))))))), (IF($B$17=4,(IF(4-$B$19=0,(VLOOKUP(2,Tablas!$A$73:$G$75,7,TRUE)), (IF(4-$B$19=1,(VLOOKUP(2,Tablas!$A$73:$G$75,7,TRUE)), (IF(4-$B$19=2, (VLOOKUP(2,Tablas!$A$73:$G$75,7,TRUE)), (VLOOKUP(3,Tablas!$A$73:$G$75,7,TRUE)))))))), (IF($B$17=3,(IF(3-$B$19=0,(VLOOKUP(1,Tablas!$A$73:$G$75,7,TRUE)), (IF(3-$B$19=1,(VLOOKUP(1,Tablas!$A$73:$G$75,7,TRUE)), (IF(3-$B$19=2, (VLOOKUP(2,Tablas!$A$73:$G$75,7,TRUE)), (VLOOKUP(3,Tablas!$A$73:$G$75,7,TRUE)))))))), (IF($B$17=2,(IF(2-$B$19=0, 0, (IF(2-$B$19=1,(VLOOKUP(1,Tablas!$A$73:$G$75,7,TRUE)), (IF(2-$B$19=2, (VLOOKUP(2,Tablas!$A$73:$G$75,7,TRUE)), 0)))))), (IF($B$17=1,(IF(1-$B$19=0, 0, (IF(1-$B$19=1,(VLOOKUP(1,Tablas!$A$73:$G$75,7,TRUE)),0)))),0)))))))))))))), (IF($B$17=0, 0, (IF($B$19>$B$17, (VLOOKUP($B$17,Tablas!$A$73:$G$75,7,TRUE)), (IF($B$17=4,(IF(4-$B$19=0, 0, (IF(4-$B$19=1, (VLOOKUP(1,Tablas!$A$73:$G$75,7,TRUE)), (IF(4-$B$19=2, (VLOOKUP(2,Tablas!$A$73:$G$75,7,TRUE)), (IF(4-$B$19=3, (VLOOKUP(3,Tablas!$A$73:$G$75,7,TRUE)), (IF(4-$B$19=4, (VLOOKUP(3,Tablas!$A$73:$G$75,7,TRUE)), 0)))))))))), (IF($B$17=5,(IF(5-$B$19=0, (VLOOKUP(1,Tablas!$A$73:$G$75,7,TRUE)), (IF(5-$B$19=1, (VLOOKUP(1,Tablas!$A$73:$G$75,7,TRUE)), (IF(5-$B$19=2, (VLOOKUP(2,Tablas!$A$73:$G$75,7,TRUE)), (IF(5-$B$19=3, (VLOOKUP(3,Tablas!$A$73:$G$75,7,TRUE)), (IF(5-$B$19=4, (VLOOKUP(3,Tablas!$A$73:$G$75,7,TRUE)), (VLOOKUP(3,Tablas!$A$73:$G$75,7,TRUE)))))))))))), (IF($B$17=6,(IF(6-$B$19=0, (VLOOKUP(2,Tablas!$A$73:$G$75,7,TRUE)), (IF(6-$B$19=1, (VLOOKUP(2,Tablas!$A$73:$G$75,7,TRUE)), (IF(6-$B$19=2, (VLOOKUP(2,Tablas!$A$73:$G$75,7,TRUE)), (IF(6-$B$19=3, (VLOOKUP(3,Tablas!$A$73:$G$75,7,TRUE)), (IF(6-$B$19=4, (VLOOKUP(3,Tablas!$A$73:$G$75,7,TRUE)), (VLOOKUP(3,Tablas!$A$73:$G$75,7,TRUE)))))))))))), (IF($B$17>6,(IF(7-$B$19=0, (VLOOKUP(3,Tablas!$A$73:$G$75,7,TRUE)), (IF(7-$B$19=1, (VLOOKUP(3,Tablas!$A$73:$G$75,7,TRUE)), (IF(7-$B$19=2, (VLOOKUP(3,Tablas!$A$73:$G$75,7,TRUE)), (IF(7-$B$19=3, (VLOOKUP(3,Tablas!$A$73:$G$75,7,TRUE)), (IF(7-$B$19=4, (VLOOKUP(3,Tablas!$A$73:$G$75,7,TRUE)), (VLOOKUP(3,Tablas!$A$73:$G$75,7,TRUE)))))))))))), (IF($B$17=3,(IF(3-$B$19=0,0, (IF(3-$B$19=1,(VLOOKUP(1,Tablas!$A$73:$G$75,7,TRUE)), (IF(3-$B$19=2, (VLOOKUP(2,Tablas!$A$73:$G$75,7,TRUE)), (VLOOKUP(3,Tablas!$A$73:$G$75,7,TRUE)))))))), (IF($B$17=2,(IF(2-$B$19=0, 0, (IF(2-$B$19=1,(VLOOKUP(1,Tablas!$A$73:$G$75,7,TRUE)), (IF(2-$B$19=2, (VLOOKUP(2,Tablas!$A$73:$G$75,7,TRUE)), 0)))))), (IF($B$17=1,(IF(1-$B$19=0, 0, (IF(1-$B$19=1,(VLOOKUP(1,Tablas!$A$73:$G$75,7,TRUE)),0)))),0))))))))))))))))))) -> 4419
A35: Total de Prima neta | C35: =SUM(C32:C34) -> 47882 | D35: =SUM(D32:D34) -> 36122 | E35: =SUM(E32:E34) -> 31098 | F35: =SUM(F32:F34) -> 27264 | G35: =SUM(G32:G34) -> 22668
A36: Ajuste por la variante con coaseguro fuera del país de residencia | C36: =IF('INGRESO DE DATOS'!$P$3,C35*-15%,0) -> 0 | D36: =IF('INGRESO DE DATOS'!$P$3,D35*-15%,0) -> 0 | E36: =IF('INGRESO DE DATOS'!$P$3,E35*-15%,0) -> 0 | F36: =IF('INGRESO DE DATOS'!$P$3,F35*-15%,0) -> 0 | G36: =IF('INGRESO DE DATOS'!$P$3,G35*-15%,0) -> 0
A37: Contribución 3.5% Superintendencia de Bancos Contribución 0.5% Seguro Social Campesino | C37: =C35*Tablas!$X$3 -> 1915.28 | D37: =D35*Tablas!$X$3 -> 1444.88 | E37: =E35*Tablas!$X$3 -> 1243.92 | F37: =F35*Tablas!$X$3 -> 1090.56 | G37: =G35*Tablas!$X$3 -> 906.72
A38: VAT (5%) :
A39: ITBMS (7%)
A40: TOTAL ANUAL | C40: =SUM(C35:C39) -> 49797.28 | D40: =SUM(D35:D39) -> 37566.88 | E40: =SUM(E35:E39) -> 32341.92 | F40: =SUM(F35:F39) -> 28354.56 | G40: =SUM(G35:G39) -> 23574.72
A41: Ahorros en tarifas de prima para Dependientes | C41: =IF($B$15=1,IF($B$17=0,0,IF($B$19=0,0,IF($B$19=1,(VLOOKUP(1,Tablas!$A$73:$G$75,3,TRUE)),(VLOOKUP(2,Tablas!$A$73:$G$75,3,TRUE))))), IF($B$17=0,0,IF($B$19=0,0,IF($B$19=1,(VLOOKUP(1,Tablas!$A$73:$G$75,3,TRUE)),IF($B$19=2,(VLOOKUP(2,Tablas!$A$73:$G$75,3,TRUE)), (VLOOKUP(3,Tablas!$A$73:$G$75,3,TRUE))))))) -> 3302 | D41: =IF($B$15=1,IF($B$17=0,0,IF($B$19=0,0,IF($B$19=1,(VLOOKUP(1,Tablas!$A$73:$G$75,4,TRUE)),(VLOOKUP(2,Tablas!$A$73:$G$75,4,TRUE))))), IF($B$17=0,0,IF($B$19=0,0,IF($B$19=1,(VLOOKUP(1,Tablas!$A$73:$G$75,4,TRUE)),IF($B$19=2,(VLOOKUP(2,Tablas!$A$73:$G$75,4,TRUE)), (VLOOKUP(3,Tablas!$A$73:$G$75,4,TRUE))))))) -> 2199 | E41: =IF($B$15=1,IF($B$17=0,0,IF($B$19=0,0,IF($B$19=1,(VLOOKUP(1,Tablas!$A$73:$G$75,5,TRUE)),(VLOOKUP(2,Tablas!$A$73:$G$75,5,TRUE))))), IF($B$17=0,0,IF($B$19=0,0,IF($B$19=1,(VLOOKUP(1,Tablas!$A$73:$G$75,5,TRUE)),IF($B$19=2,(VLOOKUP(2,Tablas!$A$73:$G$75,5,TRUE)), (VLOOKUP(3,Tablas!$A$73:$G$75,5,TRUE))))))) -> 1595 | F41: =IF($B$15=1,IF($B$17=0,0,IF($B$19=0,0,IF($B$19=1,(VLOOKUP(1,Tablas!$A$73:$G$75,6,TRUE)),(VLOOKUP(2,Tablas!$A$73:$G$75,6,TRUE))))), IF($B$17=0,0,IF($B$19=0,0,IF($B$19=1,(VLOOKUP(1,Tablas!$A$73:$G$75,6,TRUE)),IF($B$19=2,(VLOOKUP(2,Tablas!$A$73:$G$75,6,TRUE)), (VLOOKUP(3,Tablas!$A$73:$G$75,6,TRUE))))))) -> 1560 | G41: =IF($B$15=1,IF($B$17=0,0,IF($B$19=0,0,IF($B$19=1,(VLOOKUP(1,Tablas!$A$73:$G$75,7,TRUE)),(VLOOKUP(2,Tablas!$A$73:$G$75,7,TRUE))))), IF($B$17=0,0,IF($B$19=0,0,IF($B$19=1,(VLOOKUP(1,Tablas!$A$73:$G$75,7,TRUE)),IF($B$19=2,(VLOOKUP(2,Tablas!$A$73:$G$75,7,TRUE)), (VLOOKUP(3,Tablas!$A$73:$G$75,7,TRUE))))))) -> 1777
A43: TARIFAS SEMIANUALES
A44: Prima para Asegurado Titular | C44: =(C32-75)*Tablas!$K$4+75 -> 10441.8 | D44: =(D32-75)*Tablas!$K$4+75 -> 8178.17 | E44: =(E32-75)*Tablas!$K$4+75 -> 7133.01 | F44: =(F32-75)*Tablas!$K$4+75 -> 6200.74 | G44: =(G32-75)*Tablas!$K$4+75 -> 4891.11
A45: Prima para conyuge | C45: =C33*Tablas!$K$4 -> 10366.8 | D45: =D33*Tablas!$K$4 -> 8103.17 | E45: =E33*Tablas!$K$4 -> 7058.01 | F45: =F33*Tablas!$K$4 -> 6125.74 | G45: =G33*Tablas!$K$4 -> 4816.11
A46: Prima para hijo (s) | C46: =C34*Tablas!$K$4 -> 4604.11 | D46: =D34*Tablas!$K$4 -> 2898.57 | E46: =E34*Tablas!$K$4 -> 2326.17 | F46: =F34*Tablas!$K$4 -> 2158.69 | G46: =G34*Tablas!$K$4 -> 2342.07
A47: Total de Prima neta | C47: =SUM(C44:C46) -> 25412.71 | D47: =SUM(D44:D46) -> 19179.91 | E47: =SUM(E44:E46) -> 16517.19 | F47: =SUM(F44:F46) -> 14485.17 | G47: =SUM(G44:G46) -> 12049.29
A48: Ajuste por la variante con coaseguro fuera del país de residencia | C48: =IF('INGRESO DE DATOS'!$P$3,C47*-15%,0) -> 0 | D48: =IF('INGRESO DE DATOS'!$P$3,D47*-15%,0) -> 0 | E48: =IF('INGRESO DE DATOS'!$P$3,E47*-15%,0) -> 0 | F48: =IF('INGRESO DE DATOS'!$P$3,F47*-15%,0) -> 0 | G48: =IF('INGRESO DE DATOS'!$P$3,G47*-15%,0) -> 0
A49: =A37 -> Contribución 3.5% Superintendencia de Bancos Contribución 0.5% Seguro Social Campesino | C49: =C47*Tablas!$X$3 -> 1016.5084 | D49: =D47*Tablas!$X$3 -> 767.1964 | E49: =E47*Tablas!$X$3 -> 660.6876 | F49: =F47*Tablas!$X$3 -> 579.4068 | G49: =G47*Tablas!$X$3 -> 481.9716
A50: VAT (5%) :
A51: ITBMS (7%)
A52: TOTAL de primera cuota | C52: =SUM(C47:C51) -> 26429.2184 | D52: =SUM(D47:D51) -> 19947.1064 | E52: =SUM(E47:E51) -> 17177.8776 | F52: =SUM(F47:F51) -> 15064.5768 | G52: =SUM(G47:G51) -> 12531.2616
A53: Costo de segunda cuota | C53: =C47+C49-78 -> 26351.2184 | D53: =D47+D49-78 -> 19869.1064 | E53: 17099.8776 | F53: 14986.5768 | G53: 12453.2616
A54: TOTAL ANUAL | C54: =C52+C53 -> 52780.4368 | D54: =D52+D53 -> 39816.2128 | E54: =E52+E53 -> 34277.7552 | F54: =F52+F53 -> 30051.1536 | G54: =G52+G53 -> 24984.5232
A55: Ahorros en tarifas de prima para Dependientes | C55: =C41*Tablas!$K$4 -> 1750.06 | D55: =D41*Tablas!$K$4 -> 1165.47 | E55: =E41*Tablas!$K$4 -> 845.35 | F55: =F41*Tablas!$K$4 -> 826.8 | G55: =G41*Tablas!$K$4 -> 941.81
A57: TARIFAS TRIMESTRALES
A58: Prima para Asegurado Titular | C58: =(C32-75)*Tablas!$K$3+75 -> 5454 | D58: =(D32-75)*Tablas!$K$3+75 -> 4279.475 | E58: =(E32-75)*Tablas!$K$3+75 -> 3737.175 | F58: =(F32-75)*Tablas!$K$3+75 -> 3253.45 | G58: =(G32-75)*Tablas!$K$3+75 -> 2573.925
A59: Prima para conyuge | C59: =C33*Tablas!$K$3 -> 5379 | D59: =D33*Tablas!$K$3 -> 4204.475 | E59: =E33*Tablas!$K$3 -> 3662.175 | F59: =F33*Tablas!$K$3 -> 3178.45 | G59: =G33*Tablas!$K$3 -> 2498.925
A60: Prima para hijo (s) | C60: =C34*Tablas!$K$3 -> 2388.925 | D60: =D34*Tablas!$K$3 -> 1503.975 | E60: =E34*Tablas!$K$3 -> 1206.975 | F60: =F34*Tablas!$K$3 -> 1120.075 | G60: =G34*Tablas!$K$3 -> 1215.225
A61: Total de Prima neta | C61: =SUM(C58:C60) -> 13221.925 | D61: =SUM(D58:D60) -> 9987.925 | E61: =SUM(E58:E60) -> 8606.325 | F61: =SUM(F58:F60) -> 7551.975 | G61: =SUM(G58:G60) -> 6288.075
A62: Ajuste por la variante con coaseguro fuera del país de residencia | C62: =IF('INGRESO DE DATOS'!$P$3,C61*-15%,0) -> 0 | D62: =IF('INGRESO DE DATOS'!$P$3,D61*-15%,0) -> 0 | E62: =IF('INGRESO DE DATOS'!$P$3,E61*-15%,0) -> 0 | F62: =IF('INGRESO DE DATOS'!$P$3,F61*-15%,0) -> 0 | G62: =IF('INGRESO DE DATOS'!$P$3,G61*-15%,0) -> 0
A63: =A37 -> Contribución 3.5% Superintendencia de Bancos Contribución 0.5% Seguro Social Campesino | C63: =C61*Tablas!$X$3 -> 528.877 | D63: =D61*Tablas!$X$3 -> 399.517 | E63: =E61*Tablas!$X$3 -> 344.253 | F63: =F61*Tablas!$X$3 -> 302.079 | G63: =G61*Tablas!$X$3 -> 251.523
A64: VAT (5%) :
A65: ITBMS (7%)
A66: TOTAL de primera cuota | C66: =SUM(C61:C65) -> 13750.802 | D66: =SUM(D61:D65) -> 10387.442 | E66: =SUM(E61:E65) -> 8950.578 | F66: =SUM(F61:F65) -> 7854.054 | G66: =SUM(G61:G65) -> 6539.598
A67: Costo de tarifa trimestral 2 a 4 | C67: =C61+C63-78 -> 13672.802 | D67: =D61+D63-78 -> 10309.442 | E67: 8872.578 | F67: 7776.054 | G67: 6461.598
A68: TOTAL ANUAL | C68: =C66+(C67*3) -> 54769.208 | D68: =D66+(D67*3) -> 41315.768 | E68: =E66+(E67*3) -> 35568.312 | F68: =F66+(F67*3) -> 31182.216 | G68: =G66+(G67*3) -> 25924.392
A69: Ahorros en tarifas de prima para Dependientes | C69: =C41*Tablas!$K$3 -> 908.05 | D69: =D41*Tablas!$K$3 -> 604.725 | E69: =E41*Tablas!$K$3 -> 438.625 | F69: =F41*Tablas!$K$3 -> 429 | G69: =G41*Tablas!$K$3 -> 488.675
A71: TARIFAS MENSUALES
A72: Prima para Asegurado Titular | C72: =(C32-75)*Tablas!$K$2+75 -> 1900.6 | D72: =(D32-75)*Tablas!$K$2+75 -> 1501.973333 | E72: =(E32-75)*Tablas!$K$2+75 -> 1317.92 | F72: =(F32-75)*Tablas!$K$2+75 -> 1153.746667 | G72: =(G32-75)*Tablas!$K$2+75 -> 923.12
A73: Prima para conyuge | C73: =C33*Tablas!$K$2 -> 1825.6 | D73: =D33*Tablas!$K$2 -> 1426.973333 | E73: =E33*Tablas!$K$2 -> 1242.92 | F73: =F33*Tablas!$K$2 -> 1078.746667 | G73: =G33*Tablas!$K$2 -> 848.12
A74: Prima para hijo (s) | C74: =C34*Tablas!$K$2 -> 810.7866667 | D74: =D34*Tablas!$K$2 -> 510.44 | E74: =E34*Tablas!$K$2 -> 409.64 | F74: =F34*Tablas!$K$2 -> 380.1466667 | G74: =G34*Tablas!$K$2 -> 412.44
A75: Total de Prima neta | C75: =SUM(C72:C74) -> 4536.986667 | D75: =SUM(D72:D74) -> 3439.386667 | E75: =SUM(E72:E74) -> 2970.48 | F75: =SUM(F72:F74) -> 2612.64 | G75: =SUM(G72:G74) -> 2183.68
A76: Ajuste por la variante con coaseguro fuera del país de residencia | C76: =IF('INGRESO DE DATOS'!$P$3,C75*-15%,0) -> 0 | D76: =IF('INGRESO DE DATOS'!$P$3,D75*-15%,0) -> 0 | E76: =IF('INGRESO DE DATOS'!$P$3,E75*-15%,0) -> 0 | F76: =IF('INGRESO DE DATOS'!$P$3,F75*-15%,0) -> 0 | G76: =IF('INGRESO DE DATOS'!$P$3,G75*-15%,0) -> 0
A77: =A63 -> Contribución 3.5% Superintendencia de Bancos Contribución 0.5% Seguro Social Campesino | C77: =C75*Tablas!$X$3 -> 181.4794667 | D77: =D75*Tablas!$X$3 -> 137.5754667 | E77: =E75*Tablas!$X$3 -> 118.8192 | F77: =F75*Tablas!$X$3 -> 104.5056 | G77: =G75*Tablas!$X$3 -> 87.3472
A78: VAT (5%) :
A79: ITBMS (7%)
A80: TOTAL de primera cuota | C80: =SUM(C75:C79) -> 4718.466133 | D80: =SUM(D75:D79) -> 3576.962133 | E80: =SUM(E75:E79) -> 3089.2992 | F80: =SUM(F75:F79) -> 2717.1456 | G80: =SUM(G75:G79) -> 2271.0272
A81: Costo de Tarifa mensual de 2 a 12 | C81: =C75+C77-78 -> 4640.466133 | D81: =D75+D77-78 -> 3498.962133 | E81: 3011.2992 | F81: 2639.1456 | G81: 2193.0272
A82: TOTAL ANUAL | C82: =C80+(C81*11) -> 55763.5936 | D82: =D80+(D81*11) -> 42065.5456 | E82: =E80+(E81*11) -> 36213.5904 | F82: =F80+(F81*11) -> 31747.7472 | G82: =G80+(G81*11) -> 26394.3264
A83: Ahorros en tarifas de prima para Dependientes | C83: =C41*Tablas!$K$2 -> 308.1866667 | D83: =D41*Tablas!$K$2 -> 205.24 | E83: =E41*Tablas!$K$2 -> 148.8666667 | F83: =F41*Tablas!$K$2 -> 145.6 | G83: =G41*Tablas!$K$2 -> 165.8533333
A85: Este presupuesto solamente tiene carácter informativo y en ningún momento expresa compromiso legal para suministrarle cobertura de seguro. La emisión de una póliza de seguro Bupa está sujeta a todas las evaluaciones de riesgo por parte de Bupa y a la recepción de todos los pagos de prima requeridos.

Sheet Global Premier
J1: RESUMEN DE BENEFICIOS | Y1: RESUMEN DE BENEFICIOS | AN1: RESUMEN DE BENEFICIOS
A5: Cotización de Seguro Médico Internacional Global Premier Health Plan Tarifas en US$ | Validas: 1 de marzo de 2026 | G5: REGIÓN
G7: ='INGRESO DE DATOS'!W21 -> Guayas/Santa Elena
A13: Nombre del Asegurado Titular | B13: =+'INGRESO DE DATOS'!$C$38 -> John Doe
A15: Número de adultos en la póliza | B15: =+'INGRESO DE DATOS'!$C$40 -> 2
A17: Número de Dependientes en la póliza | B17: =+'INGRESO DE DATOS'!$C$42 -> 4 | C17: =IF('INGRESO DE DATOS'!$P$2=TRUE, "Cotización para dependiente de 24 años","") -> 
A19: Edad del Asegurado Titular | B19: =+'INGRESO DE DATOS'!$C$44 -> 39 | D19: Edad del/la conyuge | G19: =+'INGRESO DE DATOS'!$C$46 -> 36
A21: Fecha de la cotización | B21: =NOW() -> 2026-03-13T12:16:11.470 | K21: FALSE | Z21: FALSE | AO21: FALSE
A23: =IF('INGRESO DE DATOS'!P3=TRUE,"Variante con coaseguro fuera del país de residencia: SI","Variante con coaseguro fuera del país de residencia: NO") -> Variante con coaseguro fuera del país de residencia: NO
C24: =1-(IF('INGRESO DE DATOS'!$T$21=9,'INGRESO DE DATOS'!U49,IF('INGRESO DE DATOS'!$T$21=7,'INGRESO DE DATOS'!U57,IF('INGRESO DE DATOS'!$T$21=10,'INGRESO DE DATOS'!U65,0)))) -> 1 | D24: =1-(IF('INGRESO DE DATOS'!$T$21=9,'INGRESO DE DATOS'!V49,IF('INGRESO DE DATOS'!$T$21=7,'INGRESO DE DATOS'!V57,IF('INGRESO DE DATOS'!$T$21=10,'INGRESO DE DATOS'!V65,0)))) -> 1 | E24: =1-(IF('INGRESO DE DATOS'!$T$21=9,'INGRESO DE DATOS'!W49,IF('INGRESO DE DATOS'!$T$21=7,'INGRESO DE DATOS'!W57,IF('INGRESO DE DATOS'!$T$21=10,'INGRESO DE DATOS'!W65,0)))) -> 1 | F24: =1-(IF('INGRESO DE DATOS'!$T$21=9,'INGRESO DE DATOS'!X49,IF('INGRESO DE DATOS'!$T$21=7,'INGRESO DE DATOS'!X57,IF('INGRESO DE DATOS'!$T$21=10,'INGRESO DE DATOS'!X65,0)))) -> 1 | G24: =1-(IF('INGRESO DE DATOS'!$T$21=9,'INGRESO DE DATOS'!Y49,IF('INGRESO DE DATOS'!$T$21=7,'INGRESO DE DATOS'!Y57,IF('INGRESO DE DATOS'!$T$21=10,'INGRESO DE DATOS'!Y65,0)))) -> 1
A25: Deducibles | C25: PLAN 1 | D25: PLAN 2 | E25: PLAN 3 | F25: PLAN 4 | G25: PLAN 5
A26: En el país de residencia | C26: 250 | D26: 2000 | E26: 5000 | F26: 10000 | G26: 20000
A27: Fuera del país de residencia | C27: 5000 | D27: 2000 | E27: 5000 | F27: 10000 | G27: 20000
A29: TARIFAS ANUALES
A30: Prima para Asegurado Titular | C30: =(VLOOKUP($B$19,Tablas!$A$81:$G$147,3,TRUE)*C24)+75 -> 13578 | D30: =(VLOOKUP($B$19,Tablas!$A$81:$G$147,4,TRUE)*D24)+75 -> 11463 | E30: =(VLOOKUP($B$19,Tablas!$A$81:$G$147,5,TRUE)*E24)+75 -> 8633 | F30: =(VLOOKUP($B$19,Tablas!$A$81:$G$147,6,TRUE)*F24)+75 -> 5945 | G30: =(VLOOKUP($B$19,Tablas!$A$81:$G$147,7,TRUE)*G24)+75 -> 4678
A31: Prima para conyuge | C31: =(IF($B$15=1,0,(VLOOKUP($G$19,Tablas!$A$81:$G$147,3,TRUE)))*C24) -> 13503 | D31: =(IF($B$15=1,0,(VLOOKUP($G$19,Tablas!$A$81:$G$147,4,TRUE)))*D24) -> 11388 | E31: =(IF($B$15=1,0,(VLOOKUP($G$19,Tablas!$A$81:$G$147,5,TRUE)))*E24) -> 8558 | F31: =(IF($B$15=1,0,(VLOOKUP($G$19,Tablas!$A$81:$G$147,6,TRUE)))*F24) -> 5870 | G31: =(IF($B$15=1,0,(VLOOKUP($G$19,Tablas!$A$81:$G$147,7,TRUE)))*G24) -> 4603
A32: Prima para hijo (s) | C32: =(IF($B$17=0,0,(VLOOKUP($B$17,Tablas!$A$148:$G$150,3,TRUE)))*C24) -> 2840 | D32: =(IF($B$17=0,0,(VLOOKUP($B$17,Tablas!$A$148:$G$150,4,TRUE)))*D24) -> 2684 | E32: =(IF($B$17=0,0,(VLOOKUP($B$17,Tablas!$A$148:$G$150,5,TRUE)))*E24) -> 2034 | F32: =(IF($B$17=0,0,(VLOOKUP($B$17,Tablas!$A$148:$G$150,6,TRUE)))*F24) -> 1858 | G32: =(IF($B$17=0,0,(VLOOKUP($B$17,Tablas!$A$148:$G$150,7,TRUE)))*G24) -> 1777
A33: Total de Prima neta | C33: =SUM(C30:C32) -> 29921 | D33: =SUM(D30:D32) -> 25535 | E33: =SUM(E30:E32) -> 19225 | F33: =SUM(F30:F32) -> 13673 | G33: =SUM(G30:G32) -> 11058
A34: Contribución 3.5% Superintendencia de Bancos Contribución 0.5% Seguro Social Campesino | C34: =C33*Tablas!$X$3 -> 1196.84 | D34: =D33*Tablas!$X$3 -> 1021.4 | E34: =E33*Tablas!$X$3 -> 769 | F34: =F33*Tablas!$X$3 -> 546.92 | G34: =G33*Tablas!$X$3 -> 442.32
A35: VAT (5%) :
A36: ITBMS (7%)
A37: TOTAL ANUAL | C37: =SUM(C33:C36) -> 31117.84 | D37: =SUM(D33:D36) -> 26556.4 | E37: =SUM(E33:E36) -> 19994 | F37: =SUM(F33:F36) -> 14219.92 | G37: =SUM(G33:G36) -> 11500.32
A39: TARIFAS SEMESTRALES
A40: Prima para Asegurado Titular | C40: =(C30-75)*Tablas!$K$4+75 -> 7231.59 | D40: =(D30-75)*Tablas!$K$4+75 -> 6110.64 | E40: =(E30-75)*Tablas!$K$4+75 -> 4610.74 | F40: =(F30-75)*Tablas!$K$4+75 -> 3186.1 | G40: =(G30-75)*Tablas!$K$4+75 -> 2514.59
A41: Prima para conyuge | C41: =C31*Tablas!$K$4 -> 7156.59 | D41: =D31*Tablas!$K$4 -> 6035.64 | E41: =E31*Tablas!$K$4 -> 4535.74 | F41: =F31*Tablas!$K$4 -> 3111.1 | G41: =G31*Tablas!$K$4 -> 2439.59
A42: Prima para hijo (s) | C42: =C32*Tablas!$K$4 -> 1505.2 | D42: =D32*Tablas!$K$4 -> 1422.52 | E42: =E32*Tablas!$K$4 -> 1078.02 | F42: =F32*Tablas!$K$4 -> 984.74 | G42: =G32*Tablas!$K$4 -> 941.81
A43: Total de Prima neta | C43: =SUM(C40:C42) -> 15893.38 | D43: =SUM(D40:D42) -> 13568.8 | E43: =SUM(E40:E42) -> 10224.5 | F43: =SUM(F40:F42) -> 7281.94 | G43: =SUM(G40:G42) -> 5895.99
A44: Ajuste por la variante con coaseguro fuera del país de residencia | C44: =IF('INGRESO DE DATOS'!$P$3,C43*-15%,0) -> 0 | D44: =IF('INGRESO DE DATOS'!$P$3,D43*-15%,0) -> 0 | E44: =IF('INGRESO DE DATOS'!$P$3,E43*-15%,0) -> 0 | F44: =IF('INGRESO DE DATOS'!$P$3,F43*-15%,0) -> 0
A45: =A34 -> Contribución 3.5% Superintendencia de Bancos Contribución 0.5% Seguro Social Campesino | C45: =C43*Tablas!$X$3 -> 635.7352 | D45: =D43*Tablas!$X$3 -> 542.752 | E45: =E43*Tablas!$X$3 -> 408.98 | F45: =F43*Tablas!$X$3 -> 291.2776 | G45: =G43*Tablas!$X$3 -> 235.8396
A46: VAT (5%) :
A47: ITBMS (7%)
A48: TOTAL de primera cuota | C48: =SUM(C43:C47) -> 16529.1152 | D48: =SUM(D43:D47) -> 14111.552 | E48: =SUM(E43:E47) -> 10633.48 | F48: =SUM(F43:F47) -> 7573.2176 | G48: =SUM(G43:G47) -> 6131.8296
A49: Costo de segunda cuota | C49: =C43+C45-78 -> 16451.1152 | D49: =D43+D45-78 -> 14033.552 | E49: 10555.48 | F49: 7495.2176 | G49: =G43+G45-78 -> 6053.8296
A50: TOTAL ANUAL | C50: =C48+C49 -> 32980.2304 | D50: =D48+D49 -> 28145.104 | E50: =E48+E49 -> 21188.96 | F50: =F48+F49 -> 15068.4352 | G50: =G48+G49 -> 12185.6592
A52: TARIFAS TRIMESTRALES
A53: Prima para Asegurado Titular | C53: =(C30-75)*Tablas!$K$3+75 -> 3788.325 | D53: =(D30-75)*Tablas!$K$3+75 -> 3206.7 | E53: =(E30-75)*Tablas!$K$3+75 -> 2428.45 | F53: =(F30-75)*Tablas!$K$3+75 -> 1689.25 | G53: =(G30-75)*Tablas!$K$3+75 -> 1340.825
A54: Prima para conyuge | C54: =C31*Tablas!$K$3 -> 3713.325 | D54: =D31*Tablas!$K$3 -> 3131.7 | E54: =E31*Tablas!$K$3 -> 2353.45 | F54: =F31*Tablas!$K$3 -> 1614.25 | G54: =G31*Tablas!$K$3 -> 1265.825
A55: Prima para hijo (s) | C55: =C32*Tablas!$K$3 -> 781 | D55: =D32*Tablas!$K$3 -> 738.1 | E55: =E32*Tablas!$K$3 -> 559.35 | F55: =F32*Tablas!$K$3 -> 510.95 | G55: =G32*Tablas!$K$3 -> 488.675
A56: Total de Prima neta | C56: =SUM(C53:C55) -> 8282.65 | D56: =SUM(D53:D55) -> 7076.5 | E56: =SUM(E53:E55) -> 5341.25 | F56: =SUM(F53:F55) -> 3814.45 | G56: =SUM(G53:G55) -> 3095.325
A57: Ajuste por la variante con coaseguro fuera del país de residencia | C57: =IF('INGRESO DE DATOS'!$P$3,C56*-15%,0) -> 0 | D57: =IF('INGRESO DE DATOS'!$P$3,D56*-15%,0) -> 0 | E57: =IF('INGRESO DE DATOS'!$P$3,E56*-15%,0) -> 0 | F57: =IF('INGRESO DE DATOS'!$P$3,F56*-15%,0) -> 0
A58: =A34 -> Contribución 3.5% Superintendencia de Bancos Contribución 0.5% Seguro Social Campesino | C58: =C56*Tablas!$X$3 -> 331.306 | D58: =D56*Tablas!$X$3 -> 283.06 | E58: =E56*Tablas!$X$3 -> 213.65 | F58: =F56*Tablas!$X$3 -> 152.578 | G58: =G56*Tablas!$X$3 -> 123.813
A59: VAT (5%) :
A60: ITBMS (7%)
A61: TOTAL de primera cuota | C61: =SUM(C56:C60) -> 8613.956 | D61: =SUM(D56:D60) -> 7359.56 | E61: =SUM(E56:E60) -> 5554.9 | F61: =SUM(F56:F60) -> 3967.028 | G61: =SUM(G56:G60) -> 3219.138
A62: Costo de tarifa trimestral 2 a 4 | C62: =C56+C58-78 -> 8535.956 | D62: =D56+D58-78 -> 7281.56 | E62: 5476.9 | F62: 3889.028 | G62: =G56+G58-78 -> 3141.138
A63: TOTAL ANUAL | C63: =C61+(C62*3) -> 34221.824 | D63: =D61+(D62*3) -> 29204.24 | E63: =E61+(E62*3) -> 21985.6 | F63: =F61+(F62*3) -> 15634.112 | G63: =G61+(G62*3) -> 12642.552
A65: TARIFAS MENSUALES
A66: Prima para Asegurado Titular | C66: =(C30-75)*Tablas!$K$2+75 -> 1335.28 | D66: =(D30-75)*Tablas!$K$2+75 -> 1137.88 | E66: =(E30-75)*Tablas!$K$2+75 -> 873.7466667 | F66: =(F30-75)*Tablas!$K$2+75 -> 622.8666667 | G66: =(G30-75)*Tablas!$K$2+75 -> 504.6133333
A67: Prima para conyuge | C67: =C31*Tablas!$K$2 -> 1260.28 | D67: =D31*Tablas!$K$2 -> 1062.88 | E67: =E31*Tablas!$K$2 -> 798.7466667 | F67: =F31*Tablas!$K$2 -> 547.8666667 | G67: =G31*Tablas!$K$2 -> 429.6133333
A68: Prima para hijo (s) | C68: =C32*Tablas!$K$2 -> 265.0666667 | D68: =D32*Tablas!$K$2 -> 250.5066667 | E68: =E32*Tablas!$K$2 -> 189.84 | F68: =F32*Tablas!$K$2 -> 173.4133333 | G68: =G32*Tablas!$K$2 -> 165.8533333
A69: Total de Prima neta | C69: =SUM(C66:C68) -> 2860.626667 | D69: =SUM(D66:D68) -> 2451.266667 | E69: =SUM(E66:E68) -> 1862.333333 | F69: =SUM(F66:F68) -> 1344.146667 | G69: =SUM(G66:G68) -> 1100.08
A70: Ajuste por la variante con coaseguro fuera del país de residencia | C70: =IF('INGRESO DE DATOS'!$P$3,C69*-15%,0) -> 0 | D70: =IF('INGRESO DE DATOS'!$P$3,D69*-15%,0) -> 0 | E70: =IF('INGRESO DE DATOS'!$P$3,E69*-15%,0) -> 0 | F70: =IF('INGRESO DE DATOS'!$P$3,F69*-15%,0) -> 0
A71: =A58 -> Contribución 3.5% Superintendencia de Bancos Contribución 0.5% Seguro Social Campesino | C71: =C69*Tablas!$X$3 -> 114.4250667 | D71: =D69*Tablas!$X$3 -> 98.05066667 | E71: =E69*Tablas!$X$3 -> 74.49333333 | F71: =F69*Tablas!$X$3 -> 53.76586667 | G71: =G69*Tablas!$X$3 -> 44.0032
A72: VAT (5%) :
A73: ITBMS (7%)
A74: TOTAL de primera cuota | C74: =SUM(C69:C73) -> 2975.051733 | D74: =SUM(D69:D73) -> 2549.317333 | E74: =SUM(E69:E73) -> 1936.826667 | F74: =SUM(F69:F73) -> 1397.912533 | G74: =SUM(G69:G73) -> 1144.0832
A75: Costo de Tarifa mensual de 2 a 12 | C75: =C69+C71-78 -> 2897.051733 | D75: =D69+D71-78 -> 2471.317333 | E75: 1858.826667 | F75: 1319.912533 | G75: =G69+G71-78 -> 1066.0832
A76: TOTAL ANUAL | C76: =C74+(C75*11) -> 34842.6208 | D76: =D74+(D75*11) -> 29733.808 | E76: =E74+(E75*11) -> 22383.92 | F76: =F74+(F75*11) -> 15916.9504 | G76: =G74+(G75*11) -> 12870.9984
A78: Este presupuesto solamente tiene carácter informativo y en ningún momento expresa compromiso legal para suministrarle cobertura de seguro. La emisión de una póliza de seguro Bupa está sujeta a todas las evaluaciones de riesgo por parte de Bupa y a la recepción de todos los pagos de prima requeridos.

Sheet Global Select
J1: RESUMEN DE BENEFICIOS | Y1: RESUMEN DE BENEFICIOS | AN1: RESUMEN DE BENEFICIOS
A5: Cotización de Seguro Médico Internacional Global Select Health Plan Tarifas en US$ | Validas: 1 de marzo de 2026 | G5: REGIÓN
G7: ='INGRESO DE DATOS'!W21 -> Guayas/Santa Elena
A13: Nombre del Asegurado Titular | B13: =+'INGRESO DE DATOS'!$C$38 -> John Doe
A15: Número de adultos en la póliza | B15: =+'INGRESO DE DATOS'!$C$40 -> 2
A17: Número de Dependientes en la póliza | B17: =+'INGRESO DE DATOS'!$C$42 -> 4 | C17: =IF('INGRESO DE DATOS'!$P$2=TRUE, "Cotización para dependiente de 24 años","") -> 
A19: Edad del Asegurado Titular | B19: =+'INGRESO DE DATOS'!$C$44 -> 39 | E19: Edad del/la conyuge | G19: =+'INGRESO DE DATOS'!$C$46 -> 36
A21: Fecha de la cotización | B21: =NOW() -> 2026-03-13T12:16:11.470 | K21: FALSE
A23: =IF('INGRESO DE DATOS'!P3=TRUE,"Variante con coaseguro fuera del país de residencia: SI","Variante con coaseguro fuera del país de residencia: NO") -> Variante con coaseguro fuera del país de residencia: NO
C24: =1-(IF('INGRESO DE DATOS'!$T$21=9,'INGRESO DE DATOS'!U53,IF('INGRESO DE DATOS'!$T$21=7,'INGRESO DE DATOS'!U61,IF('INGRESO DE DATOS'!$T$21=10,'INGRESO DE DATOS'!U69,0)))) -> 1 | D24: =1-(IF('INGRESO DE DATOS'!$T$21=9,'INGRESO DE DATOS'!V53,IF('INGRESO DE DATOS'!$T$21=7,'INGRESO DE DATOS'!V61,IF('INGRESO DE DATOS'!$T$21=10,'INGRESO DE DATOS'!V69,0)))) -> 1 | E24: =1-(IF('INGRESO DE DATOS'!$T$21=9,'INGRESO DE DATOS'!W53,IF('INGRESO DE DATOS'!$T$21=7,'INGRESO DE DATOS'!W61,IF('INGRESO DE DATOS'!$T$21=10,'INGRESO DE DATOS'!W69,0)))) -> 1 | F24: =1-(IF('INGRESO DE DATOS'!$T$21=9,'INGRESO DE DATOS'!X53,IF('INGRESO DE DATOS'!$T$21=7,'INGRESO DE DATOS'!X61,IF('INGRESO DE DATOS'!$T$21=10,'INGRESO DE DATOS'!X69,0)))) -> 1 | G24: =1-(IF('INGRESO DE DATOS'!$T$21=9,'INGRESO DE DATOS'!Y53,IF('INGRESO DE DATOS'!$T$21=7,'INGRESO DE DATOS'!Y61,IF('INGRESO DE DATOS'!$T$21=10,'INGRESO DE DATOS'!Y69,0)))) -> 1
A25: DEDUCIBLES | C25: PLAN 1 | D25: PLAN 2 | E25: PLAN 3 | F25: PLAN 4 | G25: PLAN 5
A26: En el país de residencia | C26: 250 | D26: 2000 | E26: 5000 | F26: 10000 | G26: 20000
A27: Fuera del país de residencia | C27: 5000 | D27: 2000 | E27: 5000 | F27: 10000 | G27: 20000
A29: TARIFAS ANUALES
A30: Prima para Asegurado Titular | C30: =(VLOOKUP($B$19,Tablas!$A$156:$G$222,3,TRUE)*C24)+75 -> 8874 | D30: =(VLOOKUP($B$19,Tablas!$A$156:$G$222,4,TRUE)*D24)+75 -> 8566 | E30: =(VLOOKUP($B$19,Tablas!$A$156:$G$222,5,TRUE)*E24)+75 -> 5871 | F30: =(VLOOKUP($B$19,Tablas!$A$156:$G$222,6,TRUE)*F24)+75 -> 4116 | G30: =(VLOOKUP($B$19,Tablas!$A$156:$G$222,7,TRUE)*G24)+75 -> 3245
A31: Prima para conyuge | C31: =(IF($B$15=1,0,(VLOOKUP($G$19,Tablas!$A$156:$G$222,3,TRUE)))*C24) -> 8799 | D31: =(IF($B$15=1,0,(VLOOKUP($G$19,Tablas!$A$156:$G$222,4,TRUE)))*D24) -> 8491 | E31: =(IF($B$15=1,0,(VLOOKUP($G$19,Tablas!$A$156:$G$222,5,TRUE)))*E24) -> 5796 | F31: =(IF($B$15=1,0,(VLOOKUP($G$19,Tablas!$A$156:$G$222,6,TRUE)))*F24) -> 4041 | G31: =(IF($B$15=1,0,(VLOOKUP($G$19,Tablas!$A$156:$G$222,7,TRUE)))*G24) -> 3170
A32: Prima para hijo (s) | C32: =(IF($B$17=0,0,(VLOOKUP($B$17,Tablas!$A$223:$G$225,3,TRUE)))*C24) -> 3038 | D32: =(IF($B$17=0,0,(VLOOKUP($B$17,Tablas!$A$223:$G$225,4,TRUE)))*D24) -> 2148 | E32: =(IF($B$17=0,0,(VLOOKUP($B$17,Tablas!$A$223:$G$225,5,TRUE)))*E24) -> 1524 | F32: =(IF($B$17=0,0,(VLOOKUP($B$17,Tablas!$A$223:$G$225,6,TRUE)))*F24) -> 1420 | G32: =(IF($B$17=0,0,(VLOOKUP($B$17,Tablas!$A$223:$G$225,7,TRUE)))*G24) -> 1302
A33: Total de Prima neta | C33: =SUM(C30:C32) -> 20711 | D33: =SUM(D30:D32) -> 19205 | E33: =SUM(E30:E32) -> 13191 | F33: =SUM(F30:F32) -> 9577 | G33: =SUM(G30:G32) -> 7717
A34: Ajuste por la variante con coaseguro fuera del país de residencia | C34: =IF('INGRESO DE DATOS'!$P$3,C33*-15%,0) -> 0 | D34: =IF('INGRESO DE DATOS'!$P$3,D33*-15%,0) -> 0 | E34: =IF('INGRESO DE DATOS'!$P$3,E33*-15%,0) -> 0 | F34: =IF('INGRESO DE DATOS'!$P$3,F33*-15%,0) -> 0
A35: Contribución 3.5% Superintendencia de Bancos Contribución 0.5% Seguro Social Campesino | C35: =C33*Tablas!$X$3 -> 828.44 | D35: =D33*Tablas!$X$3 -> 768.2 | E35: =E33*Tablas!$X$3 -> 527.64 | F35: =F33*Tablas!$X$3 -> 383.08 | G35: =G33*Tablas!$X$3 -> 308.68
A36: VAT (5%) :
A37: ITBMS (7%)
A38: TOTAL ANUAL | C38: =SUM(C33:C37) -> 21539.44 | D38: =SUM(D33:D37) -> 19973.2 | E38: =SUM(E33:E37) -> 13718.64 | F38: =SUM(F33:F37) -> 9960.08 | G38: =SUM(G33:G37) -> 8025.68
A40: TARIFAS SEMESTRALES
A41: Prima para Asegurado Titular | C41: =(C30-75)*Tablas!$K$4+75 -> 4738.47 | D41: =(D30-75)*Tablas!$K$4+75 -> 4575.23 | E41: =(E30-75)*Tablas!$K$4+75 -> 3146.88 | F41: =(F30-75)*Tablas!$K$4+75 -> 2216.73 | G41: =(G30-75)*Tablas!$K$4+75 -> 1755.1
A42: Prima para conyuge | C42: =C31*Tablas!$K$4 -> 4663.47 | D42: =D31*Tablas!$K$4 -> 4500.23 | E42: =E31*Tablas!$K$4 -> 3071.88 | F42: =F31*Tablas!$K$4 -> 2141.73 | G42: =G31*Tablas!$K$4 -> 1680.1
A43: Prima para hijo (s) | C43: =C32*Tablas!$K$4 -> 1610.14 | D43: =D32*Tablas!$K$4 -> 1138.44 | E43: =E32*Tablas!$K$4 -> 807.72 | F43: =F32*Tablas!$K$4 -> 752.6 | G43: =G32*Tablas!$K$4 -> 690.06
A44: Total de Prima neta | C44: =SUM(C41:C43) -> 11012.08 | D44: =SUM(D41:D43) -> 10213.9 | E44: =SUM(E41:E43) -> 7026.48 | F44: =SUM(F41:F43) -> 5111.06 | G44: =SUM(G41:G43) -> 4125.26
A45: Ajuste por la variante con coaseguro fuera del país de residencia | C45: =IF('INGRESO DE DATOS'!$P$3,C44*-15%,0) -> 0 | D45: =IF('INGRESO DE DATOS'!$P$3,D44*-15%,0) -> 0 | E45: =IF('INGRESO DE DATOS'!$P$3,E44*-15%,0) -> 0 | F45: =IF('INGRESO DE DATOS'!$P$3,F44*-15%,0) -> 0
A46: =A35 -> Contribución 3.5% Superintendencia de Bancos Contribución 0.5% Seguro Social Campesino | C46: =C44*Tablas!$X$3 -> 440.4832 | D46: =D44*Tablas!$X$3 -> 408.556 | E46: =E44*Tablas!$X$3 -> 281.0592 | F46: =F44*Tablas!$X$3 -> 204.4424 | G46: =G44*Tablas!$X$3 -> 165.0104
A47: VAT (5%) :
A48: ITBMS (7%)
A49: TOTAL de primera cuota | C49: =SUM(C44:C48) -> 11452.5632 | D49: =SUM(D44:D48) -> 10622.456 | E49: =SUM(E44:E48) -> 7307.5392 | F49: =SUM(F44:F48) -> 5315.5024 | G49: =SUM(G44:G48) -> 4290.2704
A50: Costo de segunda cuota | C50: =C44+C46-78 -> 11374.5632 | D50: =D44+D46-78 -> 10544.456 | E50: 7229.5392 | F50: 5237.5024 | G50: 4212.2704
A51: TOTAL ANUAL | C51: =C49+C50 -> 22827.1264 | D51: =D49+D50 -> 21166.912 | E51: =E49+E50 -> 14537.0784 | F51: =F49+F50 -> 10553.0048 | G51: =G49+G50 -> 8502.5408
A53: TARIFAS TRIMESTRALES
A54: Prima para Asegurado Titular | C54: =(C30-75)*Tablas!$K$3+75 -> 2494.725 | D54: =(D30-75)*Tablas!$K$3+75 -> 2410.025 | E54: =(E30-75)*Tablas!$K$3+75 -> 1668.9 | F54: =(F30-75)*Tablas!$K$3+75 -> 1186.275 | G54: =(G30-75)*Tablas!$K$3+75 -> 946.75
A55: Prima para conyuge | C55: =C31*Tablas!$K$3 -> 2419.725 | D55: =D31*Tablas!$K$3 -> 2335.025 | E55: =E31*Tablas!$K$3 -> 1593.9 | F55: =F31*Tablas!$K$3 -> 1111.275 | G55: =G31*Tablas!$K$3 -> 871.75
A56: Prima para hijo (s) | C56: =C32*Tablas!$K$3 -> 835.45 | D56: =D32*Tablas!$K$3 -> 590.7 | E56: =E32*Tablas!$K$3 -> 419.1 | F56: =F32*Tablas!$K$3 -> 390.5 | G56: =G32*Tablas!$K$3 -> 358.05
A57: Total de Prima neta | C57: =SUM(C54:C56) -> 5749.9 | D57: =SUM(D54:D56) -> 5335.75 | E57: =SUM(E54:E56) -> 3681.9 | F57: =SUM(F54:F56) -> 2688.05 | G57: =SUM(G54:G56) -> 2176.55
A58: Ajuste por la variante con coaseguro fuera del país de residencia | C58: =IF('INGRESO DE DATOS'!$P$3,C57*-15%,0) -> 0 | D58: =IF('INGRESO DE DATOS'!$P$3,D57*-15%,0) -> 0 | E58: =IF('INGRESO DE DATOS'!$P$3,E57*-15%,0) -> 0 | F58: =IF('INGRESO DE DATOS'!$P$3,F57*-15%,0) -> 0
A59: =A35 -> Contribución 3.5% Superintendencia de Bancos Contribución 0.5% Seguro Social Campesino | C59: =C57*Tablas!$X$3 -> 229.996 | D59: =D57*Tablas!$X$3 -> 213.43 | E59: =E57*Tablas!$X$3 -> 147.276 | F59: =F57*Tablas!$X$3 -> 107.522 | G59: =G57*Tablas!$X$3 -> 87.062
A60: VAT (5%) :
A61: ITBMS (7%)
A62: TOTAL de primera cuota | C62: =SUM(C57:C61) -> 5979.896 | D62: =SUM(D57:D61) -> 5549.18 | E62: =SUM(E57:E61) -> 3829.176 | F62: =SUM(F57:F61) -> 2795.572 | G62: =SUM(G57:G61) -> 2263.612
A63: Costo de tarifa trimestral 2 a 4 | C63: =C57+C59-78 -> 5901.896 | D63: =D57+D59-78 -> 5471.18 | E63: 3751.176 | F63: 2717.572 | G63: 2185.612
A64: TOTAL ANUAL | C64: =C62+(C63*3) -> 23685.584 | D64: =D62+(D63*3) -> 21962.72 | E64: =E62+(E63*3) -> 15082.704 | F64: =F62+(F63*3) -> 10948.288 | G64: =G62+(G63*3) -> 8820.448
A66: TARIFAS MENSUALES
A67: Prima para Asegurado Titular | C67: =(C30-75)*Tablas!$K$2+75 -> 896.24 | D67: =(D30-75)*Tablas!$K$2+75 -> 867.4933333 | E67: =(E30-75)*Tablas!$K$2+75 -> 615.96 | F67: =(F30-75)*Tablas!$K$2+75 -> 452.16 | G67: =(G30-75)*Tablas!$K$2+75 -> 370.8666667
A68: Prima para conyuge | C68: =C31*Tablas!$K$2 -> 821.24 | D68: =D31*Tablas!$K$2 -> 792.4933333 | E68: =E31*Tablas!$K$2 -> 540.96 | F68: =F31*Tablas!$K$2 -> 377.16 | G68: =G31*Tablas!$K$2 -> 295.8666667
A69: Prima para hijo (s) | C69: =C32*Tablas!$K$2 -> 283.5466667 | D69: =D32*Tablas!$K$2 -> 200.48 | E69: =E32*Tablas!$K$2 -> 142.24 | F69: =F32*Tablas!$K$2 -> 132.5333333 | G69: =G32*Tablas!$K$2 -> 121.52
A70: Total de Prima neta | C70: =SUM(C67:C69) -> 2001.026667 | D70: =SUM(D67:D69) -> 1860.466667 | E70: =SUM(E67:E69) -> 1299.16 | F70: =SUM(F67:F69) -> 961.8533333 | G70: =SUM(G67:G69) -> 788.2533333
A71: Ajuste por la variante con coaseguro fuera del país de residencia | C71: =IF('INGRESO DE DATOS'!$P$3,C70*-15%,0) -> 0 | D71: =IF('INGRESO DE DATOS'!$P$3,D70*-15%,0) -> 0 | E71: =IF('INGRESO DE DATOS'!$P$3,E70*-15%,0) -> 0 | F71: =IF('INGRESO DE DATOS'!$P$3,F70*-15%,0) -> 0
A72: =A59 -> Contribución 3.5% Superintendencia de Bancos Contribución 0.5% Seguro Social Campesino | C72: =C70*Tablas!$X$3 -> 80.04106667 | D72: =D70*Tablas!$X$3 -> 74.41866667 | E72: =E70*Tablas!$X$3 -> 51.9664 | F72: =F70*Tablas!$X$3 -> 38.47413333 | G72: =G70*Tablas!$X$3 -> 31.53013333
A73: VAT (5%) :
A74: ITBMS (7%)
A75: TOTAL de primera cuota | C75: =SUM(C70:C74) -> 2081.067733 | D75: =SUM(D70:D74) -> 1934.885333 | E75: =SUM(E70:E74) -> 1351.1264 | F75: =SUM(F70:F74) -> 1000.327467 | G75: =SUM(G70:G74) -> 819.7834667
A76: Costo de Tarifa mensual de 2 a 12 | C76: =C70+C72-78 -> 2003.067733 | D76: =D70+D72-78 -> 1856.885333 | E76: 1273.1264 | F76: 922.3274667 | G76: 741.7834667
A77: TOTAL ANUAL | C77: =C75+(C76*11) -> 24114.8128 | D77: =D75+(D76*11) -> 22360.624 | E77: =E75+(E76*11) -> 15355.5168 | F77: =F75+(F76*11) -> 11145.9296 | G77: =G75+(G76*11) -> 8979.4016
A79: Este presupuesto solamente tiene carácter informativo y en ningún momento expresa compromiso legal para suministrarle cobertura de seguro. La emisión de una póliza de seguro Bupa está sujeta a todas las evaluaciones de riesgo por parte de Bupa y a la recepción de todos los pagos de prima requeridos.

Sheet Resumen Tarifas
A5: Cotización de Seguro Médico Internacional Global Major Health Plans Resumen de Tarifas Tarifas en US$ | Validas: 1 de marzo de 2026 | F5: REGIÓN
F7: ='INGRESO DE DATOS'!W21 -> Guayas/Santa Elena
A12: ç
A13: Nombre del Asegurado Titular | B13: =+'INGRESO DE DATOS'!$C$38 -> John Doe
A15: Número de adultos en la póliza | B15: =+'INGRESO DE DATOS'!$C$40 -> 2
A17: Número de Dependientes en la póliza | B17: =+'INGRESO DE DATOS'!$C$42 -> 4 | C17: =IF('INGRESO DE DATOS'!$P$2=TRUE, "Cotización para dependiente de 24 años","") -> 
A19: Edad del Asegurado Titular | B19: =+'INGRESO DE DATOS'!$C$44 -> 39 | E19: Edad del/la conyuge | F19: =+'INGRESO DE DATOS'!$C$46 -> 36
A21: Fecha de la cotización | B21: =NOW() -> 2026-03-13T12:16:11.470
A23: GLOBAL ULTIMATE HEALTH PLAN
A24: DEDUCIBLES | B24: PLAN 1 | C24: PLAN 2
A25: En el país de residencia | B25: $0 | C25: 1000
A26: Fuera del país de residencia | B26: $0 | C26: 1000
B27: TARIFAS ANUALES
B28: ='Global Ultimate'!C38 -> 131594.32 | C28: ='Global Ultimate'!D38 -> 94817.84
B29: TARIFAS SEMESTRALES
B30: ='Global Ultimate'!C51 -> 139485.2992 | C30: ='Global Ultimate'!D51 -> 100502.2304
B31: TARIFAS TRIMESTRALES
B32: ='Global Ultimate'!C64 -> 144745.952 | C32: ='Global Ultimate'!D64 -> 104291.824
B33: TARIFAS MENSUALES
B34: ='Global Ultimate'!C77 -> 147376.2784 | C34: ='Global Ultimate'!D77 -> 106186.6208
A35: Ahorros en tarifas de prima para Dependientes * | B35: ='Global Ultimate'!C39 -> 11805 | C35: ='Global Ultimate'!D39 -> 8747
A37: GLOBAL ELITE HEALTH PLAN
A38: DEDUCIBLES | B38: PLAN 1 | C38: PLAN 2 | D38: PLAN 3 | E38: PLAN 4 | F38: PLAN 5
A39: En el país de residencia | B39: 250 | C39: 2000 | D39: 3500 | E39: 5000 | F39: 10000
A40: Fuera del país de residencia | B40: 5000 | C40: 2000 | D40: 3500 | E40: 5000 | F40: 10000
B41: TARIFAS ANUALES
B42: =+'Global Elite'!C40 -> 49797.28 | C42: =+'Global Elite'!D40 -> 37566.88 | D42: =+'Global Elite'!E40 -> 32341.92 | E42: =+'Global Elite'!F40 -> 28354.56 | F42: =+'Global Elite'!G40 -> 23574.72
B43: TARIFAS SEMESTRALES
B44: =+'Global Elite'!C54 -> 52780.4368 | C44: =+'Global Elite'!D54 -> 39816.2128 | D44: =+'Global Elite'!E54 -> 34277.7552 | E44: =+'Global Elite'!F54 -> 30051.1536 | F44: =+'Global Elite'!G54 -> 24984.5232
B45: TARIFAS TRIMESTRALES
B46: =+'Global Elite'!C68 -> 54769.208 | C46: =+'Global Elite'!D68 -> 41315.768 | D46: =+'Global Elite'!E68 -> 35568.312 | E46: =+'Global Elite'!F68 -> 31182.216 | F46: =+'Global Elite'!G68 -> 25924.392
B47: TARIFAS MENSUALES
B48: =+'Global Elite'!C82 -> 55763.5936 | C48: =+'Global Elite'!D82 -> 42065.5456 | D48: =+'Global Elite'!E82 -> 36213.5904 | E48: =+'Global Elite'!F82 -> 31747.7472 | F48: =+'Global Elite'!G82 -> 26394.3264
A49: Ahorros en tarifas de prima para Dependientes* | B49: =+'Global Elite'!C41 -> 3302 | C49: =+'Global Elite'!D41 -> 2199 | D49: =+'Global Elite'!E41 -> 1595 | E49: =+'Global Elite'!F41 -> 1560 | F49: =+'Global Elite'!G41 -> 1777
A51: GLOBAL PREMIER HEALTH PLAN
A52: DEDUCIBLES | B52: PLAN 1 | C52: PLAN 2 | D52: PLAN 3 | E52: PLAN 4 | F52: PLAN 4
A53: En el país de residencia | B53: 250 | C53: 2000 | D53: 5000 | E53: 10000 | F53: 10000
A54: Fuera del país de residencia | B54: 5000 | C54: 2000 | D54: 5000 | E54: 10000 | F54: 10000
B55: TARIFAS ANUALES
B56: =+'Global Premier'!C37 -> 31117.84 | C56: =+'Global Premier'!D37 -> 26556.4 | D56: =+'Global Premier'!E37 -> 19994 | E56: =+'Global Premier'!F37 -> 14219.92 | F56: ='Global Premier'!G37 -> 11500.32
B57: TARIFAS SEMESTRALES
B58: =+'Global Premier'!C50 -> 32980.2304 | C58: =+'Global Premier'!D50 -> 28145.104 | D58: =+'Global Premier'!E50 -> 21188.96 | E58: =+'Global Premier'!F50 -> 15068.4352 | F58: ='Global Premier'!G50 -> 12185.6592
B59: TARIFAS TRIMESTRALES
B60: =+'Global Premier'!C63 -> 34221.824 | C60: =+'Global Premier'!D63 -> 29204.24 | D60: =+'Global Premier'!E63 -> 21985.6 | E60: =+'Global Premier'!F63 -> 15634.112 | F60: ='Global Premier'!G63 -> 12642.552
B61: TARIFAS MENSUALES
B62: =+'Global Premier'!C76 -> 34842.6208 | C62: =+'Global Premier'!D76 -> 29733.808 | D62: =+'Global Premier'!E76 -> 22383.92 | E62: =+'Global Premier'!F76 -> 15916.9504 | F62: ='Global Premier'!G76 -> 12870.9984
A64: GLOBAL SELECT HEALTH PLAN
A65: DEDUCIBLES | B65: PLAN 1 | C65: PLAN 2 | D65: PLAN 3 | E65: PLAN 4 | F65: PLAN 5
A66: En el país de residencia | B66: 250 | C66: 2000 | D66: 5000 | E66: 10000 | F66: 20000
A67: Fuera del país de residencia | B67: 5000 | C67: 2000 | D67: 5000 | E67: 10000 | F67: 20000
B68: TARIFAS ANUALES
B69: =+'Global Select'!C38 -> 21539.44 | C69: =+'Global Select'!D38 -> 19973.2 | D69: =+'Global Select'!E38 -> 13718.64 | E69: =+'Global Select'!F38 -> 9960.08 | F69: =+'Global Select'!G38 -> 8025.68
B70: TARIFAS SEMESTRALES
B71: =+'Global Select'!C51 -> 22827.1264 | C71: =+'Global Select'!D51 -> 21166.912 | D71: =+'Global Select'!E51 -> 14537.0784 | E71: =+'Global Select'!F51 -> 10553.0048 | F71: =+'Global Select'!G51 -> 8502.5408
B72: TARIFAS TRIMESTRALES
B73: =+'Global Select'!C64 -> 23685.584 | C73: =+'Global Select'!D64 -> 21962.72 | D73: =+'Global Select'!E64 -> 15082.704 | E73: =+'Global Select'!F64 -> 10948.288 | F73: =+'Global Select'!G64 -> 8820.448
B74: TARIFAS MENSUALES
B75: =+'Global Select'!C77 -> 24114.8128 | C75: =+'Global Select'!D77 -> 22360.624 | D75: =+'Global Select'!E77 -> 15355.5168 | E75: =+'Global Select'!F77 -> 11145.9296 | F75: =+'Global Select'!G77 -> 8979.4016
A77: Este presupuesto solamente tiene carácter informativo y en ningún momento expresa compromiso legal para suministrarle cobertura de seguro. La emisión de una póliza de seguro Bupa está sujeta a todas las evaluaciones de riesgo por parte de Bupa y a la recepción de todos los pagos de prima requeridos. Una tarifa administrativa de US$75 se cargará automáticamente al primer pago. *Basado en un modo de pago anual

Sheet Tablas (hidden)
A2: BUPA GLOBAL ELITE | I2: FACTOR MENSUAL: | K2: 0.09333333333 | M2: Descuento de 24 años | N2: ='INGRESO DE DATOS'!P31 -> 1 | O2: Ultimate | P2: Elite | Q2: Premier | R2: Select | S2: Major Medical | U2: Impuesto (14.94%) | X2: 1
A3: TARIFAS ANUALES | I3: FACTOR TRIMESTRAL: | K3: 0.275 | M3: Descuento de producto (%) | O3: ='INGRESO DE DATOS'!O40 -> 0 | P3: ='INGRESO DE DATOS'!P40 -> 0 | Q3: ='INGRESO DE DATOS'!Q40 -> 0 | R3: ='INGRESO DE DATOS'!R40 -> 0 | S3: ='INGRESO DE DATOS'!S40 -> 0 | U3: Total impuestos Bolivia | X3: 0.04
I4: FACTOR SEMIANUAL: | K4: 0.53 | M4: Factor para el descuento combinado | O4: ='INGRESO DE DATOS'!O48 -> 1 | P4: ='INGRESO DE DATOS'!P48 -> 1 | Q4: ='INGRESO DE DATOS'!Q48 -> 1 | R4: ='INGRESO DE DATOS'!R48 -> 1 | S4: ='INGRESO DE DATOS'!S48 -> 0
A5: EDAD | C5: 250 | D5: 2000 | E5: 3500 | F5: 5000 | G5: 10000 | I5: TARIFAS BASE | O5: TARIFAS BASE CON DESCUENTO
A6: 18 | C6: =O6*$X$2 -> 14069 | D6: =P6*$X$2 -> 10435 | E6: =Q6*$X$2 -> 9287 | F6: =R6*$X$2 -> 8522 | G6: =S6*$X$2 -> 6985 | I6: =IF('INGRESO DE DATOS'!$W$19=1,'Tablas Guyanas y Santa Elena'!C6,'Tablas Resto de Ecuador'!C6) -> 14069 | J6: =IF('INGRESO DE DATOS'!$W$19=1,'Tablas Guyanas y Santa Elena'!D6,'Tablas Resto de Ecuador'!D6) -> 10435 | K6: =IF('INGRESO DE DATOS'!$W$19=1,'Tablas Guyanas y Santa Elena'!E6,'Tablas Resto de Ecuador'!E6) -> 9287 | L6: =IF('INGRESO DE DATOS'!$W$19=1,'Tablas Guyanas y Santa Elena'!F6,'Tablas Resto de Ecuador'!F6) -> 8522 | M6: =IF('INGRESO DE DATOS'!$W$19=1,'Tablas Guyanas y Santa Elena'!G6,'Tablas Resto de Ecuador'!G6) -> 6985 | O6: =I6*$P$4 -> 14069 | P6: =J6*$P$4 -> 10435 | Q6: =K6*$P$4 -> 9287 | R6: =L6*$P$4 -> 8522 | S6: =M6*$P$4 -> 6985
A7: 19 | C7: =O7*$X$2 -> 14069 | D7: =P7*$X$2 -> 10435 | E7: =Q7*$X$2 -> 9287 | F7: =R7*$X$2 -> 8522 | G7: =S7*$X$2 -> 6985 | I7: =IF('INGRESO DE DATOS'!$W$19=1,'Tablas Guyanas y Santa Elena'!C7,'Tablas Resto de Ecuador'!C7) -> 14069 | J7: =IF('INGRESO DE DATOS'!$W$19=1,'Tablas Guyanas y Santa Elena'!D7,'Tablas Resto de Ecuador'!D7) -> 10435 | K7: =IF('INGRESO DE DATOS'!$W$19=1,'Tablas Guyanas y Santa Elena'!E7,'Tablas Resto de Ecuador'!E7) -> 9287 | L7: =IF('INGRESO DE DATOS'!$W$19=1,'Tablas Guyanas y Santa Elena'!F7,'Tablas Resto de Ecuador'!F7) -> 8522 | M7: =IF('INGRESO DE DATOS'!$W$19=1,'Tablas Guyanas y Santa Elena'!G7,'Tablas Resto de Ecuador'!G7) -> 6985 | O7: =I7*$P$4 -> 14069 | P7: =J7*$P$4 -> 10435 | Q7: =K7*$P$4 -> 9287 | R7: =L7*$P$4 -> 8522 | S7: =M7*$P$4 -> 6985
A8: 20 | C8: 14069 | D8: 10435 | E8: 9287 | F8: 8522 | G8: 6985 | I8: =IF('INGRESO DE DATOS'!$W$19=1,'Tablas Guyanas y Santa Elena'!C8,'Tablas Resto de Ecuador'!C8) -> 14069 | J8: =IF('INGRESO DE DATOS'!$W$19=1,'Tablas Guyanas y Santa Elena'!D8,'Tablas Resto de Ecuador'!D8) -> 10435 | K8: =IF('INGRESO DE DATOS'!$W$19=1,'Tablas Guyanas y Santa Elena'!E8,'Tablas Resto de Ecuador'!E8) -> 9287 | L8: =IF('INGRESO DE DATOS'!$W$19=1,'Tablas Guyanas y Santa Elena'!F8,'Tablas Resto de Ecuador'!F8) -> 8522 | M8: =IF('INGRESO DE DATOS'!$W$19=1,'Tablas Guyanas y Santa Elena'!G8,'Tablas Resto de Ecuador'!G8) -> 6985 | O8: 14069 | P8: 10435 | Q8: 9287 | R8: 8522 | S8: 6985
A9: 21 | C9: 14069 | D9: 10435 | E9: 9287 | F9: 8522 | G9: 6985 | I9: =IF('INGRESO DE DATOS'!$W$19=1,'Tablas Guyanas y Santa Elena'!C9,'Tablas Resto de Ecuador'!C9) -> 14069 | J9: =IF('INGRESO DE DATOS'!$W$19=1,'Tablas Guyanas y Santa Elena'!D9,'Tablas Resto de Ecuador'!D9) -> 10435 | K9: =IF('INGRESO DE DATOS'!$W$19=1,'Tablas Guyanas y Santa Elena'!E9,'Tablas Resto de Ecuador'!E9) -> 9287 | L9: =IF('INGRESO DE DATOS'!$W$19=1,'Tablas Guyanas y Santa Elena'!F9,'Tablas Resto de Ecuador'!F9) -> 8522 | M9: =IF('INGRESO DE DATOS'!$W$19=1,'Tablas Guyanas y Santa Elena'!G9,'Tablas Resto de Ecuador'!G9) -> 6985 | O9: 14069 | P9: 10435 | Q9: 9287 | R9: 8522 | S9: 6985
A10: 22 | C10: 14069 | D10: 10435 | E10: 9287 | F10: 8522 | G10: 6985 | I10: =IF('INGRESO DE DATOS'!$W$19=1,'Tablas Guyanas y Santa Elena'!C10,'Tablas Resto de Ecuador'!C10) -> 14069 | J10: =IF('INGRESO DE DATOS'!$W$19=1,'Tablas Guyanas y Santa Elena'!D10,'Tablas Resto de Ecuador'!D10) -> 10435 | K10: =IF('INGRESO DE DATOS'!$W$19=1,'Tablas Guyanas y Santa Elena'!E10,'Tablas Resto de Ecuador'!E10) -> 9287 | L10: =IF('INGRESO DE DATOS'!$W$19=1,'Tablas Guyanas y Santa Elena'!F10,'Tablas Resto de Ecuador'!F10) -> 8522 | M10: =IF('INGRESO DE DATOS'!$W$19=1,'Tablas Guyanas y Santa Elena'!G10,'Tablas Resto de Ecuador'!G10) -> 6985 | O10: 14069 | P10: 10435 | Q10: 9287 | R10: 8522 | S10: 6985
A11: 23 | C11: 14069 | D11: 10435 | E11: 9287 | F11: 8522 | G11: 6985 | I11: =IF('INGRESO DE DATOS'!$W$19=1,'Tablas Guyanas y Santa Elena'!C11,'Tablas Resto de Ecuador'!C11) -> 14069 | J11: =IF('INGRESO DE DATOS'!$W$19=1,'Tablas Guyanas y Santa Elena'!D11,'Tablas Resto de Ecuador'!D11) -> 10435 | K11: =IF('INGRESO DE DATOS'!$W$19=1,'Tablas Guyanas y Santa Elena'!E11,'Tablas Resto de Ecuador'!E11) -> 9287 | L11: =IF('INGRESO DE DATOS'!$W$19=1,'Tablas Guyanas y Santa Elena'!F11,'Tablas Resto de Ecuador'!F11) -> 8522 | M11: =IF('INGRESO DE DATOS'!$W$19=1,'Tablas Guyanas y Santa Elena'!G11,'Tablas Resto de Ecuador'!G11) -> 6985 | O11: 14069 | P11: 10435 | Q11: 9287 | R11: 8522 | S11: 6985
A12: 24 | C12: 14069 | D12: 10435 | E12: 9287 | F12: 8522 | G12: 6985 | I12: =IF('INGRESO DE DATOS'!$W$19=1,'Tablas Guyanas y Santa Elena'!C12,'Tablas Resto de Ecuador'!C12) -> 14069 | J12: =IF('INGRESO DE DATOS'!$W$19=1,'Tablas Guyanas y Santa Elena'!D12,'Tablas Resto de Ecuador'!D12) -> 10435 | K12: =IF('INGRESO DE DATOS'!$W$19=1,'Tablas Guyanas y Santa Elena'!E12,'Tablas Resto de Ecuador'!E12) -> 9287 | L12: =IF('INGRESO DE DATOS'!$W$19=1,'Tablas Guyanas y Santa Elena'!F12,'Tablas Resto de Ecuador'!F12) -> 8522 | M12: =IF('INGRESO DE DATOS'!$W$19=1,'Tablas Guyanas y Santa Elena'!G12,'Tablas Resto de Ecuador'!G12) -> 6985 | O12: 14069 | P12: 10435 | Q12: 9287 | R12: 8522 | S12: 6985
A13: 25 | C13: 16612 | D13: 12086 | E13: 10210 | F13: 9424 | G13: 7416 | I13: =IF('INGRESO DE DATOS'!$W$19=1,'Tablas Guyanas y Santa Elena'!C13,'Tablas Resto de Ecuador'!C13) -> 16612 | J13: =IF('INGRESO DE DATOS'!$W$19=1,'Tablas Guyanas y Santa Elena'!D13,'Tablas Resto de Ecuador'!D13) -> 12086 | K13: =IF('INGRESO DE DATOS'!$W$19=1,'Tablas Guyanas y Santa Elena'!E13,'Tablas Resto de Ecuador'!E13) -> 10210 | L13: =IF('INGRESO DE DATOS'!$W$19=1,'Tablas Guyanas y Santa Elena'!F13,'Tablas Resto de Ecuador'!F13) -> 9424 | M13: =IF('INGRESO DE DATOS'!$W$19=1,'Tablas Guyanas y Santa Elena'!G13,'Tablas Resto de Ecuador'!G13) -> 7416 | O13: 16612 | P13: 12086 | Q13: 10210 | R13: 9424 | S13: 7416
A14: 26 | C14: 16612 | D14: 12086 | E14: 10210 | F14: 9424 | G14: 7416 | I14: =IF('INGRESO DE DATOS'!$W$19=1,'Tablas Guyanas y Santa Elena'!C14,'Tablas Resto de Ecuador'!C14) -> 16612 | J14: =IF('INGRESO DE DATOS'!$W$19=1,'Tablas Guyanas y Santa Elena'!D14,'Tablas Resto de Ecuador'!D14) -> 12086 | K14: =IF('INGRESO DE DATOS'!$W$19=1,'Tablas Guyanas y Santa Elena'!E14,'Tablas Resto de Ecuador'!E14) -> 10210 | L14: =IF('INGRESO DE DATOS'!$W$19=1,'Tablas Guyanas y Santa Elena'!F14,'Tablas Resto de Ecuador'!F14) -> 9424 | M14: =IF('INGRESO DE DATOS'!$W$19=1,'Tablas Guyanas y Santa Elena'!G14,'Tablas Resto de Ecuador'!G14) -> 7416 | O14: 16612 | P14: 12086 | Q14: 10210 | R14: 9424 | S14: 7416
A15: 27 | C15: 16612 | D15: 12086 | E15: 10210 | F15: 9424 | G15: 7416 | I15: =IF('INGRESO DE DATOS'!$W$19=1,'Tablas Guyanas y Santa Elena'!C15,'Tablas Resto de Ecuador'!C15) -> 16612 | J15: =IF('INGRESO DE DATOS'!$W$19=1,'Tablas Guyanas y Santa Elena'!D15,'Tablas Resto de Ecuador'!D15) -> 12086 | K15: =IF('INGRESO DE DATOS'!$W$19=1,'Tablas Guyanas y Santa Elena'!E15,'Tablas Resto de Ecuador'!E15) -> 10210 | L15: =IF('INGRESO DE DATOS'!$W$19=1,'Tablas Guyanas y Santa Elena'!F15,'Tablas Resto de Ecuador'!F15) -> 9424 | M15: =IF('INGRESO DE DATOS'!$W$19=1,'Tablas Guyanas y Santa Elena'!G15,'Tablas Resto de Ecuador'!G15) -> 7416 | O15: 16612 | P15: 12086 | Q15: 10210 | R15: 9424 | S15: 7416
A16: 28 | C16: 16612 | D16: 12086 | E16: 10210 | F16: 9424 | G16: 7416 | I16: =IF('INGRESO DE DATOS'!$W$19=1,'Tablas Guyanas y Santa Elena'!C16,'Tablas Resto de Ecuador'!C16) -> 16612 | J16: =IF('INGRESO DE DATOS'!$W$19=1,'Tablas Guyanas y Santa Elena'!D16,'Tablas Resto de Ecuador'!D16) -> 12086 | K16: =IF('INGRESO DE DATOS'!$W$19=1,'Tablas Guyanas y Santa Elena'!E16,'Tablas Resto de Ecuador'!E16) -> 10210 | L16: =IF('INGRESO DE DATOS'!$W$19=1,'Tablas Guyanas y Santa Elena'!F16,'Tablas Resto de Ecuador'!F16) -> 9424 | M16: =IF('INGRESO DE DATOS'!$W$19=1,'Tablas Guyanas y Santa Elena'!G16,'Tablas Resto de Ecuador'!G16) -> 7416 | O16: 16612 | P16: 12086 | Q16: 10210 | R16: 9424 | S16: 7416
A17: 29 | C17: 16612 | D17: 12086 | E17: 10210 | F17: 9424 | G17: 7416 | I17: =IF('INGRESO DE DATOS'!$W$19=1,'Tablas Guyanas y Santa Elena'!C17,'Tablas Resto de Ecuador'!C17) -> 16612 | J17: =IF('INGRESO DE DATOS'!$W$19=1,'Tablas Guyanas y Santa Elena'!D17,'Tablas Resto de Ecuador'!D17) -> 12086 | K17: =IF('INGRESO DE DATOS'!$W$19=1,'Tablas Guyanas y Santa Elena'!E17,'Tablas Resto de Ecuador'!E17) -> 10210 | L17: =IF('INGRESO DE DATOS'!$W$19=1,'Tablas Guyanas y Santa Elena'!F17,'Tablas Resto de Ecuador'!F17) -> 9424 | M17: =IF('INGRESO DE DATOS'!$W$19=1,'Tablas Guyanas y Santa Elena'!G17,'Tablas Resto de Ecuador'!G17) -> 7416 | O17: 16612 | P17: 12086 | Q17: 10210 | R17: 9424 | S17: 7416
A18: 30 | C18: 17391 | D18: 13576 | E18: 11958 | F18: 9998 | G18: 8185 | I18: =IF('INGRESO DE DATOS'!$W$19=1,'Tablas Guyanas y Santa Elena'!C18,'Tablas Resto de Ecuador'!C18) -> 17391 | J18: =IF('INGRESO DE DATOS'!$W$19=1,'Tablas Guyanas y Santa Elena'!D18,'Tablas Resto de Ecuador'!D18) -> 13576 | K18: =IF('INGRESO DE DATOS'!$W$19=1,'Tablas Guyanas y Santa Elena'!E18,'Tablas Resto de Ecuador'!E18) -> 11958 | L18: =IF('INGRESO DE DATOS'!$W$19=1,'Tablas Guyanas y Santa Elena'!F18,'Tablas Resto de Ecuador'!F18) -> 9998 | M18: =IF('INGRESO DE DATOS'!$W$19=1,'Tablas Guyanas y Santa Elena'!G18,'Tablas Resto de Ecuador'!G18) -> 8185 | O18: 17391 | P18: 13576 | Q18: 11958 | R18: 9998 | S18: 8185
A19: 31 | C19: 17391 | D19: 13576 | E19: 11958 | F19: 9998 | G19: 8185 | I19: =IF('INGRESO DE DATOS'!$W$19=1,'Tablas Guyanas y Santa Elena'!C19,'Tablas Resto de Ecuador'!C19) -> 17391 | J19: =IF('INGRESO DE DATOS'!$W$19=1,'Tablas Guyanas y Santa Elena'!D19,'Tablas Resto de Ecuador'!D19) -> 13576 | K19: =IF('INGRESO DE DATOS'!$W$19=1,'Tablas Guyanas y Santa Elena'!E19,'Tablas Resto de Ecuador'!E19) -> 11958 | L19: =IF('INGRESO DE DATOS'!$W$19=1,'Tablas Guyanas y Santa Elena'!F19,'Tablas Resto de Ecuador'!F19) -> 9998 | M19: =IF('INGRESO DE DATOS'!$W$19=1,'Tablas Guyanas y Santa Elena'!G19,'Tablas Resto de Ecuador'!G19) -> 8185 | O19: 17391 | P19: 13576 | Q19: 11958 | R19: 9998 | S19: 8185
A20: 32 | C20: 17391 | D20: 13576 | E20: 11958 | F20: 9998 | G20: 8185 | I20: =IF('INGRESO DE DATOS'!$W$19=1,'Tablas Guyanas y Santa Elena'!C20,'Tablas Resto de Ecuador'!C20) -> 17391 | J20: =IF('INGRESO DE DATOS'!$W$19=1,'Tablas Guyanas y Santa Elena'!D20,'Tablas Resto de Ecuador'!D20) -> 13576 | K20: =IF('INGRESO DE DATOS'!$W$19=1,'Tablas Guyanas y Santa Elena'!E20,'Tablas Resto de Ecuador'!E20) -> 11958 | L20: =IF('INGRESO DE DATOS'!$W$19=1,'Tablas Guyanas y Santa Elena'!F20,'Tablas Resto de Ecuador'!F20) -> 9998 | M20: =IF('INGRESO DE DATOS'!$W$19=1,'Tablas Guyanas y Santa Elena'!G20,'Tablas Resto de Ecuador'!G20) -> 8185 | O20: 17391 | P20: 13576 | Q20: 11958 | R20: 9998 | S20: 8185
A21: 33 | C21: 17391 | D21: 13576 | E21: 11958 | F21: 9998 | G21: 8185 | I21: =IF('INGRESO DE DATOS'!$W$19=1,'Tablas Guyanas y Santa Elena'!C21,'Tablas Resto de Ecuador'!C21) -> 17391 | J21: =IF('INGRESO DE DATOS'!$W$19=1,'Tablas Guyanas y Santa Elena'!D21,'Tablas Resto de Ecuador'!D21) -> 13576 | K21: =IF('INGRESO DE DATOS'!$W$19=1,'Tablas Guyanas y Santa Elena'!E21,'Tablas Resto de Ecuador'!E21) -> 11958 | L21: =IF('INGRESO DE DATOS'!$W$19=1,'Tablas Guyanas y Santa Elena'!F21,'Tablas Resto de Ecuador'!F21) -> 9998 | M21: =IF('INGRESO DE DATOS'!$W$19=1,'Tablas Guyanas y Santa Elena'!G21,'Tablas Resto de Ecuador'!G21) -> 8185 | O21: 17391 | P21: 13576 | Q21: 11958 | R21: 9998 | S21: 8185
A22: 34 | C22: 17391 | D22: 13576 | E22: 11958 | F22: 9998 | G22: 8185 | I22: =IF('INGRESO DE DATOS'!$W$19=1,'Tablas Guyanas y Santa Elena'!C22,'Tablas Resto de Ecuador'!C22) -> 17391 | J22: =IF('INGRESO DE DATOS'!$W$19=1,'Tablas Guyanas y Santa Elena'!D22,'Tablas Resto de Ecuador'!D22) -> 13576 | K22: =IF('INGRESO DE DATOS'!$W$19=1,'Tablas Guyanas y Santa Elena'!E22,'Tablas Resto de Ecuador'!E22) -> 11958 | L22: =IF('INGRESO DE DATOS'!$W$19=1,'Tablas Guyanas y Santa Elena'!F22,'Tablas Resto de Ecuador'!F22) -> 9998 | M22: =IF('INGRESO DE DATOS'!$W$19=1,'Tablas Guyanas y Santa Elena'!G22,'Tablas Resto de Ecuador'!G22) -> 8185 | O22: 17391 | P22: 13576 | Q22: 11958 | R22: 9998 | S22: 8185
A23: 35 | C23: 19560 | D23: 15289 | E23: 13317 | F23: 11558 | G23: 9087 | I23: =IF('INGRESO DE DATOS'!$W$19=1,'Tablas Guyanas y Santa Elena'!C23,'Tablas Resto de Ecuador'!C23) -> 19560 | J23: =IF('INGRESO DE DATOS'!$W$19=1,'Tablas Guyanas y Santa Elena'!D23,'Tablas Resto de Ecuador'!D23) -> 15289 | K23: =IF('INGRESO DE DATOS'!$W$19=1,'Tablas Guyanas y Santa Elena'!E23,'Tablas Resto de Ecuador'!E23) -> 13317 | L23: =IF('INGRESO DE DATOS'!$W$19=1,'Tablas Guyanas y Santa Elena'!F23,'Tablas Resto de Ecuador'!F23) -> 11558 | M23: =IF('INGRESO DE DATOS'!$W$19=1,'Tablas Guyanas y Santa Elena'!G23,'Tablas Resto de Ecuador'!G23) -> 9087 | O23: 19560 | P23: 15289 | Q23: 13317 | R23: 11558 | S23: 9087
A24: 36 | C24: 19560 | D24: 15289 | E24: 13317 | F24: 11558 | G24: 9087 | I24: =IF('INGRESO DE DATOS'!$W$19=1,'Tablas Guyanas y Santa Elena'!C24,'Tablas Resto de Ecuador'!C24) -> 19560 | J24: =IF('INGRESO DE DATOS'!$W$19=1,'Tablas Guyanas y Santa Elena'!D24,'Tablas Resto de Ecuador'!D24) -> 15289 | K24: =IF('INGRESO DE DATOS'!$W$19=1,'Tablas Guyanas y Santa Elena'!E24,'Tablas Resto de Ecuador'!E24) -> 13317 | L24: =IF('INGRESO DE DATOS'!$W$19=1,'Tablas Guyanas y Santa Elena'!F24,'Tablas Resto de Ecuador'!F24) -> 11558 | M24: =IF('INGRESO DE DATOS'!$W$19=1,'Tablas Guyanas y Santa Elena'!G24,'Tablas Resto de Ecuador'!G24) -> 9087 | O24: 19560 | P24: 15289 | Q24: 13317 | R24: 11558 | S24: 9087
A25: 37 | C25: 19560 | D25: 15289 | E25: 13317 | F25: 11558 | G25: 9087 | I25: =IF('INGRESO DE DATOS'!$W$19=1,'Tablas Guyanas y Santa Elena'!C25,'Tablas Resto de Ecuador'!C25) -> 19560 | J25: =IF('INGRESO DE DATOS'!$W$19=1,'Tablas Guyanas y Santa Elena'!D25,'Tablas Resto de Ecuador'!D25) -> 15289 | K25: =IF('INGRESO DE DATOS'!$W$19=1,'Tablas Guyanas y Santa Elena'!E25,'Tablas Resto de Ecuador'!E25) -> 13317 | L25: =IF('INGRESO DE DATOS'!$W$19=1,'Tablas Guyanas y Santa Elena'!F25,'Tablas Resto de Ecuador'!F25) -> 11558 | M25: =IF('INGRESO DE DATOS'!$W$19=1,'Tablas Guyanas y Santa Elena'!G25,'Tablas Resto de Ecuador'!G25) -> 9087 | O25: 19560 | P25: 15289 | Q25: 13317 | R25: 11558 | S25: 9087
A26: 38 | C26: 19560 | D26: 15289 | E26: 13317 | F26: 11558 | G26: 9087 | I26: =IF('INGRESO DE DATOS'!$W$19=1,'Tablas Guyanas y Santa Elena'!C26,'Tablas Resto de Ecuador'!C26) -> 19560 | J26: =IF('INGRESO DE DATOS'!$W$19=1,'Tablas Guyanas y Santa Elena'!D26,'Tablas Resto de Ecuador'!D26) -> 15289 | K26: =IF('INGRESO DE DATOS'!$W$19=1,'Tablas Guyanas y Santa Elena'!E26,'Tablas Resto de Ecuador'!E26) -> 13317 | L26: =IF('INGRESO DE DATOS'!$W$19=1,'Tablas Guyanas y Santa Elena'!F26,'Tablas Resto de Ecuador'!F26) -> 11558 | M26: =IF('INGRESO DE DATOS'!$W$19=1,'Tablas Guyanas y Santa Elena'!G26,'Tablas Resto de Ecuador'!G26) -> 9087 | O26: 19560 | P26: 15289 | Q26: 13317 | R26: 11558 | S26: 9087
A27: 39 | C27: 19560 | D27: 15289 | E27: 13317 | F27: 11558 | G27: 9087 | I27: =IF('INGRESO DE DATOS'!$W$19=1,'Tablas Guyanas y Santa Elena'!C27,'Tablas Resto de Ecuador'!C27) -> 19560 | J27: =IF('INGRESO DE DATOS'!$W$19=1,'Tablas Guyanas y Santa Elena'!D27,'Tablas Resto de Ecuador'!D27) -> 15289 | K27: =IF('INGRESO DE DATOS'!$W$19=1,'Tablas Guyanas y Santa Elena'!E27,'Tablas Resto de Ecuador'!E27) -> 13317 | L27: =IF('INGRESO DE DATOS'!$W$19=1,'Tablas Guyanas y Santa Elena'!F27,'Tablas Resto de Ecuador'!F27) -> 11558 | M27: =IF('INGRESO DE DATOS'!$W$19=1,'Tablas Guyanas y Santa Elena'!G27,'Tablas Resto de Ecuador'!G27) -> 9087 | O27: 19560 | P27: 15289 | Q27: 13317 | R27: 11558 | S27: 9087
A28: 40 | C28: 21393 | D28: 16417 | E28: 14088 | F28: 12938 | G28: 10132 | I28: =IF('INGRESO DE DATOS'!$W$19=1,'Tablas Guyanas y Santa Elena'!C28,'Tablas Resto de Ecuador'!C28) -> 21393 | J28: =IF('INGRESO DE DATOS'!$W$19=1,'Tablas Guyanas y Santa Elena'!D28,'Tablas Resto de Ecuador'!D28) -> 16417 | K28: =IF('INGRESO DE DATOS'!$W$19=1,'Tablas Guyanas y Santa Elena'!E28,'Tablas Resto de Ecuador'!E28) -> 14088 | L28: =IF('INGRESO DE DATOS'!$W$19=1,'Tablas Guyanas y Santa Elena'!F28,'Tablas Resto de Ecuador'!F28) -> 12938 | M28: =IF('INGRESO DE DATOS'!$W$19=1,'Tablas Guyanas y Santa Elena'!G28,'Tablas Resto de Ecuador'!G28) -> 10132 | O28: 21393 | P28: 16417 | Q28: 14088 | R28: 12938 | S28: 10132
A29: 41 | C29: 21393 | D29: 16417 | E29: 14088 | F29: 12938 | G29: 10132 | I29: =IF('INGRESO DE DATOS'!$W$19=1,'Tablas Guyanas y Santa Elena'!C29,'Tablas Resto de Ecuador'!C29) -> 21393 | J29: =IF('INGRESO DE DATOS'!$W$19=1,'Tablas Guyanas y Santa Elena'!D29,'Tablas Resto de Ecuador'!D29) -> 16417 | K29: =IF('INGRESO DE DATOS'!$W$19=1,'Tablas Guyanas y Santa Elena'!E29,'Tablas Resto de Ecuador'!E29) -> 14088 | L29: =IF('INGRESO DE DATOS'!$W$19=1,'Tablas Guyanas y Santa Elena'!F29,'Tablas Resto de Ecuador'!F29) -> 12938 | M29: =IF('INGRESO DE DATOS'!$W$19=1,'Tablas Guyanas y Santa Elena'!G29,'Tablas Resto de Ecuador'!G29) -> 10132 | O29: 21393 | P29: 16417 | Q29: 14088 | R29: 12938 | S29: 10132
A30: 42 | C30: 21393 | D30: 16417 | E30: 14088 | F30: 12938 | G30: 10132 | I30: =IF('INGRESO DE DATOS'!$W$19=1,'Tablas Guyanas y Santa Elena'!C30,'Tablas Resto de Ecuador'!C30) -> 21393 | J30: =IF('INGRESO DE DATOS'!$W$19=1,'Tablas Guyanas y Santa Elena'!D30,'Tablas Resto de Ecuador'!D30) -> 16417 | K30: =IF('INGRESO DE DATOS'!$W$19=1,'Tablas Guyanas y Santa Elena'!E30,'Tablas Resto de Ecuador'!E30) -> 14088 | L30: =IF('INGRESO DE DATOS'!$W$19=1,'Tablas Guyanas y Santa Elena'!F30,'Tablas Resto de Ecuador'!F30) -> 12938 | M30: =IF('INGRESO DE DATOS'!$W$19=1,'Tablas Guyanas y Santa Elena'!G30,'Tablas Resto de Ecuador'!G30) -> 10132 | O30: 21393 | P30: 16417 | Q30: 14088 | R30: 12938 | S30: 10132
A31: 43 | C31: 21393 | D31: 16417 | E31: 14088 | F31: 12938 | G31: 10132 | I31: =IF('INGRESO DE DATOS'!$W$19=1,'Tablas Guyanas y Santa Elena'!C31,'Tablas Resto de Ecuador'!C31) -> 21393 | J31: =IF('INGRESO DE DATOS'!$W$19=1,'Tablas Guyanas y Santa Elena'!D31,'Tablas Resto de Ecuador'!D31) -> 16417 | K31: =IF('INGRESO DE DATOS'!$W$19=1,'Tablas Guyanas y Santa Elena'!E31,'Tablas Resto de Ecuador'!E31) -> 14088 | L31: =IF('INGRESO DE DATOS'!$W$19=1,'Tablas Guyanas y Santa Elena'!F31,'Tablas Resto de Ecuador'!F31) -> 12938 | M31: =IF('INGRESO DE DATOS'!$W$19=1,'Tablas Guyanas y Santa Elena'!G31,'Tablas Resto de Ecuador'!G31) -> 10132 | O31: 21393 | P31: 16417 | Q31: 14088 | R31: 12938 | S31: 10132
A32: 44 | C32: 21393 | D32: 16417 | E32: 14088 | F32: 12938 | G32: 10132 | I32: =IF('INGRESO DE DATOS'!$W$19=1,'Tablas Guyanas y Santa Elena'!C32,'Tablas Resto de Ecuador'!C32) -> 21393 | J32: =IF('INGRESO DE DATOS'!$W$19=1,'Tablas Guyanas y Santa Elena'!D32,'Tablas Resto de Ecuador'!D32) -> 16417 | K32: =IF('INGRESO DE DATOS'!$W$19=1,'Tablas Guyanas y Santa Elena'!E32,'Tablas Resto de Ecuador'!E32) -> 14088 | L32: =IF('INGRESO DE DATOS'!$W$19=1,'Tablas Guyanas y Santa Elena'!F32,'Tablas Resto de Ecuador'!F32) -> 12938 | M32: =IF('INGRESO DE DATOS'!$W$19=1,'Tablas Guyanas y Santa Elena'!G32,'Tablas Resto de Ecuador'!G32) -> 10132 | O32: 21393 | P32: 16417 | Q32: 14088 | R32: 12938 | S32: 10132
A33: 45 | C33: 24845 | D33: 19155 | E33: 16502 | F33: 14963 | G33: 11303 | I33: =IF('INGRESO DE DATOS'!$W$19=1,'Tablas Guyanas y Santa Elena'!C33,'Tablas Resto de Ecuador'!C33) -> 24845 | J33: =IF('INGRESO DE DATOS'!$W$19=1,'Tablas Guyanas y Santa Elena'!D33,'Tablas Resto de Ecuador'!D33) -> 19155 | K33: =IF('INGRESO DE DATOS'!$W$19=1,'Tablas Guyanas y Santa Elena'!E33,'Tablas Resto de Ecuador'!E33) -> 16502 | L33: =IF('INGRESO DE DATOS'!$W$19=1,'Tablas Guyanas y Santa Elena'!F33,'Tablas Resto de Ecuador'!F33) -> 14963 | M33: =IF('INGRESO DE DATOS'!$W$19=1,'Tablas Guyanas y Santa Elena'!G33,'Tablas Resto de Ecuador'!G33) -> 11303 | O33: 24845 | P33: 19155 | Q33: 16502 | R33: 14963 | S33: 11303
A34: 46 | C34: 24845 | D34: 19155 | E34: 16502 | F34: 14963 | G34: 11303 | I34: =IF('INGRESO DE DATOS'!$W$19=1,'Tablas Guyanas y Santa Elena'!C34,'Tablas Resto de Ecuador'!C34) -> 24845 | J34: =IF('INGRESO DE DATOS'!$W$19=1,'Tablas Guyanas y Santa Elena'!D34,'Tablas Resto de Ecuador'!D34) -> 19155 | K34: =IF('INGRESO DE DATOS'!$W$19=1,'Tablas Guyanas y Santa Elena'!E34,'Tablas Resto de Ecuador'!E34) -> 16502 | L34: =IF('INGRESO DE DATOS'!$W$19=1,'Tablas Guyanas y Santa Elena'!F34,'Tablas Resto de Ecuador'!F34) -> 14963 | M34: =IF('INGRESO DE DATOS'!$W$19=1,'Tablas Guyanas y Santa Elena'!G34,'Tablas Resto de Ecuador'!G34) -> 11303 | O34: 24845 | P34: 19155 | Q34: 16502 | R34: 14963 | S34: 11303
A35: 47 | C35: 24845 | D35: 19155 | E35: 16502 | F35: 14963 | G35: 11303 | I35: =IF('INGRESO DE DATOS'!$W$19=1,'Tablas Guyanas y Santa Elena'!C35,'Tablas Resto de Ecuador'!C35) -> 24845 | J35: =IF('INGRESO DE DATOS'!$W$19=1,'Tablas Guyanas y Santa Elena'!D35,'Tablas Resto de Ecuador'!D35) -> 19155 | K35: =IF('INGRESO DE DATOS'!$W$19=1,'Tablas Guyanas y Santa Elena'!E35,'Tablas Resto de Ecuador'!E35) -> 16502 | L35: =IF('INGRESO DE DATOS'!$W$19=1,'Tablas Guyanas y Santa Elena'!F35,'Tablas Resto de Ecuador'!F35) -> 14963 | M35: =IF('INGRESO DE DATOS'!$W$19=1,'Tablas Guyanas y Santa Elena'!G35,'Tablas Resto de Ecuador'!G35) -> 11303 | O35: 24845 | P35: 19155 | Q35: 16502 | R35: 14963 | S35: 11303
A36: 48 | C36: 24845 | D36: 19155 | E36: 16502 | F36: 14963 | G36: 11303 | I36: =IF('INGRESO DE DATOS'!$W$19=1,'Tablas Guyanas y Santa Elena'!C36,'Tablas Resto de Ecuador'!C36) -> 24845 | J36: =IF('INGRESO DE DATOS'!$W$19=1,'Tablas Guyanas y Santa Elena'!D36,'Tablas Resto de Ecuador'!D36) -> 19155 | K36: =IF('INGRESO DE DATOS'!$W$19=1,'Tablas Guyanas y Santa Elena'!E36,'Tablas Resto de Ecuador'!E36) -> 16502 | L36: =IF('INGRESO DE DATOS'!$W$19=1,'Tablas Guyanas y Santa Elena'!F36,'Tablas Resto de Ecuador'!F36) -> 14963 | M36: =IF('INGRESO DE DATOS'!$W$19=1,'Tablas Guyanas y Santa Elena'!G36,'Tablas Resto de Ecuador'!G36) -> 11303 | O36: 24845 | P36: 19155 | Q36: 16502 | R36: 14963 | S36: 11303
A37: 49 | C37: 24845 | D37: 19155 | E37: 16502 | F37: 14963 | G37: 11303 | I37: =IF('INGRESO DE DATOS'!$W$19=1,'Tablas Guyanas y Santa Elena'!C37,'Tablas Resto de Ecuador'!C37) -> 24845 | J37: =IF('INGRESO DE DATOS'!$W$19=1,'Tablas Guyanas y Santa Elena'!D37,'Tablas Resto de Ecuador'!D37) -> 19155 | K37: =IF('INGRESO DE DATOS'!$W$19=1,'Tablas Guyanas y Santa Elena'!E37,'Tablas Resto de Ecuador'!E37) -> 16502 | L37: =IF('INGRESO DE DATOS'!$W$19=1,'Tablas Guyanas y Santa Elena'!F37,'Tablas Resto de Ecuador'!F37) -> 14963 | M37: =IF('INGRESO DE DATOS'!$W$19=1,'Tablas Guyanas y Santa Elena'!G37,'Tablas Resto de Ecuador'!G37) -> 11303 | O37: 24845 | P37: 19155 | Q37: 16502 | R37: 14963 | S37: 11303
A38: 50 | C38: 27920 | D38: 22437 | E38: 19032 | F38: 17058 | G38: 12377 | I38: =IF('INGRESO DE DATOS'!$W$19=1,'Tablas Guyanas y Santa Elena'!C38,'Tablas Resto de Ecuador'!C38) -> 27920 | J38: =IF('INGRESO DE DATOS'!$W$19=1,'Tablas Guyanas y Santa Elena'!D38,'Tablas Resto de Ecuador'!D38) -> 22437 | K38: =IF('INGRESO DE DATOS'!$W$19=1,'Tablas Guyanas y Santa Elena'!E38,'Tablas Resto de Ecuador'!E38) -> 19032 | L38: =IF('INGRESO DE DATOS'!$W$19=1,'Tablas Guyanas y Santa Elena'!F38,'Tablas Resto de Ecuador'!F38) -> 17058 | M38: =IF('INGRESO DE DATOS'!$W$19=1,'Tablas Guyanas y Santa Elena'!G38,'Tablas Resto de Ecuador'!G38) -> 12377 | O38: 27920 | P38: 22437 | Q38: 19032 | R38: 17058 | S38: 12377
A39: 51 | C39: 27920 | D39: 22437 | E39: 19032 | F39: 17058 | G39: 12377 | I39: =IF('INGRESO DE DATOS'!$W$19=1,'Tablas Guyanas y Santa Elena'!C39,'Tablas Resto de Ecuador'!C39) -> 27920 | J39: =IF('INGRESO DE DATOS'!$W$19=1,'Tablas Guyanas y Santa Elena'!D39,'Tablas Resto de Ecuador'!D39) -> 22437 | K39: =IF('INGRESO DE DATOS'!$W$19=1,'Tablas Guyanas y Santa Elena'!E39,'Tablas Resto de Ecuador'!E39) -> 19032 | L39: =IF('INGRESO DE DATOS'!$W$19=1,'Tablas Guyanas y Santa Elena'!F39,'Tablas Resto de Ecuador'!F39) -> 17058 | M39: =IF('INGRESO DE DATOS'!$W$19=1,'Tablas Guyanas y Santa Elena'!G39,'Tablas Resto de Ecuador'!G39) -> 12377 | O39: 27920 | P39: 22437 | Q39: 19032 | R39: 17058 | S39: 12377
A40: 52 | C40: 27920 | D40: 22437 | E40: 19032 | F40: 17058 | G40: 12377 | I40: =IF('INGRESO DE DATOS'!$W$19=1,'Tablas Guyanas y Santa Elena'!C40,'Tablas Resto de Ecuador'!C40) -> 27920 | J40: =IF('INGRESO DE DATOS'!$W$19=1,'Tablas Guyanas y Santa Elena'!D40,'Tablas Resto de Ecuador'!D40) -> 22437 | K40: =IF('INGRESO DE DATOS'!$W$19=1,'Tablas Guyanas y Santa Elena'!E40,'Tablas Resto de Ecuador'!E40) -> 19032 | L40: =IF('INGRESO DE DATOS'!$W$19=1,'Tablas Guyanas y Santa Elena'!F40,'Tablas Resto de Ecuador'!F40) -> 17058 | M40: =IF('INGRESO DE DATOS'!$W$19=1,'Tablas Guyanas y Santa Elena'!G40,'Tablas Resto de Ecuador'!G40) -> 12377 | O40: 27920 | P40: 22437 | Q40: 19032 | R40: 17058 | S40: 12377
A41: 53 | C41: 27920 | D41: 22437 | E41: 19032 | F41: 17058 | G41: 12377 | I41: =IF('INGRESO DE DATOS'!$W$19=1,'Tablas Guyanas y Santa Elena'!C41,'Tablas Resto de Ecuador'!C41) -> 27920 | J41: =IF('INGRESO DE DATOS'!$W$19=1,'Tablas Guyanas y Santa Elena'!D41,'Tablas Resto de Ecuador'!D41) -> 22437 | K41: =IF('INGRESO DE DATOS'!$W$19=1,'Tablas Guyanas y Santa Elena'!E41,'Tablas Resto de Ecuador'!E41) -> 19032 | L41: =IF('INGRESO DE DATOS'!$W$19=1,'Tablas Guyanas y Santa Elena'!F41,'Tablas Resto de Ecuador'!F41) -> 17058 | M41: =IF('INGRESO DE DATOS'!$W$19=1,'Tablas Guyanas y Santa Elena'!G41,'Tablas Resto de Ecuador'!G41) -> 12377 | O41: 27920 | P41: 22437 | Q41: 19032 | R41: 17058 | S41: 12377
A42: 54 | C42: 27920 | D42: 22437 | E42: 19032 | F42: 17058 | G42: 12377 | I42: =IF('INGRESO DE DATOS'!$W$19=1,'Tablas Guyanas y Santa Elena'!C42,'Tablas Resto de Ecuador'!C42) -> 27920 | J42: =IF('INGRESO DE DATOS'!$W$19=1,'Tablas Guyanas y Santa Elena'!D42,'Tablas Resto de Ecuador'!D42) -> 22437 | K42: =IF('INGRESO DE DATOS'!$W$19=1,'Tablas Guyanas y Santa Elena'!E42,'Tablas Resto de Ecuador'!E42) -> 19032 | L42: =IF('INGRESO DE DATOS'!$W$19=1,'Tablas Guyanas y Santa Elena'!F42,'Tablas Resto de Ecuador'!F42) -> 17058 | M42: =IF('INGRESO DE DATOS'!$W$19=1,'Tablas Guyanas y Santa Elena'!G42,'Tablas Resto de Ecuador'!G42) -> 12377 | O42: 27920 | P42: 22437 | Q42: 19032 | R42: 17058 | S42: 12377
A43: 55 | C43: 32533 | D43: 27004 | E43: 23163 | F43: 19744 | G43: 14099 | I43: =IF('INGRESO DE DATOS'!$W$19=1,'Tablas Guyanas y Santa Elena'!C43,'Tablas Resto de Ecuador'!C43) -> 32533 | J43: =IF('INGRESO DE DATOS'!$W$19=1,'Tablas Guyanas y Santa Elena'!D43,'Tablas Resto de Ecuador'!D43) -> 27004 | K43: =IF('INGRESO DE DATOS'!$W$19=1,'Tablas Guyanas y Santa Elena'!E43,'Tablas Resto de Ecuador'!E43) -> 23163 | L43: =IF('INGRESO DE DATOS'!$W$19=1,'Tablas Guyanas y Santa Elena'!F43,'Tablas Resto de Ecuador'!F43) -> 19744 | M43: =IF('INGRESO DE DATOS'!$W$19=1,'Tablas Guyanas y Santa Elena'!G43,'Tablas Resto de Ecuador'!G43) -> 14099 | O43: 32533 | P43: 27004 | Q43: 23163 | R43: 19744 | S43: 14099
A44: 56 | C44: 32533 | D44: 27004 | E44: 23163 | F44: 19744 | G44: 14099 | I44: =IF('INGRESO DE DATOS'!$W$19=1,'Tablas Guyanas y Santa Elena'!C44,'Tablas Resto de Ecuador'!C44) -> 32533 | J44: =IF('INGRESO DE DATOS'!$W$19=1,'Tablas Guyanas y Santa Elena'!D44,'Tablas Resto de Ecuador'!D44) -> 27004 | K44: =IF('INGRESO DE DATOS'!$W$19=1,'Tablas Guyanas y Santa Elena'!E44,'Tablas Resto de Ecuador'!E44) -> 23163 | L44: =IF('INGRESO DE DATOS'!$W$19=1,'Tablas Guyanas y Santa Elena'!F44,'Tablas Resto de Ecuador'!F44) -> 19744 | M44: =IF('INGRESO DE DATOS'!$W$19=1,'Tablas Guyanas y Santa Elena'!G44,'Tablas Resto de Ecuador'!G44) -> 14099 | O44: 32533 | P44: 27004 | Q44: 23163 | R44: 19744 | S44: 14099
A45: 57 | C45: 32533 | D45: 27004 | E45: 23163 | F45: 19744 | G45: 14099 | I45: =IF('INGRESO DE DATOS'!$W$19=1,'Tablas Guyanas y Santa Elena'!C45,'Tablas Resto de Ecuador'!C45) -> 32533 | J45: =IF('INGRESO DE DATOS'!$W$19=1,'Tablas Guyanas y Santa Elena'!D45,'Tablas Resto de Ecuador'!D45) -> 27004 | K45: =IF('INGRESO DE DATOS'!$W$19=1,'Tablas Guyanas y Santa Elena'!E45,'Tablas Resto de Ecuador'!E45) -> 23163 | L45: =IF('INGRESO DE DATOS'!$W$19=1,'Tablas Guyanas y Santa Elena'!F45,'Tablas Resto de Ecuador'!F45) -> 19744 | M45: =IF('INGRESO DE DATOS'!$W$19=1,'Tablas Guyanas y Santa Elena'!G45,'Tablas Resto de Ecuador'!G45) -> 14099 | O45: 32533 | P45: 27004 | Q45: 23163 | R45: 19744 | S45: 14099
A46: 58 | C46: 32533 | D46: 27004 | E46: 23163 | F46: 19744 | G46: 14099 | I46: =IF('INGRESO DE DATOS'!$W$19=1,'Tablas Guyanas y Santa Elena'!C46,'Tablas Resto de Ecuador'!C46) -> 32533 | J46: =IF('INGRESO DE DATOS'!$W$19=1,'Tablas Guyanas y Santa Elena'!D46,'Tablas Resto de Ecuador'!D46) -> 27004 | K46: =IF('INGRESO DE DATOS'!$W$19=1,'Tablas Guyanas y Santa Elena'!E46,'Tablas Resto de Ecuador'!E46) -> 23163 | L46: =IF('INGRESO DE DATOS'!$W$19=1,'Tablas Guyanas y Santa Elena'!F46,'Tablas Resto de Ecuador'!F46) -> 19744 | M46: =IF('INGRESO DE DATOS'!$W$19=1,'Tablas Guyanas y Santa Elena'!G46,'Tablas Resto de Ecuador'!G46) -> 14099 | O46: 32533 | P46: 27004 | Q46: 23163 | R46: 19744 | S46: 14099
A47: 59 | C47: 32533 | D47: 27004 | E47: 23163 | F47: 19744 | G47: 14099 | I47: =IF('INGRESO DE DATOS'!$W$19=1,'Tablas Guyanas y Santa Elena'!C47,'Tablas Resto de Ecuador'!C47) -> 32533 | J47: =IF('INGRESO DE DATOS'!$W$19=1,'Tablas Guyanas y Santa Elena'!D47,'Tablas Resto de Ecuador'!D47) -> 27004 | K47: =IF('INGRESO DE DATOS'!$W$19=1,'Tablas Guyanas y Santa Elena'!E47,'Tablas Resto de Ecuador'!E47) -> 23163 | L47: =IF('INGRESO DE DATOS'!$W$19=1,'Tablas Guyanas y Santa Elena'!F47,'Tablas Resto de Ecuador'!F47) -> 19744 | M47: =IF('INGRESO DE DATOS'!$W$19=1,'Tablas Guyanas y Santa Elena'!G47,'Tablas Resto de Ecuador'!G47) -> 14099 | O47: 32533 | P47: 27004 | Q47: 23163 | R47: 19744 | S47: 14099
A48: 60 | C48: 35773 | D48: 31911 | E48: 25040 | F48: 21332 | G48: 15081 | I48: =IF('INGRESO DE DATOS'!$W$19=1,'Tablas Guyanas y Santa Elena'!C48,'Tablas Resto de Ecuador'!C48) -> 35773 | J48: =IF('INGRESO DE DATOS'!$W$19=1,'Tablas Guyanas y Santa Elena'!D48,'Tablas Resto de Ecuador'!D48) -> 31911 | K48: =IF('INGRESO DE DATOS'!$W$19=1,'Tablas Guyanas y Santa Elena'!E48,'Tablas Resto de Ecuador'!E48) -> 25040 | L48: =IF('INGRESO DE DATOS'!$W$19=1,'Tablas Guyanas y Santa Elena'!F48,'Tablas Resto de Ecuador'!F48) -> 21332 | M48: =IF('INGRESO DE DATOS'!$W$19=1,'Tablas Guyanas y Santa Elena'!G48,'Tablas Resto de Ecuador'!G48) -> 15081 | O48: 35773 | P48: 31911 | Q48: 25040 | R48: 21332 | S48: 15081
A49: 61 | C49: 39867 | D49: 33856 | E49: 27881 | F49: 23759 | G49: 16792 | I49: =IF('INGRESO DE DATOS'!$W$19=1,'Tablas Guyanas y Santa Elena'!C49,'Tablas Resto de Ecuador'!C49) -> 39867 | J49: =IF('INGRESO DE DATOS'!$W$19=1,'Tablas Guyanas y Santa Elena'!D49,'Tablas Resto de Ecuador'!D49) -> 33856 | K49: =IF('INGRESO DE DATOS'!$W$19=1,'Tablas Guyanas y Santa Elena'!E49,'Tablas Resto de Ecuador'!E49) -> 27881 | L49: =IF('INGRESO DE DATOS'!$W$19=1,'Tablas Guyanas y Santa Elena'!F49,'Tablas Resto de Ecuador'!F49) -> 23759 | M49: =IF('INGRESO DE DATOS'!$W$19=1,'Tablas Guyanas y Santa Elena'!G49,'Tablas Resto de Ecuador'!G49) -> 16792 | O49: 39867 | P49: 33856 | Q49: 27881 | R49: 23759 | S49: 16792
A50: 62 | C50: 41405 | D50: 34991 | E50: 30046 | F50: 26387 | G50: 18650 | I50: =IF('INGRESO DE DATOS'!$W$19=1,'Tablas Guyanas y Santa Elena'!C50,'Tablas Resto de Ecuador'!C50) -> 41405 | J50: =IF('INGRESO DE DATOS'!$W$19=1,'Tablas Guyanas y Santa Elena'!D50,'Tablas Resto de Ecuador'!D50) -> 34991 | K50: =IF('INGRESO DE DATOS'!$W$19=1,'Tablas Guyanas y Santa Elena'!E50,'Tablas Resto de Ecuador'!E50) -> 30046 | L50: =IF('INGRESO DE DATOS'!$W$19=1,'Tablas Guyanas y Santa Elena'!F50,'Tablas Resto de Ecuador'!F50) -> 26387 | M50: =IF('INGRESO DE DATOS'!$W$19=1,'Tablas Guyanas y Santa Elena'!G50,'Tablas Resto de Ecuador'!G50) -> 18650 | O50: 41405 | P50: 34991 | Q50: 30046 | R50: 26387 | S50: 18650
A51: 63 | C51: 43108 | D51: 36434 | E51: 31713 | F51: 27692 | G51: 20658 | I51: =IF('INGRESO DE DATOS'!$W$19=1,'Tablas Guyanas y Santa Elena'!C51,'Tablas Resto de Ecuador'!C51) -> 43108 | J51: =IF('INGRESO DE DATOS'!$W$19=1,'Tablas Guyanas y Santa Elena'!D51,'Tablas Resto de Ecuador'!D51) -> 36434 | K51: =IF('INGRESO DE DATOS'!$W$19=1,'Tablas Guyanas y Santa Elena'!E51,'Tablas Resto de Ecuador'!E51) -> 31713 | L51: =IF('INGRESO DE DATOS'!$W$19=1,'Tablas Guyanas y Santa Elena'!F51,'Tablas Resto de Ecuador'!F51) -> 27692 | M51: =IF('INGRESO DE DATOS'!$W$19=1,'Tablas Guyanas y Santa Elena'!G51,'Tablas Resto de Ecuador'!G51) -> 20658 | O51: 43108 | P51: 36434 | Q51: 31713 | R51: 27692 | S51: 20658
A52: 64 | C52: 45345 | D52: 38492 | E52: 33827 | F52: 29464 | G52: 22322 | I52: =IF('INGRESO DE DATOS'!$W$19=1,'Tablas Guyanas y Santa Elena'!C52,'Tablas Resto de Ecuador'!C52) -> 45345 | J52: =IF('INGRESO DE DATOS'!$W$19=1,'Tablas Guyanas y Santa Elena'!D52,'Tablas Resto de Ecuador'!D52) -> 38492 | K52: =IF('INGRESO DE DATOS'!$W$19=1,'Tablas Guyanas y Santa Elena'!E52,'Tablas Resto de Ecuador'!E52) -> 33827 | L52: =IF('INGRESO DE DATOS'!$W$19=1,'Tablas Guyanas y Santa Elena'!F52,'Tablas Resto de Ecuador'!F52) -> 29464 | M52: =IF('INGRESO DE DATOS'!$W$19=1,'Tablas Guyanas y Santa Elena'!G52,'Tablas Resto de Ecuador'!G52) -> 22322 | O52: 45345 | P52: 38492 | Q52: 33827 | R52: 29464 | S52: 22322
A53: 65 | C53: 48395 | D53: 41470 | E53: 36560 | F53: 31974 | G53: 24470 | I53: =IF('INGRESO DE DATOS'!$W$19=1,'Tablas Guyanas y Santa Elena'!C53,'Tablas Resto de Ecuador'!C53) -> 48395 | J53: =IF('INGRESO DE DATOS'!$W$19=1,'Tablas Guyanas y Santa Elena'!D53,'Tablas Resto de Ecuador'!D53) -> 41470 | K53: =IF('INGRESO DE DATOS'!$W$19=1,'Tablas Guyanas y Santa Elena'!E53,'Tablas Resto de Ecuador'!E53) -> 36560 | L53: =IF('INGRESO DE DATOS'!$W$19=1,'Tablas Guyanas y Santa Elena'!F53,'Tablas Resto de Ecuador'!F53) -> 31974 | M53: =IF('INGRESO DE DATOS'!$W$19=1,'Tablas Guyanas y Santa Elena'!G53,'Tablas Resto de Ecuador'!G53) -> 24470 | O53: 48395 | P53: 41470 | Q53: 36560 | R53: 31974 | S53: 24470
A54: 66 | C54: 52509 | D54: 45655 | E54: 40118 | F54: 35446 | G54: 27498 | I54: =IF('INGRESO DE DATOS'!$W$19=1,'Tablas Guyanas y Santa Elena'!C54,'Tablas Resto de Ecuador'!C54) -> 52509 | J54: =IF('INGRESO DE DATOS'!$W$19=1,'Tablas Guyanas y Santa Elena'!D54,'Tablas Resto de Ecuador'!D54) -> 45655 | K54: =IF('INGRESO DE DATOS'!$W$19=1,'Tablas Guyanas y Santa Elena'!E54,'Tablas Resto de Ecuador'!E54) -> 40118 | L54: =IF('INGRESO DE DATOS'!$W$19=1,'Tablas Guyanas y Santa Elena'!F54,'Tablas Resto de Ecuador'!F54) -> 35446 | M54: =IF('INGRESO DE DATOS'!$W$19=1,'Tablas Guyanas y Santa Elena'!G54,'Tablas Resto de Ecuador'!G54) -> 27498 | O54: 52509 | P54: 45655 | Q54: 40118 | R54: 35446 | S54: 27498
A55: 67 | C55: 57502 | D55: 50842 | E55: 44383 | F55: 39710 | G55: 30122 | I55: =IF('INGRESO DE DATOS'!$W$19=1,'Tablas Guyanas y Santa Elena'!C55,'Tablas Resto de Ecuador'!C55) -> 57502 | J55: =IF('INGRESO DE DATOS'!$W$19=1,'Tablas Guyanas y Santa Elena'!D55,'Tablas Resto de Ecuador'!D55) -> 50842 | K55: =IF('INGRESO DE DATOS'!$W$19=1,'Tablas Guyanas y Santa Elena'!E55,'Tablas Resto de Ecuador'!E55) -> 44383 | L55: =IF('INGRESO DE DATOS'!$W$19=1,'Tablas Guyanas y Santa Elena'!F55,'Tablas Resto de Ecuador'!F55) -> 39710 | M55: =IF('INGRESO DE DATOS'!$W$19=1,'Tablas Guyanas y Santa Elena'!G55,'Tablas Resto de Ecuador'!G55) -> 30122 | O55: 57502 | P55: 50842 | Q55: 44383 | R55: 39710 | S55: 30122
A56: 68 | C56: 62996 | D56: 56603 | E56: 49048 | F56: 44425 | G56: 32855 | I56: =IF('INGRESO DE DATOS'!$W$19=1,'Tablas Guyanas y Santa Elena'!C56,'Tablas Resto de Ecuador'!C56) -> 62996 | J56: =IF('INGRESO DE DATOS'!$W$19=1,'Tablas Guyanas y Santa Elena'!D56,'Tablas Resto de Ecuador'!D56) -> 56603 | K56: =IF('INGRESO DE DATOS'!$W$19=1,'Tablas Guyanas y Santa Elena'!E56,'Tablas Resto de Ecuador'!E56) -> 49048 | L56: =IF('INGRESO DE DATOS'!$W$19=1,'Tablas Guyanas y Santa Elena'!F56,'Tablas Resto de Ecuador'!F56) -> 44425 | M56: =IF('INGRESO DE DATOS'!$W$19=1,'Tablas Guyanas y Santa Elena'!G56,'Tablas Resto de Ecuador'!G56) -> 32855 | O56: 62996 | P56: 56603 | Q56: 49048 | R56: 44425 | S56: 32855
A57: 69 | C57: 68615 | D57: 62507 | E57: 53816 | F57: 49254 | G57: 35732 | I57: =IF('INGRESO DE DATOS'!$W$19=1,'Tablas Guyanas y Santa Elena'!C57,'Tablas Resto de Ecuador'!C57) -> 68615 | J57: =IF('INGRESO DE DATOS'!$W$19=1,'Tablas Guyanas y Santa Elena'!D57,'Tablas Resto de Ecuador'!D57) -> 62507 | K57: =IF('INGRESO DE DATOS'!$W$19=1,'Tablas Guyanas y Santa Elena'!E57,'Tablas Resto de Ecuador'!E57) -> 53816 | L57: =IF('INGRESO DE DATOS'!$W$19=1,'Tablas Guyanas y Santa Elena'!F57,'Tablas Resto de Ecuador'!F57) -> 49254 | M57: =IF('INGRESO DE DATOS'!$W$19=1,'Tablas Guyanas y Santa Elena'!G57,'Tablas Resto de Ecuador'!G57) -> 35732 | O57: 68615 | P57: 62507 | Q57: 53816 | R57: 49254 | S57: 35732
A58: 70 | C58: 73984 | D58: 68124 | E58: 58382 | F58: 53856 | G58: 38749 | I58: =IF('INGRESO DE DATOS'!$W$19=1,'Tablas Guyanas y Santa Elena'!C58,'Tablas Resto de Ecuador'!C58) -> 73984 | J58: =IF('INGRESO DE DATOS'!$W$19=1,'Tablas Guyanas y Santa Elena'!D58,'Tablas Resto de Ecuador'!D58) -> 68124 | K58: =IF('INGRESO DE DATOS'!$W$19=1,'Tablas Guyanas y Santa Elena'!E58,'Tablas Resto de Ecuador'!E58) -> 58382 | L58: =IF('INGRESO DE DATOS'!$W$19=1,'Tablas Guyanas y Santa Elena'!F58,'Tablas Resto de Ecuador'!F58) -> 53856 | M58: =IF('INGRESO DE DATOS'!$W$19=1,'Tablas Guyanas y Santa Elena'!G58,'Tablas Resto de Ecuador'!G58) -> 38749 | O58: 73984 | P58: 68124 | Q58: 58382 | R58: 53856 | S58: 38749
A59: 71 | C59: 79102 | D59: 73455 | E59: 62746 | F59: 58232 | G59: 41918 | I59: =IF('INGRESO DE DATOS'!$W$19=1,'Tablas Guyanas y Santa Elena'!C59,'Tablas Resto de Ecuador'!C59) -> 79102 | J59: =IF('INGRESO DE DATOS'!$W$19=1,'Tablas Guyanas y Santa Elena'!D59,'Tablas Resto de Ecuador'!D59) -> 73455 | K59: =IF('INGRESO DE DATOS'!$W$19=1,'Tablas Guyanas y Santa Elena'!E59,'Tablas Resto de Ecuador'!E59) -> 62746 | L59: =IF('INGRESO DE DATOS'!$W$19=1,'Tablas Guyanas y Santa Elena'!F59,'Tablas Resto de Ecuador'!F59) -> 58232 | M59: =IF('INGRESO DE DATOS'!$W$19=1,'Tablas Guyanas y Santa Elena'!G59,'Tablas Resto de Ecuador'!G59) -> 41918 | O59: 79102 | P59: 73455 | Q59: 62746 | R59: 58232 | S59: 41918
A60: 72 | C60: 84218 | D60: 78786 | E60: 67110 | F60: 62608 | G60: 45226 | I60: =IF('INGRESO DE DATOS'!$W$19=1,'Tablas Guyanas y Santa Elena'!C60,'Tablas Resto de Ecuador'!C60) -> 84218 | J60: =IF('INGRESO DE DATOS'!$W$19=1,'Tablas Guyanas y Santa Elena'!D60,'Tablas Resto de Ecuador'!D60) -> 78786 | K60: =IF('INGRESO DE DATOS'!$W$19=1,'Tablas Guyanas y Santa Elena'!E60,'Tablas Resto de Ecuador'!E60) -> 67110 | L60: =IF('INGRESO DE DATOS'!$W$19=1,'Tablas Guyanas y Santa Elena'!F60,'Tablas Resto de Ecuador'!F60) -> 62608 | M60: =IF('INGRESO DE DATOS'!$W$19=1,'Tablas Guyanas y Santa Elena'!G60,'Tablas Resto de Ecuador'!G60) -> 45226 | O60: 84218 | P60: 78786 | Q60: 67110 | R60: 62608 | S60: 45226
A61: 73 | C61: 89336 | D61: 84116 | E61: 71474 | F61: 66985 | G61: 48687 | I61: =IF('INGRESO DE DATOS'!$W$19=1,'Tablas Guyanas y Santa Elena'!C61,'Tablas Resto de Ecuador'!C61) -> 89336 | J61: =IF('INGRESO DE DATOS'!$W$19=1,'Tablas Guyanas y Santa Elena'!D61,'Tablas Resto de Ecuador'!D61) -> 84116 | K61: =IF('INGRESO DE DATOS'!$W$19=1,'Tablas Guyanas y Santa Elena'!E61,'Tablas Resto de Ecuador'!E61) -> 71474 | L61: =IF('INGRESO DE DATOS'!$W$19=1,'Tablas Guyanas y Santa Elena'!F61,'Tablas Resto de Ecuador'!F61) -> 66985 | M61: =IF('INGRESO DE DATOS'!$W$19=1,'Tablas Guyanas y Santa Elena'!G61,'Tablas Resto de Ecuador'!G61) -> 48687 | O61: 89336 | P61: 84116 | Q61: 71474 | R61: 66985 | S61: 48687
A62: 74 | C62: 94454 | D62: 89448 | E62: 75839 | F62: 71361 | G62: 52288 | I62: =IF('INGRESO DE DATOS'!$W$19=1,'Tablas Guyanas y Santa Elena'!C62,'Tablas Resto de Ecuador'!C62) -> 94454 | J62: =IF('INGRESO DE DATOS'!$W$19=1,'Tablas Guyanas y Santa Elena'!D62,'Tablas Resto de Ecuador'!D62) -> 89448 | K62: =IF('INGRESO DE DATOS'!$W$19=1,'Tablas Guyanas y Santa Elena'!E62,'Tablas Resto de Ecuador'!E62) -> 75839 | L62: =IF('INGRESO DE DATOS'!$W$19=1,'Tablas Guyanas y Santa Elena'!F62,'Tablas Resto de Ecuador'!F62) -> 71361 | M62: =IF('INGRESO DE DATOS'!$W$19=1,'Tablas Guyanas y Santa Elena'!G62,'Tablas Resto de Ecuador'!G62) -> 52288 | O62: 94454 | P62: 89448 | Q62: 75839 | R62: 71361 | S62: 52288
A63: 75 | C63: 99487 | D63: 94692 | E63: 80117 | F63: 75653 | G63: 56031 | I63: =IF('INGRESO DE DATOS'!$W$19=1,'Tablas Guyanas y Santa Elena'!C63,'Tablas Resto de Ecuador'!C63) -> 99487 | J63: =IF('INGRESO DE DATOS'!$W$19=1,'Tablas Guyanas y Santa Elena'!D63,'Tablas Resto de Ecuador'!D63) -> 94692 | K63: =IF('INGRESO DE DATOS'!$W$19=1,'Tablas Guyanas y Santa Elena'!E63,'Tablas Resto de Ecuador'!E63) -> 80117 | L63: =IF('INGRESO DE DATOS'!$W$19=1,'Tablas Guyanas y Santa Elena'!F63,'Tablas Resto de Ecuador'!F63) -> 75653 | M63: =IF('INGRESO DE DATOS'!$W$19=1,'Tablas Guyanas y Santa Elena'!G63,'Tablas Resto de Ecuador'!G63) -> 56031 | O63: 99487 | P63: 94692 | Q63: 80117 | R63: 75653 | S63: 56031
A64: 76 | C64: 99487 | D64: 94692 | E64: 80117 | F64: 75653 | G64: 56031 | I64: =IF('INGRESO DE DATOS'!$W$19=1,'Tablas Guyanas y Santa Elena'!C64,'Tablas Resto de Ecuador'!C64) -> 99487 | J64: =IF('INGRESO DE DATOS'!$W$19=1,'Tablas Guyanas y Santa Elena'!D64,'Tablas Resto de Ecuador'!D64) -> 94692 | K64: =IF('INGRESO DE DATOS'!$W$19=1,'Tablas Guyanas y Santa Elena'!E64,'Tablas Resto de Ecuador'!E64) -> 80117 | L64: =IF('INGRESO DE DATOS'!$W$19=1,'Tablas Guyanas y Santa Elena'!F64,'Tablas Resto de Ecuador'!F64) -> 75653 | M64: =IF('INGRESO DE DATOS'!$W$19=1,'Tablas Guyanas y Santa Elena'!G64,'Tablas Resto de Ecuador'!G64) -> 56031 | O64: 99487 | P64: 94692 | Q64: 80117 | R64: 75653 | S64: 56031
A65: 77 | C65: 99487 | D65: 94692 | E65: 80117 | F65: 75653 | G65: 56031 | I65: =IF('INGRESO DE DATOS'!$W$19=1,'Tablas Guyanas y Santa Elena'!C65,'Tablas Resto de Ecuador'!C65) -> 99487 | J65: =IF('INGRESO DE DATOS'!$W$19=1,'Tablas Guyanas y Santa Elena'!D65,'Tablas Resto de Ecuador'!D65) -> 94692 | K65: =IF('INGRESO DE DATOS'!$W$19=1,'Tablas Guyanas y Santa Elena'!E65,'Tablas Resto de Ecuador'!E65) -> 80117 | L65: =IF('INGRESO DE DATOS'!$W$19=1,'Tablas Guyanas y Santa Elena'!F65,'Tablas Resto de Ecuador'!F65) -> 75653 | M65: =IF('INGRESO DE DATOS'!$W$19=1,'Tablas Guyanas y Santa Elena'!G65,'Tablas Resto de Ecuador'!G65) -> 56031 | O65: 99487 | P65: 94692 | Q65: 80117 | R65: 75653 | S65: 56031
A66: 78 | C66: 99487 | D66: 94692 | E66: 80117 | F66: 75653 | G66: 56031 | I66: =IF('INGRESO DE DATOS'!$W$19=1,'Tablas Guyanas y Santa Elena'!C66,'Tablas Resto de Ecuador'!C66) -> 99487 | J66: =IF('INGRESO DE DATOS'!$W$19=1,'Tablas Guyanas y Santa Elena'!D66,'Tablas Resto de Ecuador'!D66) -> 94692 | K66: =IF('INGRESO DE DATOS'!$W$19=1,'Tablas Guyanas y Santa Elena'!E66,'Tablas Resto de Ecuador'!E66) -> 80117 | L66: =IF('INGRESO DE DATOS'!$W$19=1,'Tablas Guyanas y Santa Elena'!F66,'Tablas Resto de Ecuador'!F66) -> 75653 | M66: =IF('INGRESO DE DATOS'!$W$19=1,'Tablas Guyanas y Santa Elena'!G66,'Tablas Resto de Ecuador'!G66) -> 56031 | O66: 99487 | P66: 94692 | Q66: 80117 | R66: 75653 | S66: 56031
A67: 79 | C67: 99487 | D67: 94692 | E67: 80117 | F67: 75653 | G67: 56031 | I67: =IF('INGRESO DE DATOS'!$W$19=1,'Tablas Guyanas y Santa Elena'!C67,'Tablas Resto de Ecuador'!C67) -> 99487 | J67: =IF('INGRESO DE DATOS'!$W$19=1,'Tablas Guyanas y Santa Elena'!D67,'Tablas Resto de Ecuador'!D67) -> 94692 | K67: =IF('INGRESO DE DATOS'!$W$19=1,'Tablas Guyanas y Santa Elena'!E67,'Tablas Resto de Ecuador'!E67) -> 80117 | L67: =IF('INGRESO DE DATOS'!$W$19=1,'Tablas Guyanas y Santa Elena'!F67,'Tablas Resto de Ecuador'!F67) -> 75653 | M67: =IF('INGRESO DE DATOS'!$W$19=1,'Tablas Guyanas y Santa Elena'!G67,'Tablas Resto de Ecuador'!G67) -> 56031 | O67: 99487 | P67: 94692 | Q67: 80117 | R67: 75653 | S67: 56031
A68: 80 | C68: 99487 | D68: 94692 | E68: 80117 | F68: 75653 | G68: 56031 | I68: =IF('INGRESO DE DATOS'!$W$19=1,'Tablas Guyanas y Santa Elena'!C68,'Tablas Resto de Ecuador'!C68) -> 99487 | J68: =IF('INGRESO DE DATOS'!$W$19=1,'Tablas Guyanas y Santa Elena'!D68,'Tablas Resto de Ecuador'!D68) -> 94692 | K68: =IF('INGRESO DE DATOS'!$W$19=1,'Tablas Guyanas y Santa Elena'!E68,'Tablas Resto de Ecuador'!E68) -> 80117 | L68: =IF('INGRESO DE DATOS'!$W$19=1,'Tablas Guyanas y Santa Elena'!F68,'Tablas Resto de Ecuador'!F68) -> 75653 | M68: =IF('INGRESO DE DATOS'!$W$19=1,'Tablas Guyanas y Santa Elena'!G68,'Tablas Resto de Ecuador'!G68) -> 56031 | O68: 99487 | P68: 94692 | Q68: 80117 | R68: 75653 | S68: 56031
A69: 81 | C69: 99487 | D69: 94692 | E69: 80117 | F69: 75653 | G69: 56031 | I69: =IF('INGRESO DE DATOS'!$W$19=1,'Tablas Guyanas y Santa Elena'!C69,'Tablas Resto de Ecuador'!C69) -> 99487 | J69: =IF('INGRESO DE DATOS'!$W$19=1,'Tablas Guyanas y Santa Elena'!D69,'Tablas Resto de Ecuador'!D69) -> 94692 | K69: =IF('INGRESO DE DATOS'!$W$19=1,'Tablas Guyanas y Santa Elena'!E69,'Tablas Resto de Ecuador'!E69) -> 80117 | L69: =IF('INGRESO DE DATOS'!$W$19=1,'Tablas Guyanas y Santa Elena'!F69,'Tablas Resto de Ecuador'!F69) -> 75653 | M69: =IF('INGRESO DE DATOS'!$W$19=1,'Tablas Guyanas y Santa Elena'!G69,'Tablas Resto de Ecuador'!G69) -> 56031 | O69: 99487 | P69: 94692 | Q69: 80117 | R69: 75653 | S69: 56031
A70: 82 | C70: 99487 | D70: 94692 | E70: 80117 | F70: 75653 | G70: 56031 | I70: =IF('INGRESO DE DATOS'!$W$19=1,'Tablas Guyanas y Santa Elena'!C70,'Tablas Resto de Ecuador'!C70) -> 99487 | J70: =IF('INGRESO DE DATOS'!$W$19=1,'Tablas Guyanas y Santa Elena'!D70,'Tablas Resto de Ecuador'!D70) -> 94692 | K70: =IF('INGRESO DE DATOS'!$W$19=1,'Tablas Guyanas y Santa Elena'!E70,'Tablas Resto de Ecuador'!E70) -> 80117 | L70: =IF('INGRESO DE DATOS'!$W$19=1,'Tablas Guyanas y Santa Elena'!F70,'Tablas Resto de Ecuador'!F70) -> 75653 | M70: =IF('INGRESO DE DATOS'!$W$19=1,'Tablas Guyanas y Santa Elena'!G70,'Tablas Resto de Ecuador'!G70) -> 56031 | O70: 99487 | P70: 94692 | Q70: 80117 | R70: 75653 | S70: 56031
A71: 83 | C71: =O71*$X$2 -> 99487 | D71: 94692 | E71: 80117 | F71: 75653 | G71: 56031 | I71: =IF('INGRESO DE DATOS'!$W$19=1,'Tablas Guyanas y Santa Elena'!C71,'Tablas Resto de Ecuador'!C71) -> 99487 | J71: =IF('INGRESO DE DATOS'!$W$19=1,'Tablas Guyanas y Santa Elena'!D71,'Tablas Resto de Ecuador'!D71) -> 94692 | K71: =IF('INGRESO DE DATOS'!$W$19=1,'Tablas Guyanas y Santa Elena'!E71,'Tablas Resto de Ecuador'!E71) -> 80117 | L71: =IF('INGRESO DE DATOS'!$W$19=1,'Tablas Guyanas y Santa Elena'!F71,'Tablas Resto de Ecuador'!F71) -> 75653 | M71: =IF('INGRESO DE DATOS'!$W$19=1,'Tablas Guyanas y Santa Elena'!G71,'Tablas Resto de Ecuador'!G71) -> 56031 | O71: =I71*$P$4 -> 99487 | P71: 94692 | Q71: 80117 | R71: 75653 | S71: 56031
A72: 84 | B72: o más | C72: 99487 | D72: 94692 | E72: 80117 | F72: 75653 | G72: 56031 | I72: =IF('INGRESO DE DATOS'!$W$19=1,'Tablas Guyanas y Santa Elena'!C72,'Tablas Resto de Ecuador'!C72) -> 99487 | J72: =IF('INGRESO DE DATOS'!$W$19=1,'Tablas Guyanas y Santa Elena'!D72,'Tablas Resto de Ecuador'!D72) -> 94692 | K72: =IF('INGRESO DE DATOS'!$W$19=1,'Tablas Guyanas y Santa Elena'!E72,'Tablas Resto de Ecuador'!E72) -> 80117 | L72: =IF('INGRESO DE DATOS'!$W$19=1,'Tablas Guyanas y Santa Elena'!F72,'Tablas Resto de Ecuador'!F72) -> 75653 | M72: =IF('INGRESO DE DATOS'!$W$19=1,'Tablas Guyanas y Santa Elena'!G72,'Tablas Resto de Ecuador'!G72) -> 56031 | O72: 99487 | P72: 94692 | Q72: 80117 | R72: 75653 | S72: 56031
A73: 1 | B73: Hijo | C73: 3302 | D73: 2199 | E73: 1595 | F73: 1560 | G73: 1777 | I73: =IF('INGRESO DE DATOS'!$W$19=1,'Tablas Guyanas y Santa Elena'!C73,'Tablas Resto de Ecuador'!C73) -> 3302 | J73: =IF('INGRESO DE DATOS'!$W$19=1,'Tablas Guyanas y Santa Elena'!D73,'Tablas Resto de Ecuador'!D73) -> 2199 | K73: =IF('INGRESO DE DATOS'!$W$19=1,'Tablas Guyanas y Santa Elena'!E73,'Tablas Resto de Ecuador'!E73) -> 1595 | L73: =IF('INGRESO DE DATOS'!$W$19=1,'Tablas Guyanas y Santa Elena'!F73,'Tablas Resto de Ecuador'!F73) -> 1560 | M73: =IF('INGRESO DE DATOS'!$W$19=1,'Tablas Guyanas y Santa Elena'!G73,'Tablas Resto de Ecuador'!G73) -> 1777 | O73: 3302 | P73: 2199 | Q73: 1595 | R73: 1560 | S73: 1777
A74: 2 | B74: Hijos | C74: 6006 | D74: 3864 | E74: 3005 | F74: 2839 | G74: 3095 | I74: =IF('INGRESO DE DATOS'!$W$19=1,'Tablas Guyanas y Santa Elena'!C74,'Tablas Resto de Ecuador'!C74) -> 6006 | J74: =IF('INGRESO DE DATOS'!$W$19=1,'Tablas Guyanas y Santa Elena'!D74,'Tablas Resto de Ecuador'!D74) -> 3864 | K74: =IF('INGRESO DE DATOS'!$W$19=1,'Tablas Guyanas y Santa Elena'!E74,'Tablas Resto de Ecuador'!E74) -> 3005 | L74: =IF('INGRESO DE DATOS'!$W$19=1,'Tablas Guyanas y Santa Elena'!F74,'Tablas Resto de Ecuador'!F74) -> 2839 | M74: =IF('INGRESO DE DATOS'!$W$19=1,'Tablas Guyanas y Santa Elena'!G74,'Tablas Resto de Ecuador'!G74) -> 3095 | O74: 6006 | P74: 3864 | Q74: 3005 | R74: 2839 | S74: 3095
A75: 3 | B75: Hijos o más | C75: 8687 | D75: 5469 | E75: 4389 | F75: 4073 | G75: 4419 | I75: =IF('INGRESO DE DATOS'!$W$19=1,'Tablas Guyanas y Santa Elena'!C75,'Tablas Resto de Ecuador'!C75) -> 8687 | J75: =IF('INGRESO DE DATOS'!$W$19=1,'Tablas Guyanas y Santa Elena'!D75,'Tablas Resto de Ecuador'!D75) -> 5469 | K75: =IF('INGRESO DE DATOS'!$W$19=1,'Tablas Guyanas y Santa Elena'!E75,'Tablas Resto de Ecuador'!E75) -> 4389 | L75: =IF('INGRESO DE DATOS'!$W$19=1,'Tablas Guyanas y Santa Elena'!F75,'Tablas Resto de Ecuador'!F75) -> 4073 | M75: =IF('INGRESO DE DATOS'!$W$19=1,'Tablas Guyanas y Santa Elena'!G75,'Tablas Resto de Ecuador'!G75) -> 4419 | O75: 8687 | P75: 5469 | Q75: 4389 | R75: 4073 | S75: 4419
A77: BUPA GLOBAL PREMIER
A78: TARIFAS ANUALES
A80: EDAD | C80: 250 | D80: 2000 | E80: 3500 | F80: 5000 | G80: 10000 | I80: TARIFAS BASE | O80: TARIFAS BASE COND ESCUENTO
A81: 18 | C81: =O81*$X$2 -> 10106 | D81: =P81*$X$2 -> 7355 | E81: =Q81*$X$2 -> 5403 | F81: =R81*$X$2 -> 4262.94 | G81: 3354 | I81: =IF('INGRESO DE DATOS'!$W$19=1,'Tablas Guyanas y Santa Elena'!C81,'Tablas Resto de Ecuador'!C81) -> 10106 | J81: =IF('INGRESO DE DATOS'!$W$19=1,'Tablas Guyanas y Santa Elena'!D81,'Tablas Resto de Ecuador'!D81) -> 7355 | K81: =IF('INGRESO DE DATOS'!$W$19=1,'Tablas Guyanas y Santa Elena'!E81,'Tablas Resto de Ecuador'!E81) -> 5403 | L81: =IF('INGRESO DE DATOS'!$W$19=1,'Tablas Guyanas y Santa Elena'!F81,'Tablas Resto de Ecuador'!F81) -> 4262.94 | M81: =IF('INGRESO DE DATOS'!$W$19=1,'Tablas Guyanas y Santa Elena'!G81,'Tablas Resto de Ecuador'!G81) -> 3354 | O81: =I81*$Q$4 -> 10106 | P81: =J81*$Q$4 -> 7355 | Q81: =K81*$Q$4 -> 5403 | R81: =L81*$Q$4 -> 4262.94 | S81: =M81*$Q$4 -> 3354
A82: 19 | C82: 10106 | D82: 7355 | E82: 5403 | F82: =R82*$X$2 -> 4262.94 | G82: =S82*$X$2 -> 3354 | I82: =IF('INGRESO DE DATOS'!$W$19=1,'Tablas Guyanas y Santa Elena'!C82,'Tablas Resto de Ecuador'!C82) -> 10106 | J82: =IF('INGRESO DE DATOS'!$W$19=1,'Tablas Guyanas y Santa Elena'!D82,'Tablas Resto de Ecuador'!D82) -> 7355 | K82: =IF('INGRESO DE DATOS'!$W$19=1,'Tablas Guyanas y Santa Elena'!E82,'Tablas Resto de Ecuador'!E82) -> 5403 | L82: =IF('INGRESO DE DATOS'!$W$19=1,'Tablas Guyanas y Santa Elena'!F82,'Tablas Resto de Ecuador'!F82) -> 4262.94 | M82: =IF('INGRESO DE DATOS'!$W$19=1,'Tablas Guyanas y Santa Elena'!G82,'Tablas Resto de Ecuador'!G82) -> 3354 | O82: =I82*$Q$4 -> 10106 | P82: =J82*$Q$4 -> 7355 | Q82: =K82*$Q$4 -> 5403 | R82: =L82*$Q$4 -> 4262.94 | S82: =M82*$Q$4 -> 3354
A83: 20 | C83: 10106 | D83: 7355 | E83: 5403 | F83: 4262.94 | G83: 3354 | I83: =IF('INGRESO DE DATOS'!$W$19=1,'Tablas Guyanas y Santa Elena'!C83,'Tablas Resto de Ecuador'!C83) -> 10106 | J83: =IF('INGRESO DE DATOS'!$W$19=1,'Tablas Guyanas y Santa Elena'!D83,'Tablas Resto de Ecuador'!D83) -> 7355 | K83: =IF('INGRESO DE DATOS'!$W$19=1,'Tablas Guyanas y Santa Elena'!E83,'Tablas Resto de Ecuador'!E83) -> 5403 | L83: =IF('INGRESO DE DATOS'!$W$19=1,'Tablas Guyanas y Santa Elena'!F83,'Tablas Resto de Ecuador'!F83) -> 4262.94 | M83: =IF('INGRESO DE DATOS'!$W$19=1,'Tablas Guyanas y Santa Elena'!G83,'Tablas Resto de Ecuador'!G83) -> 3354 | O83: 10106 | P83: 7355 | Q83: 5403 | R83: 4262.94 | S83: 3354
A84: 21 | C84: 10106 | D84: 7355 | E84: 5403 | F84: 4262.94 | G84: 3354 | I84: =IF('INGRESO DE DATOS'!$W$19=1,'Tablas Guyanas y Santa Elena'!C84,'Tablas Resto de Ecuador'!C84) -> 10106 | J84: =IF('INGRESO DE DATOS'!$W$19=1,'Tablas Guyanas y Santa Elena'!D84,'Tablas Resto de Ecuador'!D84) -> 7355 | K84: =IF('INGRESO DE DATOS'!$W$19=1,'Tablas Guyanas y Santa Elena'!E84,'Tablas Resto de Ecuador'!E84) -> 5403 | L84: =IF('INGRESO DE DATOS'!$W$19=1,'Tablas Guyanas y Santa Elena'!F84,'Tablas Resto de Ecuador'!F84) -> 4262.94 | M84: =IF('INGRESO DE DATOS'!$W$19=1,'Tablas Guyanas y Santa Elena'!G84,'Tablas Resto de Ecuador'!G84) -> 3354 | O84: 10106 | P84: 7355 | Q84: 5403 | R84: 4262.94 | S84: 3354
A85: 22 | C85: 10106 | D85: 7355 | E85: 5403 | F85: 4262.94 | G85: 3354 | I85: =IF('INGRESO DE DATOS'!$W$19=1,'Tablas Guyanas y Santa Elena'!C85,'Tablas Resto de Ecuador'!C85) -> 10106 | J85: =IF('INGRESO DE DATOS'!$W$19=1,'Tablas Guyanas y Santa Elena'!D85,'Tablas Resto de Ecuador'!D85) -> 7355 | K85: =IF('INGRESO DE DATOS'!$W$19=1,'Tablas Guyanas y Santa Elena'!E85,'Tablas Resto de Ecuador'!E85) -> 5403 | L85: =IF('INGRESO DE DATOS'!$W$19=1,'Tablas Guyanas y Santa Elena'!F85,'Tablas Resto de Ecuador'!F85) -> 4262.94 | M85: =IF('INGRESO DE DATOS'!$W$19=1,'Tablas Guyanas y Santa Elena'!G85,'Tablas Resto de Ecuador'!G85) -> 3354 | O85: 10106 | P85: 7355 | Q85: 5403 | R85: 4262.94 | S85: 3354
A86: 23 | C86: 10106 | D86: 7355 | E86: 5403 | F86: 4262.94 | G86: 3354 | I86: =IF('INGRESO DE DATOS'!$W$19=1,'Tablas Guyanas y Santa Elena'!C86,'Tablas Resto de Ecuador'!C86) -> 10106 | J86: =IF('INGRESO DE DATOS'!$W$19=1,'Tablas Guyanas y Santa Elena'!D86,'Tablas Resto de Ecuador'!D86) -> 7355 | K86: =IF('INGRESO DE DATOS'!$W$19=1,'Tablas Guyanas y Santa Elena'!E86,'Tablas Resto de Ecuador'!E86) -> 5403 | L86: =IF('INGRESO DE DATOS'!$W$19=1,'Tablas Guyanas y Santa Elena'!F86,'Tablas Resto de Ecuador'!F86) -> 4262.94 | M86: =IF('INGRESO DE DATOS'!$W$19=1,'Tablas Guyanas y Santa Elena'!G86,'Tablas Resto de Ecuador'!G86) -> 3354 | O86: 10106 | P86: 7355 | Q86: 5403 | R86: 4262.94 | S86: 3354
A87: 24 | C87: 10106 | D87: 7355 | E87: 5403 | F87: 4262.94 | G87: 3354 | I87: =IF('INGRESO DE DATOS'!$W$19=1,'Tablas Guyanas y Santa Elena'!C87,'Tablas Resto de Ecuador'!C87) -> 10106 | J87: =IF('INGRESO DE DATOS'!$W$19=1,'Tablas Guyanas y Santa Elena'!D87,'Tablas Resto de Ecuador'!D87) -> 7355 | K87: =IF('INGRESO DE DATOS'!$W$19=1,'Tablas Guyanas y Santa Elena'!E87,'Tablas Resto de Ecuador'!E87) -> 5403 | L87: =IF('INGRESO DE DATOS'!$W$19=1,'Tablas Guyanas y Santa Elena'!F87,'Tablas Resto de Ecuador'!F87) -> 4262.94 | M87: =IF('INGRESO DE DATOS'!$W$19=1,'Tablas Guyanas y Santa Elena'!G87,'Tablas Resto de Ecuador'!G87) -> 3354 | O87: 10106 | P87: 7355 | Q87: 5403 | R87: 4262.94 | S87: 3354
A88: 25 | C88: 10160 | D88: 8100 | E88: 5503 | F88: 4296 | G88: 3796 | I88: =IF('INGRESO DE DATOS'!$W$19=1,'Tablas Guyanas y Santa Elena'!C88,'Tablas Resto de Ecuador'!C88) -> 10160 | J88: =IF('INGRESO DE DATOS'!$W$19=1,'Tablas Guyanas y Santa Elena'!D88,'Tablas Resto de Ecuador'!D88) -> 8100 | K88: =IF('INGRESO DE DATOS'!$W$19=1,'Tablas Guyanas y Santa Elena'!E88,'Tablas Resto de Ecuador'!E88) -> 5503 | L88: =IF('INGRESO DE DATOS'!$W$19=1,'Tablas Guyanas y Santa Elena'!F88,'Tablas Resto de Ecuador'!F88) -> 4296 | M88: =IF('INGRESO DE DATOS'!$W$19=1,'Tablas Guyanas y Santa Elena'!G88,'Tablas Resto de Ecuador'!G88) -> 3796 | O88: 10160 | P88: 8100 | Q88: 5503 | R88: 4296 | S88: 3796
A89: 26 | C89: 10160 | D89: 8100 | E89: 5503 | F89: 4296 | G89: 3796 | I89: =IF('INGRESO DE DATOS'!$W$19=1,'Tablas Guyanas y Santa Elena'!C89,'Tablas Resto de Ecuador'!C89) -> 10160 | J89: =IF('INGRESO DE DATOS'!$W$19=1,'Tablas Guyanas y Santa Elena'!D89,'Tablas Resto de Ecuador'!D89) -> 8100 | K89: =IF('INGRESO DE DATOS'!$W$19=1,'Tablas Guyanas y Santa Elena'!E89,'Tablas Resto de Ecuador'!E89) -> 5503 | L89: =IF('INGRESO DE DATOS'!$W$19=1,'Tablas Guyanas y Santa Elena'!F89,'Tablas Resto de Ecuador'!F89) -> 4296 | M89: =IF('INGRESO DE DATOS'!$W$19=1,'Tablas Guyanas y Santa Elena'!G89,'Tablas Resto de Ecuador'!G89) -> 3796 | O89: 10160 | P89: 8100 | Q89: 5503 | R89: 4296 | S89: 3796
A90: 27 | C90: 10160 | D90: 8100 | E90: 5503 | F90: 4296 | G90: 3796 | I90: =IF('INGRESO DE DATOS'!$W$19=1,'Tablas Guyanas y Santa Elena'!C90,'Tablas Resto de Ecuador'!C90) -> 10160 | J90: =IF('INGRESO DE DATOS'!$W$19=1,'Tablas Guyanas y Santa Elena'!D90,'Tablas Resto de Ecuador'!D90) -> 8100 | K90: =IF('INGRESO DE DATOS'!$W$19=1,'Tablas Guyanas y Santa Elena'!E90,'Tablas Resto de Ecuador'!E90) -> 5503 | L90: =IF('INGRESO DE DATOS'!$W$19=1,'Tablas Guyanas y Santa Elena'!F90,'Tablas Resto de Ecuador'!F90) -> 4296 | M90: =IF('INGRESO DE DATOS'!$W$19=1,'Tablas Guyanas y Santa Elena'!G90,'Tablas Resto de Ecuador'!G90) -> 3796 | O90: 10160 | P90: 8100 | Q90: 5503 | R90: 4296 | S90: 3796
A91: 28 | C91: 10160 | D91: 8100 | E91: 5503 | F91: 4296 | G91: 3796 | I91: =IF('INGRESO DE DATOS'!$W$19=1,'Tablas Guyanas y Santa Elena'!C91,'Tablas Resto de Ecuador'!C91) -> 10160 | J91: =IF('INGRESO DE DATOS'!$W$19=1,'Tablas Guyanas y Santa Elena'!D91,'Tablas Resto de Ecuador'!D91) -> 8100 | K91: =IF('INGRESO DE DATOS'!$W$19=1,'Tablas Guyanas y Santa Elena'!E91,'Tablas Resto de Ecuador'!E91) -> 5503 | L91: =IF('INGRESO DE DATOS'!$W$19=1,'Tablas Guyanas y Santa Elena'!F91,'Tablas Resto de Ecuador'!F91) -> 4296 | M91: =IF('INGRESO DE DATOS'!$W$19=1,'Tablas Guyanas y Santa Elena'!G91,'Tablas Resto de Ecuador'!G91) -> 3796 | O91: 10160 | P91: 8100 | Q91: 5503 | R91: 4296 | S91: 3796
A92: 29 | C92: 10160 | D92: 8100 | E92: 5503 | F92: 4296 | G92: 3796 | I92: =IF('INGRESO DE DATOS'!$W$19=1,'Tablas Guyanas y Santa Elena'!C92,'Tablas Resto de Ecuador'!C92) -> 10160 | J92: =IF('INGRESO DE DATOS'!$W$19=1,'Tablas Guyanas y Santa Elena'!D92,'Tablas Resto de Ecuador'!D92) -> 8100 | K92: =IF('INGRESO DE DATOS'!$W$19=1,'Tablas Guyanas y Santa Elena'!E92,'Tablas Resto de Ecuador'!E92) -> 5503 | L92: =IF('INGRESO DE DATOS'!$W$19=1,'Tablas Guyanas y Santa Elena'!F92,'Tablas Resto de Ecuador'!F92) -> 4296 | M92: =IF('INGRESO DE DATOS'!$W$19=1,'Tablas Guyanas y Santa Elena'!G92,'Tablas Resto de Ecuador'!G92) -> 3796 | O92: 10160 | P92: 8100 | Q92: 5503 | R92: 4296 | S92: 3796
A93: 30 | C93: 12100 | D93: 9427 | E93: 7194 | F93: 5309 | G93: 4163 | I93: =IF('INGRESO DE DATOS'!$W$19=1,'Tablas Guyanas y Santa Elena'!C93,'Tablas Resto de Ecuador'!C93) -> 12100 | J93: =IF('INGRESO DE DATOS'!$W$19=1,'Tablas Guyanas y Santa Elena'!D93,'Tablas Resto de Ecuador'!D93) -> 9427 | K93: =IF('INGRESO DE DATOS'!$W$19=1,'Tablas Guyanas y Santa Elena'!E93,'Tablas Resto de Ecuador'!E93) -> 7194 | L93: =IF('INGRESO DE DATOS'!$W$19=1,'Tablas Guyanas y Santa Elena'!F93,'Tablas Resto de Ecuador'!F93) -> 5309 | M93: =IF('INGRESO DE DATOS'!$W$19=1,'Tablas Guyanas y Santa Elena'!G93,'Tablas Resto de Ecuador'!G93) -> 4163 | O93: 12100 | P93: 9427 | Q93: 7194 | R93: 5309 | S93: 4163
A94: 31 | C94: 12100 | D94: 9427 | E94: 7194 | F94: 5309 | G94: 4163 | I94: =IF('INGRESO DE DATOS'!$W$19=1,'Tablas Guyanas y Santa Elena'!C94,'Tablas Resto de Ecuador'!C94) -> 12100 | J94: =IF('INGRESO DE DATOS'!$W$19=1,'Tablas Guyanas y Santa Elena'!D94,'Tablas Resto de Ecuador'!D94) -> 9427 | K94: =IF('INGRESO DE DATOS'!$W$19=1,'Tablas Guyanas y Santa Elena'!E94,'Tablas Resto de Ecuador'!E94) -> 7194 | L94: =IF('INGRESO DE DATOS'!$W$19=1,'Tablas Guyanas y Santa Elena'!F94,'Tablas Resto de Ecuador'!F94) -> 5309 | M94: =IF('INGRESO DE DATOS'!$W$19=1,'Tablas Guyanas y Santa Elena'!G94,'Tablas Resto de Ecuador'!G94) -> 4163 | O94: 12100 | P94: 9427 | Q94: 7194 | R94: 5309 | S94: 4163
A95: 32 | C95: 12100 | D95: 9427 | E95: 7194 | F95: 5309 | G95: 4163 | I95: =IF('INGRESO DE DATOS'!$W$19=1,'Tablas Guyanas y Santa Elena'!C95,'Tablas Resto de Ecuador'!C95) -> 12100 | J95: =IF('INGRESO DE DATOS'!$W$19=1,'Tablas Guyanas y Santa Elena'!D95,'Tablas Resto de Ecuador'!D95) -> 9427 | K95: =IF('INGRESO DE DATOS'!$W$19=1,'Tablas Guyanas y Santa Elena'!E95,'Tablas Resto de Ecuador'!E95) -> 7194 | L95: =IF('INGRESO DE DATOS'!$W$19=1,'Tablas Guyanas y Santa Elena'!F95,'Tablas Resto de Ecuador'!F95) -> 5309 | M95: =IF('INGRESO DE DATOS'!$W$19=1,'Tablas Guyanas y Santa Elena'!G95,'Tablas Resto de Ecuador'!G95) -> 4163 | O95: 12100 | P95: 9427 | Q95: 7194 | R95: 5309 | S95: 4163
A96: 33 | C96: 12100 | D96: 9427 | E96: 7194 | F96: 5309 | G96: 4163 | I96: =IF('INGRESO DE DATOS'!$W$19=1,'Tablas Guyanas y Santa Elena'!C96,'Tablas Resto de Ecuador'!C96) -> 12100 | J96: =IF('INGRESO DE DATOS'!$W$19=1,'Tablas Guyanas y Santa Elena'!D96,'Tablas Resto de Ecuador'!D96) -> 9427 | K96: =IF('INGRESO DE DATOS'!$W$19=1,'Tablas Guyanas y Santa Elena'!E96,'Tablas Resto de Ecuador'!E96) -> 7194 | L96: =IF('INGRESO DE DATOS'!$W$19=1,'Tablas Guyanas y Santa Elena'!F96,'Tablas Resto de Ecuador'!F96) -> 5309 | M96: =IF('INGRESO DE DATOS'!$W$19=1,'Tablas Guyanas y Santa Elena'!G96,'Tablas Resto de Ecuador'!G96) -> 4163 | O96: 12100 | P96: 9427 | Q96: 7194 | R96: 5309 | S96: 4163
A97: 34 | C97: 12100 | D97: 9427 | E97: 7194 | F97: 5309 | G97: 4163 | I97: =IF('INGRESO DE DATOS'!$W$19=1,'Tablas Guyanas y Santa Elena'!C97,'Tablas Resto de Ecuador'!C97) -> 12100 | J97: =IF('INGRESO DE DATOS'!$W$19=1,'Tablas Guyanas y Santa Elena'!D97,'Tablas Resto de Ecuador'!D97) -> 9427 | K97: =IF('INGRESO DE DATOS'!$W$19=1,'Tablas Guyanas y Santa Elena'!E97,'Tablas Resto de Ecuador'!E97) -> 7194 | L97: =IF('INGRESO DE DATOS'!$W$19=1,'Tablas Guyanas y Santa Elena'!F97,'Tablas Resto de Ecuador'!F97) -> 5309 | M97: =IF('INGRESO DE DATOS'!$W$19=1,'Tablas Guyanas y Santa Elena'!G97,'Tablas Resto de Ecuador'!G97) -> 4163 | O97: 12100 | P97: 9427 | Q97: 7194 | R97: 5309 | S97: 4163
A98: 35 | C98: 13503 | D98: 11388 | E98: 8558 | F98: 5870 | G98: 4603 | I98: =IF('INGRESO DE DATOS'!$W$19=1,'Tablas Guyanas y Santa Elena'!C98,'Tablas Resto de Ecuador'!C98) -> 13503 | J98: =IF('INGRESO DE DATOS'!$W$19=1,'Tablas Guyanas y Santa Elena'!D98,'Tablas Resto de Ecuador'!D98) -> 11388 | K98: =IF('INGRESO DE DATOS'!$W$19=1,'Tablas Guyanas y Santa Elena'!E98,'Tablas Resto de Ecuador'!E98) -> 8558 | L98: =IF('INGRESO DE DATOS'!$W$19=1,'Tablas Guyanas y Santa Elena'!F98,'Tablas Resto de Ecuador'!F98) -> 5870 | M98: =IF('INGRESO DE DATOS'!$W$19=1,'Tablas Guyanas y Santa Elena'!G98,'Tablas Resto de Ecuador'!G98) -> 4603 | O98: 13503 | P98: 11388 | Q98: 8558 | R98: 5870 | S98: 4603
A99: 36 | C99: 13503 | D99: 11388 | E99: 8558 | F99: 5870 | G99: 4603 | I99: =IF('INGRESO DE DATOS'!$W$19=1,'Tablas Guyanas y Santa Elena'!C99,'Tablas Resto de Ecuador'!C99) -> 13503 | J99: =IF('INGRESO DE DATOS'!$W$19=1,'Tablas Guyanas y Santa Elena'!D99,'Tablas Resto de Ecuador'!D99) -> 11388 | K99: =IF('INGRESO DE DATOS'!$W$19=1,'Tablas Guyanas y Santa Elena'!E99,'Tablas Resto de Ecuador'!E99) -> 8558 | L99: =IF('INGRESO DE DATOS'!$W$19=1,'Tablas Guyanas y Santa Elena'!F99,'Tablas Resto de Ecuador'!F99) -> 5870 | M99: =IF('INGRESO DE DATOS'!$W$19=1,'Tablas Guyanas y Santa Elena'!G99,'Tablas Resto de Ecuador'!G99) -> 4603 | O99: 13503 | P99: 11388 | Q99: 8558 | R99: 5870 | S99: 4603
A100: 37 | C100: 13503 | D100: 11388 | E100: 8558 | F100: 5870 | G100: 4603 | I100: =IF('INGRESO DE DATOS'!$W$19=1,'Tablas Guyanas y Santa Elena'!C100,'Tablas Resto de Ecuador'!C100) -> 13503 | J100: =IF('INGRESO DE DATOS'!$W$19=1,'Tablas Guyanas y Santa Elena'!D100,'Tablas Resto de Ecuador'!D100) -> 11388 | K100: =IF('INGRESO DE DATOS'!$W$19=1,'Tablas Guyanas y Santa Elena'!E100,'Tablas Resto de Ecuador'!E100) -> 8558 | L100: =IF('INGRESO DE DATOS'!$W$19=1,'Tablas Guyanas y Santa Elena'!F100,'Tablas Resto de Ecuador'!F100) -> 5870 | M100: =IF('INGRESO DE DATOS'!$W$19=1,'Tablas Guyanas y Santa Elena'!G100,'Tablas Resto de Ecuador'!G100) -> 4603 | O100: 13503 | P100: 11388 | Q100: 8558 | R100: 5870 | S100: 4603
A101: 38 | C101: 13503 | D101: 11388 | E101: 8558 | F101: 5870 | G101: 4603 | I101: =IF('INGRESO DE DATOS'!$W$19=1,'Tablas Guyanas y Santa Elena'!C101,'Tablas Resto de Ecuador'!C101) -> 13503 | J101: =IF('INGRESO DE DATOS'!$W$19=1,'Tablas Guyanas y Santa Elena'!D101,'Tablas Resto de Ecuador'!D101) -> 11388 | K101: =IF('INGRESO DE DATOS'!$W$19=1,'Tablas Guyanas y Santa Elena'!E101,'Tablas Resto de Ecuador'!E101) -> 8558 | L101: =IF('INGRESO DE DATOS'!$W$19=1,'Tablas Guyanas y Santa Elena'!F101,'Tablas Resto de Ecuador'!F101) -> 5870 | M101: =IF('INGRESO DE DATOS'!$W$19=1,'Tablas Guyanas y Santa Elena'!G101,'Tablas Resto de Ecuador'!G101) -> 4603 | O101: 13503 | P101: 11388 | Q101: 8558 | R101: 5870 | S101: 4603
A102: 39 | C102: 13503 | D102: 11388 | E102: 8558 | F102: 5870 | G102: 4603 | I102: =IF('INGRESO DE DATOS'!$W$19=1,'Tablas Guyanas y Santa Elena'!C102,'Tablas Resto de Ecuador'!C102) -> 13503 | J102: =IF('INGRESO DE DATOS'!$W$19=1,'Tablas Guyanas y Santa Elena'!D102,'Tablas Resto de Ecuador'!D102) -> 11388 | K102: =IF('INGRESO DE DATOS'!$W$19=1,'Tablas Guyanas y Santa Elena'!E102,'Tablas Resto de Ecuador'!E102) -> 8558 | L102: =IF('INGRESO DE DATOS'!$W$19=1,'Tablas Guyanas y Santa Elena'!F102,'Tablas Resto de Ecuador'!F102) -> 5870 | M102: =IF('INGRESO DE DATOS'!$W$19=1,'Tablas Guyanas y Santa Elena'!G102,'Tablas Resto de Ecuador'!G102) -> 4603 | O102: 13503 | P102: 11388 | Q102: 8558 | R102: 5870 | S102: 4603
A103: 40 | C103: 15128 | D103: 13343 | E103: 9536 | F103: 6521 | G103: 5117 | I103: =IF('INGRESO DE DATOS'!$W$19=1,'Tablas Guyanas y Santa Elena'!C103,'Tablas Resto de Ecuador'!C103) -> 15128 | J103: =IF('INGRESO DE DATOS'!$W$19=1,'Tablas Guyanas y Santa Elena'!D103,'Tablas Resto de Ecuador'!D103) -> 13343 | K103: =IF('INGRESO DE DATOS'!$W$19=1,'Tablas Guyanas y Santa Elena'!E103,'Tablas Resto de Ecuador'!E103) -> 9536 | L103: =IF('INGRESO DE DATOS'!$W$19=1,'Tablas Guyanas y Santa Elena'!F103,'Tablas Resto de Ecuador'!F103) -> 6521 | M103: =IF('INGRESO DE DATOS'!$W$19=1,'Tablas Guyanas y Santa Elena'!G103,'Tablas Resto de Ecuador'!G103) -> 5117 | O103: 15128 | P103: 13343 | Q103: 9536 | R103: 6521 | S103: 5117
A104: 41 | C104: 15128 | D104: 13343 | E104: 9536 | F104: 6521 | G104: 5117 | I104: =IF('INGRESO DE DATOS'!$W$19=1,'Tablas Guyanas y Santa Elena'!C104,'Tablas Resto de Ecuador'!C104) -> 15128 | J104: =IF('INGRESO DE DATOS'!$W$19=1,'Tablas Guyanas y Santa Elena'!D104,'Tablas Resto de Ecuador'!D104) -> 13343 | K104: =IF('INGRESO DE DATOS'!$W$19=1,'Tablas Guyanas y Santa Elena'!E104,'Tablas Resto de Ecuador'!E104) -> 9536 | L104: =IF('INGRESO DE DATOS'!$W$19=1,'Tablas Guyanas y Santa Elena'!F104,'Tablas Resto de Ecuador'!F104) -> 6521 | M104: =IF('INGRESO DE DATOS'!$W$19=1,'Tablas Guyanas y Santa Elena'!G104,'Tablas Resto de Ecuador'!G104) -> 5117 | O104: 15128 | P104: 13343 | Q104: 9536 | R104: 6521 | S104: 5117
A105: 42 | C105: 15128 | D105: 13343 | E105: 9536 | F105: 6521 | G105: 5117 | I105: =IF('INGRESO DE DATOS'!$W$19=1,'Tablas Guyanas y Santa Elena'!C105,'Tablas Resto de Ecuador'!C105) -> 15128 | J105: =IF('INGRESO DE DATOS'!$W$19=1,'Tablas Guyanas y Santa Elena'!D105,'Tablas Resto de Ecuador'!D105) -> 13343 | K105: =IF('INGRESO DE DATOS'!$W$19=1,'Tablas Guyanas y Santa Elena'!E105,'Tablas Resto de Ecuador'!E105) -> 9536 | L105: =IF('INGRESO DE DATOS'!$W$19=1,'Tablas Guyanas y Santa Elena'!F105,'Tablas Resto de Ecuador'!F105) -> 6521 | M105: =IF('INGRESO DE DATOS'!$W$19=1,'Tablas Guyanas y Santa Elena'!G105,'Tablas Resto de Ecuador'!G105) -> 5117 | O105: 15128 | P105: 13343 | Q105: 9536 | R105: 6521 | S105: 5117
A106: 43 | C106: 15128 | D106: 13343 | E106: 9536 | F106: 6521 | G106: 5117 | I106: =IF('INGRESO DE DATOS'!$W$19=1,'Tablas Guyanas y Santa Elena'!C106,'Tablas Resto de Ecuador'!C106) -> 15128 | J106: =IF('INGRESO DE DATOS'!$W$19=1,'Tablas Guyanas y Santa Elena'!D106,'Tablas Resto de Ecuador'!D106) -> 13343 | K106: =IF('INGRESO DE DATOS'!$W$19=1,'Tablas Guyanas y Santa Elena'!E106,'Tablas Resto de Ecuador'!E106) -> 9536 | L106: =IF('INGRESO DE DATOS'!$W$19=1,'Tablas Guyanas y Santa Elena'!F106,'Tablas Resto de Ecuador'!F106) -> 6521 | M106: =IF('INGRESO DE DATOS'!$W$19=1,'Tablas Guyanas y Santa Elena'!G106,'Tablas Resto de Ecuador'!G106) -> 5117 | O106: 15128 | P106: 13343 | Q106: 9536 | R106: 6521 | S106: 5117
A107: 44 | C107: 15128 | D107: 13343 | E107: 9536 | F107: 6521 | G107: 5117 | I107: =IF('INGRESO DE DATOS'!$W$19=1,'Tablas Guyanas y Santa Elena'!C107,'Tablas Resto de Ecuador'!C107) -> 15128 | J107: =IF('INGRESO DE DATOS'!$W$19=1,'Tablas Guyanas y Santa Elena'!D107,'Tablas Resto de Ecuador'!D107) -> 13343 | K107: =IF('INGRESO DE DATOS'!$W$19=1,'Tablas Guyanas y Santa Elena'!E107,'Tablas Resto de Ecuador'!E107) -> 9536 | L107: =IF('INGRESO DE DATOS'!$W$19=1,'Tablas Guyanas y Santa Elena'!F107,'Tablas Resto de Ecuador'!F107) -> 6521 | M107: =IF('INGRESO DE DATOS'!$W$19=1,'Tablas Guyanas y Santa Elena'!G107,'Tablas Resto de Ecuador'!G107) -> 5117 | O107: 15128 | P107: 13343 | Q107: 9536 | R107: 6521 | S107: 5117
A108: 45 | C108: 16929 | D108: 13437 | E108: 10602 | F108: 7257 | G108: 5693 | I108: =IF('INGRESO DE DATOS'!$W$19=1,'Tablas Guyanas y Santa Elena'!C108,'Tablas Resto de Ecuador'!C108) -> 16929 | J108: =IF('INGRESO DE DATOS'!$W$19=1,'Tablas Guyanas y Santa Elena'!D108,'Tablas Resto de Ecuador'!D108) -> 13437 | K108: =IF('INGRESO DE DATOS'!$W$19=1,'Tablas Guyanas y Santa Elena'!E108,'Tablas Resto de Ecuador'!E108) -> 10602 | L108: =IF('INGRESO DE DATOS'!$W$19=1,'Tablas Guyanas y Santa Elena'!F108,'Tablas Resto de Ecuador'!F108) -> 7257 | M108: =IF('INGRESO DE DATOS'!$W$19=1,'Tablas Guyanas y Santa Elena'!G108,'Tablas Resto de Ecuador'!G108) -> 5693 | O108: 16929 | P108: 13437 | Q108: 10602 | R108: 7257 | S108: 5693
A109: 46 | C109: 16929 | D109: 13437 | E109: 10602 | F109: 7257 | G109: 5693 | I109: =IF('INGRESO DE DATOS'!$W$19=1,'Tablas Guyanas y Santa Elena'!C109,'Tablas Resto de Ecuador'!C109) -> 16929 | J109: =IF('INGRESO DE DATOS'!$W$19=1,'Tablas Guyanas y Santa Elena'!D109,'Tablas Resto de Ecuador'!D109) -> 13437 | K109: =IF('INGRESO DE DATOS'!$W$19=1,'Tablas Guyanas y Santa Elena'!E109,'Tablas Resto de Ecuador'!E109) -> 10602 | L109: =IF('INGRESO DE DATOS'!$W$19=1,'Tablas Guyanas y Santa Elena'!F109,'Tablas Resto de Ecuador'!F109) -> 7257 | M109: =IF('INGRESO DE DATOS'!$W$19=1,'Tablas Guyanas y Santa Elena'!G109,'Tablas Resto de Ecuador'!G109) -> 5693 | O109: 16929 | P109: 13437 | Q109: 10602 | R109: 7257 | S109: 5693
A110: 47 | C110: 16929 | D110: 13437 | E110: 10602 | F110: 7257 | G110: 5693 | I110: =IF('INGRESO DE DATOS'!$W$19=1,'Tablas Guyanas y Santa Elena'!C110,'Tablas Resto de Ecuador'!C110) -> 16929 | J110: =IF('INGRESO DE DATOS'!$W$19=1,'Tablas Guyanas y Santa Elena'!D110,'Tablas Resto de Ecuador'!D110) -> 13437 | K110: =IF('INGRESO DE DATOS'!$W$19=1,'Tablas Guyanas y Santa Elena'!E110,'Tablas Resto de Ecuador'!E110) -> 10602 | L110: =IF('INGRESO DE DATOS'!$W$19=1,'Tablas Guyanas y Santa Elena'!F110,'Tablas Resto de Ecuador'!F110) -> 7257 | M110: =IF('INGRESO DE DATOS'!$W$19=1,'Tablas Guyanas y Santa Elena'!G110,'Tablas Resto de Ecuador'!G110) -> 5693 | O110: 16929 | P110: 13437 | Q110: 10602 | R110: 7257 | S110: 5693
A111: 48 | C111: 16929 | D111: 13437 | E111: 10602 | F111: 7257 | G111: 5693 | I111: =IF('INGRESO DE DATOS'!$W$19=1,'Tablas Guyanas y Santa Elena'!C111,'Tablas Resto de Ecuador'!C111) -> 16929 | J111: =IF('INGRESO DE DATOS'!$W$19=1,'Tablas Guyanas y Santa Elena'!D111,'Tablas Resto de Ecuador'!D111) -> 13437 | K111: =IF('INGRESO DE DATOS'!$W$19=1,'Tablas Guyanas y Santa Elena'!E111,'Tablas Resto de Ecuador'!E111) -> 10602 | L111: =IF('INGRESO DE DATOS'!$W$19=1,'Tablas Guyanas y Santa Elena'!F111,'Tablas Resto de Ecuador'!F111) -> 7257 | M111: =IF('INGRESO DE DATOS'!$W$19=1,'Tablas Guyanas y Santa Elena'!G111,'Tablas Resto de Ecuador'!G111) -> 5693 | O111: 16929 | P111: 13437 | Q111: 10602 | R111: 7257 | S111: 5693
A112: 49 | C112: 16929 | D112: 13437 | E112: 10602 | F112: 7257 | G112: 5693 | I112: =IF('INGRESO DE DATOS'!$W$19=1,'Tablas Guyanas y Santa Elena'!C112,'Tablas Resto de Ecuador'!C112) -> 16929 | J112: =IF('INGRESO DE DATOS'!$W$19=1,'Tablas Guyanas y Santa Elena'!D112,'Tablas Resto de Ecuador'!D112) -> 13437 | K112: =IF('INGRESO DE DATOS'!$W$19=1,'Tablas Guyanas y Santa Elena'!E112,'Tablas Resto de Ecuador'!E112) -> 10602 | L112: =IF('INGRESO DE DATOS'!$W$19=1,'Tablas Guyanas y Santa Elena'!F112,'Tablas Resto de Ecuador'!F112) -> 7257 | M112: =IF('INGRESO DE DATOS'!$W$19=1,'Tablas Guyanas y Santa Elena'!G112,'Tablas Resto de Ecuador'!G112) -> 5693 | O112: 16929 | P112: 13437 | Q112: 10602 | R112: 7257 | S112: 5693
A113: 50 | C113: =O113*$X$2 -> 18959 | D113: =P113*$X$2 -> 14193 | E113: =Q113*$X$2 -> 11454 | F113: 8098 | G113: 6352 | I113: =IF('INGRESO DE DATOS'!$W$19=1,'Tablas Guyanas y Santa Elena'!C113,'Tablas Resto de Ecuador'!C113) -> 18959 | J113: =IF('INGRESO DE DATOS'!$W$19=1,'Tablas Guyanas y Santa Elena'!D113,'Tablas Resto de Ecuador'!D113) -> 14193 | K113: =IF('INGRESO DE DATOS'!$W$19=1,'Tablas Guyanas y Santa Elena'!E113,'Tablas Resto de Ecuador'!E113) -> 11454 | L113: =IF('INGRESO DE DATOS'!$W$19=1,'Tablas Guyanas y Santa Elena'!F113,'Tablas Resto de Ecuador'!F113) -> 8098 | M113: =IF('INGRESO DE DATOS'!$W$19=1,'Tablas Guyanas y Santa Elena'!G113,'Tablas Resto de Ecuador'!G113) -> 6352 | O113: 18959 | P113: 14193 | Q113: 11454 | R113: 8098 | S113: 6352
A114: 51 | C114: 18959 | D114: 14193 | E114: 11454 | F114: 8098 | G114: 6352 | I114: =IF('INGRESO DE DATOS'!$W$19=1,'Tablas Guyanas y Santa Elena'!C114,'Tablas Resto de Ecuador'!C114) -> 18959 | J114: =IF('INGRESO DE DATOS'!$W$19=1,'Tablas Guyanas y Santa Elena'!D114,'Tablas Resto de Ecuador'!D114) -> 14193 | K114: =IF('INGRESO DE DATOS'!$W$19=1,'Tablas Guyanas y Santa Elena'!E114,'Tablas Resto de Ecuador'!E114) -> 11454 | L114: =IF('INGRESO DE DATOS'!$W$19=1,'Tablas Guyanas y Santa Elena'!F114,'Tablas Resto de Ecuador'!F114) -> 8098 | M114: =IF('INGRESO DE DATOS'!$W$19=1,'Tablas Guyanas y Santa Elena'!G114,'Tablas Resto de Ecuador'!G114) -> 6352 | O114: 18959 | P114: 14193 | Q114: 11454 | R114: 8098 | S114: 6352
A115: 52 | C115: 18959 | D115: 14193 | E115: 11454 | F115: 8098 | G115: 6352 | I115: =IF('INGRESO DE DATOS'!$W$19=1,'Tablas Guyanas y Santa Elena'!C115,'Tablas Resto de Ecuador'!C115) -> 18959 | J115: =IF('INGRESO DE DATOS'!$W$19=1,'Tablas Guyanas y Santa Elena'!D115,'Tablas Resto de Ecuador'!D115) -> 14193 | K115: =IF('INGRESO DE DATOS'!$W$19=1,'Tablas Guyanas y Santa Elena'!E115,'Tablas Resto de Ecuador'!E115) -> 11454 | L115: =IF('INGRESO DE DATOS'!$W$19=1,'Tablas Guyanas y Santa Elena'!F115,'Tablas Resto de Ecuador'!F115) -> 8098 | M115: =IF('INGRESO DE DATOS'!$W$19=1,'Tablas Guyanas y Santa Elena'!G115,'Tablas Resto de Ecuador'!G115) -> 6352 | O115: 18959 | P115: 14193 | Q115: 11454 | R115: 8098 | S115: 6352
A116: 53 | C116: 18959 | D116: 14193 | E116: 11454 | F116: 8098 | G116: 6352 | I116: =IF('INGRESO DE DATOS'!$W$19=1,'Tablas Guyanas y Santa Elena'!C116,'Tablas Resto de Ecuador'!C116) -> 18959 | J116: =IF('INGRESO DE DATOS'!$W$19=1,'Tablas Guyanas y Santa Elena'!D116,'Tablas Resto de Ecuador'!D116) -> 14193 | K116: =IF('INGRESO DE DATOS'!$W$19=1,'Tablas Guyanas y Santa Elena'!E116,'Tablas Resto de Ecuador'!E116) -> 11454 | L116: =IF('INGRESO DE DATOS'!$W$19=1,'Tablas Guyanas y Santa Elena'!F116,'Tablas Resto de Ecuador'!F116) -> 8098 | M116: =IF('INGRESO DE DATOS'!$W$19=1,'Tablas Guyanas y Santa Elena'!G116,'Tablas Resto de Ecuador'!G116) -> 6352 | O116: 18959 | P116: 14193 | Q116: 11454 | R116: 8098 | S116: 6352
A117: 54 | C117: 18959 | D117: 14193 | E117: 11454 | F117: 8098 | G117: 6352 | I117: =IF('INGRESO DE DATOS'!$W$19=1,'Tablas Guyanas y Santa Elena'!C117,'Tablas Resto de Ecuador'!C117) -> 18959 | J117: =IF('INGRESO DE DATOS'!$W$19=1,'Tablas Guyanas y Santa Elena'!D117,'Tablas Resto de Ecuador'!D117) -> 14193 | K117: =IF('INGRESO DE DATOS'!$W$19=1,'Tablas Guyanas y Santa Elena'!E117,'Tablas Resto de Ecuador'!E117) -> 11454 | L117: =IF('INGRESO DE DATOS'!$W$19=1,'Tablas Guyanas y Santa Elena'!F117,'Tablas Resto de Ecuador'!F117) -> 8098 | M117: =IF('INGRESO DE DATOS'!$W$19=1,'Tablas Guyanas y Santa Elena'!G117,'Tablas Resto de Ecuador'!G117) -> 6352 | O117: 18959 | P117: 14193 | Q117: 11454 | R117: 8098 | S117: 6352
A118: 55 | C118: 21202 | D118: 16564 | E118: 13314 | F118: 9026 | G118: 7085 | I118: =IF('INGRESO DE DATOS'!$W$19=1,'Tablas Guyanas y Santa Elena'!C118,'Tablas Resto de Ecuador'!C118) -> 21202 | J118: =IF('INGRESO DE DATOS'!$W$19=1,'Tablas Guyanas y Santa Elena'!D118,'Tablas Resto de Ecuador'!D118) -> 16564 | K118: =IF('INGRESO DE DATOS'!$W$19=1,'Tablas Guyanas y Santa Elena'!E118,'Tablas Resto de Ecuador'!E118) -> 13314 | L118: =IF('INGRESO DE DATOS'!$W$19=1,'Tablas Guyanas y Santa Elena'!F118,'Tablas Resto de Ecuador'!F118) -> 9026 | M118: =IF('INGRESO DE DATOS'!$W$19=1,'Tablas Guyanas y Santa Elena'!G118,'Tablas Resto de Ecuador'!G118) -> 7085 | O118: 21202 | P118: 16564 | Q118: 13314 | R118: 9026 | S118: 7085
A119: 56 | C119: 21202 | D119: 16564 | E119: 13314 | F119: 9026 | G119: 7085 | I119: =IF('INGRESO DE DATOS'!$W$19=1,'Tablas Guyanas y Santa Elena'!C119,'Tablas Resto de Ecuador'!C119) -> 21202 | J119: =IF('INGRESO DE DATOS'!$W$19=1,'Tablas Guyanas y Santa Elena'!D119,'Tablas Resto de Ecuador'!D119) -> 16564 | K119: =IF('INGRESO DE DATOS'!$W$19=1,'Tablas Guyanas y Santa Elena'!E119,'Tablas Resto de Ecuador'!E119) -> 13314 | L119: =IF('INGRESO DE DATOS'!$W$19=1,'Tablas Guyanas y Santa Elena'!F119,'Tablas Resto de Ecuador'!F119) -> 9026 | M119: =IF('INGRESO DE DATOS'!$W$19=1,'Tablas Guyanas y Santa Elena'!G119,'Tablas Resto de Ecuador'!G119) -> 7085 | O119: 21202 | P119: 16564 | Q119: 13314 | R119: 9026 | S119: 7085
A120: 57 | C120: 21202 | D120: 16564 | E120: 13314 | F120: 9026 | G120: 7085 | I120: =IF('INGRESO DE DATOS'!$W$19=1,'Tablas Guyanas y Santa Elena'!C120,'Tablas Resto de Ecuador'!C120) -> 21202 | J120: =IF('INGRESO DE DATOS'!$W$19=1,'Tablas Guyanas y Santa Elena'!D120,'Tablas Resto de Ecuador'!D120) -> 16564 | K120: =IF('INGRESO DE DATOS'!$W$19=1,'Tablas Guyanas y Santa Elena'!E120,'Tablas Resto de Ecuador'!E120) -> 13314 | L120: =IF('INGRESO DE DATOS'!$W$19=1,'Tablas Guyanas y Santa Elena'!F120,'Tablas Resto de Ecuador'!F120) -> 9026 | M120: =IF('INGRESO DE DATOS'!$W$19=1,'Tablas Guyanas y Santa Elena'!G120,'Tablas Resto de Ecuador'!G120) -> 7085 | O120: 21202 | P120: 16564 | Q120: 13314 | R120: 9026 | S120: 7085
A121: 58 | C121: 21202 | D121: 16564 | E121: 13314 | F121: 9026 | G121: 7085 | I121: =IF('INGRESO DE DATOS'!$W$19=1,'Tablas Guyanas y Santa Elena'!C121,'Tablas Resto de Ecuador'!C121) -> 21202 | J121: =IF('INGRESO DE DATOS'!$W$19=1,'Tablas Guyanas y Santa Elena'!D121,'Tablas Resto de Ecuador'!D121) -> 16564 | K121: =IF('INGRESO DE DATOS'!$W$19=1,'Tablas Guyanas y Santa Elena'!E121,'Tablas Resto de Ecuador'!E121) -> 13314 | L121: =IF('INGRESO DE DATOS'!$W$19=1,'Tablas Guyanas y Santa Elena'!F121,'Tablas Resto de Ecuador'!F121) -> 9026 | M121: =IF('INGRESO DE DATOS'!$W$19=1,'Tablas Guyanas y Santa Elena'!G121,'Tablas Resto de Ecuador'!G121) -> 7085 | O121: 21202 | P121: 16564 | Q121: 13314 | R121: 9026 | S121: 7085
A122: 59 | C122: 21202 | D122: 16564 | E122: 13314 | F122: 9026 | G122: 7085 | I122: =IF('INGRESO DE DATOS'!$W$19=1,'Tablas Guyanas y Santa Elena'!C122,'Tablas Resto de Ecuador'!C122) -> 21202 | J122: =IF('INGRESO DE DATOS'!$W$19=1,'Tablas Guyanas y Santa Elena'!D122,'Tablas Resto de Ecuador'!D122) -> 16564 | K122: =IF('INGRESO DE DATOS'!$W$19=1,'Tablas Guyanas y Santa Elena'!E122,'Tablas Resto de Ecuador'!E122) -> 13314 | L122: =IF('INGRESO DE DATOS'!$W$19=1,'Tablas Guyanas y Santa Elena'!F122,'Tablas Resto de Ecuador'!F122) -> 9026 | M122: =IF('INGRESO DE DATOS'!$W$19=1,'Tablas Guyanas y Santa Elena'!G122,'Tablas Resto de Ecuador'!G122) -> 7085 | O122: 21202 | P122: 16564 | Q122: 13314 | R122: 9026 | S122: 7085
A123: 60 | C123: 22683 | D123: 20044 | E123: 14236 | F123: 9653 | G123: 7572 | I123: =IF('INGRESO DE DATOS'!$W$19=1,'Tablas Guyanas y Santa Elena'!C123,'Tablas Resto de Ecuador'!C123) -> 22683 | J123: =IF('INGRESO DE DATOS'!$W$19=1,'Tablas Guyanas y Santa Elena'!D123,'Tablas Resto de Ecuador'!D123) -> 20044 | K123: =IF('INGRESO DE DATOS'!$W$19=1,'Tablas Guyanas y Santa Elena'!E123,'Tablas Resto de Ecuador'!E123) -> 14236 | L123: =IF('INGRESO DE DATOS'!$W$19=1,'Tablas Guyanas y Santa Elena'!F123,'Tablas Resto de Ecuador'!F123) -> 9653 | M123: =IF('INGRESO DE DATOS'!$W$19=1,'Tablas Guyanas y Santa Elena'!G123,'Tablas Resto de Ecuador'!G123) -> 7572 | O123: 22683 | P123: 20044 | Q123: 14236 | R123: 9653 | S123: 7572
A124: 61 | C124: 25279 | D124: 22333 | E124: 15843 | F124: 10744 | G124: 8427 | I124: =IF('INGRESO DE DATOS'!$W$19=1,'Tablas Guyanas y Santa Elena'!C124,'Tablas Resto de Ecuador'!C124) -> 25279 | J124: =IF('INGRESO DE DATOS'!$W$19=1,'Tablas Guyanas y Santa Elena'!D124,'Tablas Resto de Ecuador'!D124) -> 22333 | K124: =IF('INGRESO DE DATOS'!$W$19=1,'Tablas Guyanas y Santa Elena'!E124,'Tablas Resto de Ecuador'!E124) -> 15843 | L124: =IF('INGRESO DE DATOS'!$W$19=1,'Tablas Guyanas y Santa Elena'!F124,'Tablas Resto de Ecuador'!F124) -> 10744 | M124: =IF('INGRESO DE DATOS'!$W$19=1,'Tablas Guyanas y Santa Elena'!G124,'Tablas Resto de Ecuador'!G124) -> 8427 | O124: 25279 | P124: 22333 | Q124: 15843 | R124: 10744 | S124: 8427
A125: 62 | C125: 28087 | D125: 23965 | E125: 17594 | F125: 11927 | G125: 9356 | I125: =IF('INGRESO DE DATOS'!$W$19=1,'Tablas Guyanas y Santa Elena'!C125,'Tablas Resto de Ecuador'!C125) -> 28087 | J125: =IF('INGRESO DE DATOS'!$W$19=1,'Tablas Guyanas y Santa Elena'!D125,'Tablas Resto de Ecuador'!D125) -> 23965 | K125: =IF('INGRESO DE DATOS'!$W$19=1,'Tablas Guyanas y Santa Elena'!E125,'Tablas Resto de Ecuador'!E125) -> 17594 | L125: =IF('INGRESO DE DATOS'!$W$19=1,'Tablas Guyanas y Santa Elena'!F125,'Tablas Resto de Ecuador'!F125) -> 11927 | M125: =IF('INGRESO DE DATOS'!$W$19=1,'Tablas Guyanas y Santa Elena'!G125,'Tablas Resto de Ecuador'!G125) -> 9356 | O125: 28087 | P125: 23965 | Q125: 17594 | R125: 11927 | S125: 9356
A126: 63 | C126: 31103 | D126: 25267 | E126: 19489 | F126: 13211 | G126: 10364 | I126: =IF('INGRESO DE DATOS'!$W$19=1,'Tablas Guyanas y Santa Elena'!C126,'Tablas Resto de Ecuador'!C126) -> 31103 | J126: =IF('INGRESO DE DATOS'!$W$19=1,'Tablas Guyanas y Santa Elena'!D126,'Tablas Resto de Ecuador'!D126) -> 25267 | K126: =IF('INGRESO DE DATOS'!$W$19=1,'Tablas Guyanas y Santa Elena'!E126,'Tablas Resto de Ecuador'!E126) -> 19489 | L126: =IF('INGRESO DE DATOS'!$W$19=1,'Tablas Guyanas y Santa Elena'!F126,'Tablas Resto de Ecuador'!F126) -> 13211 | M126: =IF('INGRESO DE DATOS'!$W$19=1,'Tablas Guyanas y Santa Elena'!G126,'Tablas Resto de Ecuador'!G126) -> 10364 | O126: 31103 | P126: 25267 | Q126: 19489 | R126: 13211 | S126: 10364
A127: 64 | C127: 32855 | D127: 26811 | E127: 21517 | F127: 14584 | G127: 11444 | I127: =IF('INGRESO DE DATOS'!$W$19=1,'Tablas Guyanas y Santa Elena'!C127,'Tablas Resto de Ecuador'!C127) -> 32855 | J127: =IF('INGRESO DE DATOS'!$W$19=1,'Tablas Guyanas y Santa Elena'!D127,'Tablas Resto de Ecuador'!D127) -> 26811 | K127: =IF('INGRESO DE DATOS'!$W$19=1,'Tablas Guyanas y Santa Elena'!E127,'Tablas Resto de Ecuador'!E127) -> 21517 | L127: =IF('INGRESO DE DATOS'!$W$19=1,'Tablas Guyanas y Santa Elena'!F127,'Tablas Resto de Ecuador'!F127) -> 14584 | M127: =IF('INGRESO DE DATOS'!$W$19=1,'Tablas Guyanas y Santa Elena'!G127,'Tablas Resto de Ecuador'!G127) -> 11444 | O127: 32855 | P127: 26811 | Q127: 21517 | R127: 14584 | S127: 11444
A128: 65 | C128: 34780 | D128: 28718 | E128: 23146 | F128: 16060 | G128: 12601 | I128: =IF('INGRESO DE DATOS'!$W$19=1,'Tablas Guyanas y Santa Elena'!C128,'Tablas Resto de Ecuador'!C128) -> 34780 | J128: =IF('INGRESO DE DATOS'!$W$19=1,'Tablas Guyanas y Santa Elena'!D128,'Tablas Resto de Ecuador'!D128) -> 28718 | K128: =IF('INGRESO DE DATOS'!$W$19=1,'Tablas Guyanas y Santa Elena'!E128,'Tablas Resto de Ecuador'!E128) -> 23146 | L128: =IF('INGRESO DE DATOS'!$W$19=1,'Tablas Guyanas y Santa Elena'!F128,'Tablas Resto de Ecuador'!F128) -> 16060 | M128: =IF('INGRESO DE DATOS'!$W$19=1,'Tablas Guyanas y Santa Elena'!G128,'Tablas Resto de Ecuador'!G128) -> 12601 | O128: 34780 | P128: 28718 | Q128: 23146 | R128: 16060 | S128: 12601
A129: 66 | C129: 37251 | D129: 31101 | E129: 25150 | F129: 17627 | G129: 13832 | I129: =IF('INGRESO DE DATOS'!$W$19=1,'Tablas Guyanas y Santa Elena'!C129,'Tablas Resto de Ecuador'!C129) -> 37251 | J129: =IF('INGRESO DE DATOS'!$W$19=1,'Tablas Guyanas y Santa Elena'!D129,'Tablas Resto de Ecuador'!D129) -> 31101 | K129: =IF('INGRESO DE DATOS'!$W$19=1,'Tablas Guyanas y Santa Elena'!E129,'Tablas Resto de Ecuador'!E129) -> 25150 | L129: =IF('INGRESO DE DATOS'!$W$19=1,'Tablas Guyanas y Santa Elena'!F129,'Tablas Resto de Ecuador'!F129) -> 17627 | M129: =IF('INGRESO DE DATOS'!$W$19=1,'Tablas Guyanas y Santa Elena'!G129,'Tablas Resto de Ecuador'!G129) -> 13832 | O129: 37251 | P129: 31101 | Q129: 25150 | R129: 17627 | S129: 13832
A130: 67 | C130: 40166 | D130: 33881 | E130: 27524 | F130: 19289 | G130: 15131 | I130: =IF('INGRESO DE DATOS'!$W$19=1,'Tablas Guyanas y Santa Elena'!C130,'Tablas Resto de Ecuador'!C130) -> 40166 | J130: =IF('INGRESO DE DATOS'!$W$19=1,'Tablas Guyanas y Santa Elena'!D130,'Tablas Resto de Ecuador'!D130) -> 33881 | K130: =IF('INGRESO DE DATOS'!$W$19=1,'Tablas Guyanas y Santa Elena'!E130,'Tablas Resto de Ecuador'!E130) -> 27524 | L130: =IF('INGRESO DE DATOS'!$W$19=1,'Tablas Guyanas y Santa Elena'!F130,'Tablas Resto de Ecuador'!F130) -> 19289 | M130: =IF('INGRESO DE DATOS'!$W$19=1,'Tablas Guyanas y Santa Elena'!G130,'Tablas Resto de Ecuador'!G130) -> 15131 | O130: 40166 | P130: 33881 | Q130: 27524 | R130: 19289 | S130: 15131
A131: 68 | C131: 43334 | D131: 36887 | E131: 30111 | F131: 21048 | G131: 16513 | I131: =IF('INGRESO DE DATOS'!$W$19=1,'Tablas Guyanas y Santa Elena'!C131,'Tablas Resto de Ecuador'!C131) -> 43334 | J131: =IF('INGRESO DE DATOS'!$W$19=1,'Tablas Guyanas y Santa Elena'!D131,'Tablas Resto de Ecuador'!D131) -> 36887 | K131: =IF('INGRESO DE DATOS'!$W$19=1,'Tablas Guyanas y Santa Elena'!E131,'Tablas Resto de Ecuador'!E131) -> 30111 | L131: =IF('INGRESO DE DATOS'!$W$19=1,'Tablas Guyanas y Santa Elena'!F131,'Tablas Resto de Ecuador'!F131) -> 21048 | M131: =IF('INGRESO DE DATOS'!$W$19=1,'Tablas Guyanas y Santa Elena'!G131,'Tablas Resto de Ecuador'!G131) -> 16513 | O131: 43334 | P131: 36887 | Q131: 30111 | R131: 21048 | S131: 16513
A132: 69 | C132: 46566 | D132: 39949 | E132: 32749 | F132: 22897 | G132: 17964 | I132: =IF('INGRESO DE DATOS'!$W$19=1,'Tablas Guyanas y Santa Elena'!C132,'Tablas Resto de Ecuador'!C132) -> 46566 | J132: =IF('INGRESO DE DATOS'!$W$19=1,'Tablas Guyanas y Santa Elena'!D132,'Tablas Resto de Ecuador'!D132) -> 39949 | K132: =IF('INGRESO DE DATOS'!$W$19=1,'Tablas Guyanas y Santa Elena'!E132,'Tablas Resto de Ecuador'!E132) -> 32749 | L132: =IF('INGRESO DE DATOS'!$W$19=1,'Tablas Guyanas y Santa Elena'!F132,'Tablas Resto de Ecuador'!F132) -> 22897 | M132: =IF('INGRESO DE DATOS'!$W$19=1,'Tablas Guyanas y Santa Elena'!G132,'Tablas Resto de Ecuador'!G132) -> 17964 | O132: 46566 | P132: 39949 | Q132: 32749 | R132: 22897 | S132: 17964
A133: 70 | C133: 49671 | D133: 42898 | E133: 35283 | F133: 24846 | G133: 19490 | I133: =IF('INGRESO DE DATOS'!$W$19=1,'Tablas Guyanas y Santa Elena'!C133,'Tablas Resto de Ecuador'!C133) -> 49671 | J133: =IF('INGRESO DE DATOS'!$W$19=1,'Tablas Guyanas y Santa Elena'!D133,'Tablas Resto de Ecuador'!D133) -> 42898 | K133: =IF('INGRESO DE DATOS'!$W$19=1,'Tablas Guyanas y Santa Elena'!E133,'Tablas Resto de Ecuador'!E133) -> 35283 | L133: =IF('INGRESO DE DATOS'!$W$19=1,'Tablas Guyanas y Santa Elena'!F133,'Tablas Resto de Ecuador'!F133) -> 24846 | M133: =IF('INGRESO DE DATOS'!$W$19=1,'Tablas Guyanas y Santa Elena'!G133,'Tablas Resto de Ecuador'!G133) -> 19490 | O133: 49671 | P133: 42898 | Q133: 35283 | R133: 24846 | S133: 19490
A134: 71 | C134: 52650 | D134: 45735 | E134: 37710 | F134: 26889 | G134: 21095 | I134: =IF('INGRESO DE DATOS'!$W$19=1,'Tablas Guyanas y Santa Elena'!C134,'Tablas Resto de Ecuador'!C134) -> 52650 | J134: =IF('INGRESO DE DATOS'!$W$19=1,'Tablas Guyanas y Santa Elena'!D134,'Tablas Resto de Ecuador'!D134) -> 45735 | K134: =IF('INGRESO DE DATOS'!$W$19=1,'Tablas Guyanas y Santa Elena'!E134,'Tablas Resto de Ecuador'!E134) -> 37710 | L134: =IF('INGRESO DE DATOS'!$W$19=1,'Tablas Guyanas y Santa Elena'!F134,'Tablas Resto de Ecuador'!F134) -> 26889 | M134: =IF('INGRESO DE DATOS'!$W$19=1,'Tablas Guyanas y Santa Elena'!G134,'Tablas Resto de Ecuador'!G134) -> 21095 | O134: 52650 | P134: 45735 | Q134: 37710 | R134: 26889 | S134: 21095
A135: 72 | C135: 55627 | D135: 48571 | E135: 40137 | F135: 29030 | G135: 22775 | I135: =IF('INGRESO DE DATOS'!$W$19=1,'Tablas Guyanas y Santa Elena'!C135,'Tablas Resto de Ecuador'!C135) -> 55627 | J135: =IF('INGRESO DE DATOS'!$W$19=1,'Tablas Guyanas y Santa Elena'!D135,'Tablas Resto de Ecuador'!D135) -> 48571 | K135: =IF('INGRESO DE DATOS'!$W$19=1,'Tablas Guyanas y Santa Elena'!E135,'Tablas Resto de Ecuador'!E135) -> 40137 | L135: =IF('INGRESO DE DATOS'!$W$19=1,'Tablas Guyanas y Santa Elena'!F135,'Tablas Resto de Ecuador'!F135) -> 29030 | M135: =IF('INGRESO DE DATOS'!$W$19=1,'Tablas Guyanas y Santa Elena'!G135,'Tablas Resto de Ecuador'!G135) -> 22775 | O135: 55627 | P135: 48571 | Q135: 40137 | R135: 29030 | S135: 22775
A136: 73 | C136: 58606 | D136: 51407 | E136: 42564 | F136: 31263 | G136: 24526 | I136: =IF('INGRESO DE DATOS'!$W$19=1,'Tablas Guyanas y Santa Elena'!C136,'Tablas Resto de Ecuador'!C136) -> 58606 | J136: =IF('INGRESO DE DATOS'!$W$19=1,'Tablas Guyanas y Santa Elena'!D136,'Tablas Resto de Ecuador'!D136) -> 51407 | K136: =IF('INGRESO DE DATOS'!$W$19=1,'Tablas Guyanas y Santa Elena'!E136,'Tablas Resto de Ecuador'!E136) -> 42564 | L136: =IF('INGRESO DE DATOS'!$W$19=1,'Tablas Guyanas y Santa Elena'!F136,'Tablas Resto de Ecuador'!F136) -> 31263 | M136: =IF('INGRESO DE DATOS'!$W$19=1,'Tablas Guyanas y Santa Elena'!G136,'Tablas Resto de Ecuador'!G136) -> 24526 | O136: 58606 | P136: 51407 | Q136: 42564 | R136: 31263 | S136: 24526
A137: 74 | C137: 61583 | D137: 54243 | E137: 44992 | F137: 33590 | G137: 26353 | I137: =IF('INGRESO DE DATOS'!$W$19=1,'Tablas Guyanas y Santa Elena'!C137,'Tablas Resto de Ecuador'!C137) -> 61583 | J137: =IF('INGRESO DE DATOS'!$W$19=1,'Tablas Guyanas y Santa Elena'!D137,'Tablas Resto de Ecuador'!D137) -> 54243 | K137: =IF('INGRESO DE DATOS'!$W$19=1,'Tablas Guyanas y Santa Elena'!E137,'Tablas Resto de Ecuador'!E137) -> 44992 | L137: =IF('INGRESO DE DATOS'!$W$19=1,'Tablas Guyanas y Santa Elena'!F137,'Tablas Resto de Ecuador'!F137) -> 33590 | M137: =IF('INGRESO DE DATOS'!$W$19=1,'Tablas Guyanas y Santa Elena'!G137,'Tablas Resto de Ecuador'!G137) -> 26353 | O137: 61583 | P137: 54243 | Q137: 44992 | R137: 33590 | S137: 26353
A138: 75 | C138: 64477 | D138: 56996 | E138: 47334 | F138: 36014 | G138: 27768 | I138: =IF('INGRESO DE DATOS'!$W$19=1,'Tablas Guyanas y Santa Elena'!C138,'Tablas Resto de Ecuador'!C138) -> 64477 | J138: =IF('INGRESO DE DATOS'!$W$19=1,'Tablas Guyanas y Santa Elena'!D138,'Tablas Resto de Ecuador'!D138) -> 56996 | K138: =IF('INGRESO DE DATOS'!$W$19=1,'Tablas Guyanas y Santa Elena'!E138,'Tablas Resto de Ecuador'!E138) -> 47334 | L138: =IF('INGRESO DE DATOS'!$W$19=1,'Tablas Guyanas y Santa Elena'!F138,'Tablas Resto de Ecuador'!F138) -> 36014 | M138: =IF('INGRESO DE DATOS'!$W$19=1,'Tablas Guyanas y Santa Elena'!G138,'Tablas Resto de Ecuador'!G138) -> 27768 | O138: 64477 | P138: 56996 | Q138: 47334 | R138: 36014 | S138: 27768
A139: 76 | C139: 64477 | D139: 56996 | E139: 47334 | F139: 36014 | G139: 27768 | I139: =IF('INGRESO DE DATOS'!$W$19=1,'Tablas Guyanas y Santa Elena'!C139,'Tablas Resto de Ecuador'!C139) -> 64477 | J139: =IF('INGRESO DE DATOS'!$W$19=1,'Tablas Guyanas y Santa Elena'!D139,'Tablas Resto de Ecuador'!D139) -> 56996 | K139: =IF('INGRESO DE DATOS'!$W$19=1,'Tablas Guyanas y Santa Elena'!E139,'Tablas Resto de Ecuador'!E139) -> 47334 | L139: =IF('INGRESO DE DATOS'!$W$19=1,'Tablas Guyanas y Santa Elena'!F139,'Tablas Resto de Ecuador'!F139) -> 36014 | M139: =IF('INGRESO DE DATOS'!$W$19=1,'Tablas Guyanas y Santa Elena'!G139,'Tablas Resto de Ecuador'!G139) -> 27768 | O139: 64477 | P139: 56996 | Q139: 47334 | R139: 36014 | S139: 27768
A140: 77 | C140: 64477 | D140: 56996 | E140: 47334 | F140: 36014 | G140: 27768 | I140: =IF('INGRESO DE DATOS'!$W$19=1,'Tablas Guyanas y Santa Elena'!C140,'Tablas Resto de Ecuador'!C140) -> 64477 | J140: =IF('INGRESO DE DATOS'!$W$19=1,'Tablas Guyanas y Santa Elena'!D140,'Tablas Resto de Ecuador'!D140) -> 56996 | K140: =IF('INGRESO DE DATOS'!$W$19=1,'Tablas Guyanas y Santa Elena'!E140,'Tablas Resto de Ecuador'!E140) -> 47334 | L140: =IF('INGRESO DE DATOS'!$W$19=1,'Tablas Guyanas y Santa Elena'!F140,'Tablas Resto de Ecuador'!F140) -> 36014 | M140: =IF('INGRESO DE DATOS'!$W$19=1,'Tablas Guyanas y Santa Elena'!G140,'Tablas Resto de Ecuador'!G140) -> 27768 | O140: 64477 | P140: 56996 | Q140: 47334 | R140: 36014 | S140: 27768
A141: 78 | C141: 64477 | D141: 56996 | E141: 47334 | F141: 36014 | G141: 27768 | I141: =IF('INGRESO DE DATOS'!$W$19=1,'Tablas Guyanas y Santa Elena'!C141,'Tablas Resto de Ecuador'!C141) -> 64477 | J141: =IF('INGRESO DE DATOS'!$W$19=1,'Tablas Guyanas y Santa Elena'!D141,'Tablas Resto de Ecuador'!D141) -> 56996 | K141: =IF('INGRESO DE DATOS'!$W$19=1,'Tablas Guyanas y Santa Elena'!E141,'Tablas Resto de Ecuador'!E141) -> 47334 | L141: =IF('INGRESO DE DATOS'!$W$19=1,'Tablas Guyanas y Santa Elena'!F141,'Tablas Resto de Ecuador'!F141) -> 36014 | M141: =IF('INGRESO DE DATOS'!$W$19=1,'Tablas Guyanas y Santa Elena'!G141,'Tablas Resto de Ecuador'!G141) -> 27768 | O141: 64477 | P141: 56996 | Q141: 47334 | R141: 36014 | S141: 27768
A142: 79 | C142: 64477 | D142: 56996 | E142: 47334 | F142: 36014 | G142: 27768 | I142: =IF('INGRESO DE DATOS'!$W$19=1,'Tablas Guyanas y Santa Elena'!C142,'Tablas Resto de Ecuador'!C142) -> 64477 | J142: =IF('INGRESO DE DATOS'!$W$19=1,'Tablas Guyanas y Santa Elena'!D142,'Tablas Resto de Ecuador'!D142) -> 56996 | K142: =IF('INGRESO DE DATOS'!$W$19=1,'Tablas Guyanas y Santa Elena'!E142,'Tablas Resto de Ecuador'!E142) -> 47334 | L142: =IF('INGRESO DE DATOS'!$W$19=1,'Tablas Guyanas y Santa Elena'!F142,'Tablas Resto de Ecuador'!F142) -> 36014 | M142: =IF('INGRESO DE DATOS'!$W$19=1,'Tablas Guyanas y Santa Elena'!G142,'Tablas Resto de Ecuador'!G142) -> 27768 | O142: 64477 | P142: 56996 | Q142: 47334 | R142: 36014 | S142: 27768
A143: 80 | C143: 64477 | D143: 56996 | E143: 47334 | F143: 36014 | G143: 27768 | I143: =IF('INGRESO DE DATOS'!$W$19=1,'Tablas Guyanas y Santa Elena'!C143,'Tablas Resto de Ecuador'!C143) -> 64477 | J143: =IF('INGRESO DE DATOS'!$W$19=1,'Tablas Guyanas y Santa Elena'!D143,'Tablas Resto de Ecuador'!D143) -> 56996 | K143: =IF('INGRESO DE DATOS'!$W$19=1,'Tablas Guyanas y Santa Elena'!E143,'Tablas Resto de Ecuador'!E143) -> 47334 | L143: =IF('INGRESO DE DATOS'!$W$19=1,'Tablas Guyanas y Santa Elena'!F143,'Tablas Resto de Ecuador'!F143) -> 36014 | M143: =IF('INGRESO DE DATOS'!$W$19=1,'Tablas Guyanas y Santa Elena'!G143,'Tablas Resto de Ecuador'!G143) -> 27768 | O143: 64477 | P143: 56996 | Q143: 47334 | R143: 36014 | S143: 27768
A144: 81 | C144: 64477 | D144: 56996 | E144: 47334 | F144: 36014 | G144: 27768 | I144: =IF('INGRESO DE DATOS'!$W$19=1,'Tablas Guyanas y Santa Elena'!C144,'Tablas Resto de Ecuador'!C144) -> 64477 | J144: =IF('INGRESO DE DATOS'!$W$19=1,'Tablas Guyanas y Santa Elena'!D144,'Tablas Resto de Ecuador'!D144) -> 56996 | K144: =IF('INGRESO DE DATOS'!$W$19=1,'Tablas Guyanas y Santa Elena'!E144,'Tablas Resto de Ecuador'!E144) -> 47334 | L144: =IF('INGRESO DE DATOS'!$W$19=1,'Tablas Guyanas y Santa Elena'!F144,'Tablas Resto de Ecuador'!F144) -> 36014 | M144: =IF('INGRESO DE DATOS'!$W$19=1,'Tablas Guyanas y Santa Elena'!G144,'Tablas Resto de Ecuador'!G144) -> 27768 | O144: 64477 | P144: 56996 | Q144: 47334 | R144: 36014 | S144: 27768
A145: 82 | C145: =O145*$X$2 -> 64477 | D145: =P145*$X$2 -> 56996 | E145: =Q145*$X$2 -> 47334 | F145: 36014 | G145: 27768 | I145: =IF('INGRESO DE DATOS'!$W$19=1,'Tablas Guyanas y Santa Elena'!C145,'Tablas Resto de Ecuador'!C145) -> 64477 | J145: =IF('INGRESO DE DATOS'!$W$19=1,'Tablas Guyanas y Santa Elena'!D145,'Tablas Resto de Ecuador'!D145) -> 56996 | K145: =IF('INGRESO DE DATOS'!$W$19=1,'Tablas Guyanas y Santa Elena'!E145,'Tablas Resto de Ecuador'!E145) -> 47334 | L145: =IF('INGRESO DE DATOS'!$W$19=1,'Tablas Guyanas y Santa Elena'!F145,'Tablas Resto de Ecuador'!F145) -> 36014 | M145: =IF('INGRESO DE DATOS'!$W$19=1,'Tablas Guyanas y Santa Elena'!G145,'Tablas Resto de Ecuador'!G145) -> 27768 | O145: 64477 | P145: 56996 | Q145: 47334 | R145: 36014 | S145: 27768
A146: 83 | C146: 64477 | D146: 56996 | E146: 47334 | F146: =R146*$X$2 -> 36014 | G146: =S146*$X$2 -> 27768 | I146: =IF('INGRESO DE DATOS'!$W$19=1,'Tablas Guyanas y Santa Elena'!C146,'Tablas Resto de Ecuador'!C146) -> 64477 | J146: =IF('INGRESO DE DATOS'!$W$19=1,'Tablas Guyanas y Santa Elena'!D146,'Tablas Resto de Ecuador'!D146) -> 56996 | K146: =IF('INGRESO DE DATOS'!$W$19=1,'Tablas Guyanas y Santa Elena'!E146,'Tablas Resto de Ecuador'!E146) -> 47334 | L146: =IF('INGRESO DE DATOS'!$W$19=1,'Tablas Guyanas y Santa Elena'!F146,'Tablas Resto de Ecuador'!F146) -> 36014 | M146: =IF('INGRESO DE DATOS'!$W$19=1,'Tablas Guyanas y Santa Elena'!G146,'Tablas Resto de Ecuador'!G146) -> 27768 | O146: =I146*$Q$4 -> 64477 | P146: 56996 | Q146: 47334 | R146: 36014 | S146: 27768
A147: 84 | B147: o más | C147: 64477 | D147: 56996 | E147: 47334 | F147: 36014 | G147: 27768 | I147: =IF('INGRESO DE DATOS'!$W$19=1,'Tablas Guyanas y Santa Elena'!C147,'Tablas Resto de Ecuador'!C147) -> 64477 | J147: =IF('INGRESO DE DATOS'!$W$19=1,'Tablas Guyanas y Santa Elena'!D147,'Tablas Resto de Ecuador'!D147) -> 56996 | K147: =IF('INGRESO DE DATOS'!$W$19=1,'Tablas Guyanas y Santa Elena'!E147,'Tablas Resto de Ecuador'!E147) -> 47334 | L147: =IF('INGRESO DE DATOS'!$W$19=1,'Tablas Guyanas y Santa Elena'!F147,'Tablas Resto de Ecuador'!F147) -> 36014 | M147: =IF('INGRESO DE DATOS'!$W$19=1,'Tablas Guyanas y Santa Elena'!G147,'Tablas Resto de Ecuador'!G147) -> 27768 | O147: 64477 | P147: 56996 | Q147: 47334 | R147: 36014 | S147: 27768
A148: 1 | B148: Hijo | C148: 977 | D148: 881 | E148: 711 | F148: 713 | G148: 644 | I148: =IF('INGRESO DE DATOS'!$W$19=1,'Tablas Guyanas y Santa Elena'!C148,'Tablas Resto de Ecuador'!C148) -> 977 | J148: =IF('INGRESO DE DATOS'!$W$19=1,'Tablas Guyanas y Santa Elena'!D148,'Tablas Resto de Ecuador'!D148) -> 881 | K148: =IF('INGRESO DE DATOS'!$W$19=1,'Tablas Guyanas y Santa Elena'!E148,'Tablas Resto de Ecuador'!E148) -> 711 | L148: =IF('INGRESO DE DATOS'!$W$19=1,'Tablas Guyanas y Santa Elena'!F148,'Tablas Resto de Ecuador'!F148) -> 713 | M148: =IF('INGRESO DE DATOS'!$W$19=1,'Tablas Guyanas y Santa Elena'!G148,'Tablas Resto de Ecuador'!G148) -> 644 | O148: 977 | P148: 881 | Q148: 711 | R148: 713 | S148: 644
A149: 2 | B149: Hijos | C149: 1922 | D149: 1817 | E149: 1376 | F149: 1300 | G149: 1229 | I149: =IF('INGRESO DE DATOS'!$W$19=1,'Tablas Guyanas y Santa Elena'!C149,'Tablas Resto de Ecuador'!C149) -> 1922 | J149: =IF('INGRESO DE DATOS'!$W$19=1,'Tablas Guyanas y Santa Elena'!D149,'Tablas Resto de Ecuador'!D149) -> 1817 | K149: =IF('INGRESO DE DATOS'!$W$19=1,'Tablas Guyanas y Santa Elena'!E149,'Tablas Resto de Ecuador'!E149) -> 1376 | L149: =IF('INGRESO DE DATOS'!$W$19=1,'Tablas Guyanas y Santa Elena'!F149,'Tablas Resto de Ecuador'!F149) -> 1300 | M149: =IF('INGRESO DE DATOS'!$W$19=1,'Tablas Guyanas y Santa Elena'!G149,'Tablas Resto de Ecuador'!G149) -> 1229 | O149: 1922 | P149: 1817 | Q149: 1376 | R149: 1300 | S149: 1229
A150: 3 | B150: Hijos o más | C150: 2840 | D150: 2684 | E150: 2034 | F150: 1858 | G150: 1777 | I150: =IF('INGRESO DE DATOS'!$W$19=1,'Tablas Guyanas y Santa Elena'!C150,'Tablas Resto de Ecuador'!C150) -> 2840 | J150: =IF('INGRESO DE DATOS'!$W$19=1,'Tablas Guyanas y Santa Elena'!D150,'Tablas Resto de Ecuador'!D150) -> 2684 | K150: =IF('INGRESO DE DATOS'!$W$19=1,'Tablas Guyanas y Santa Elena'!E150,'Tablas Resto de Ecuador'!E150) -> 2034 | L150: =IF('INGRESO DE DATOS'!$W$19=1,'Tablas Guyanas y Santa Elena'!F150,'Tablas Resto de Ecuador'!F150) -> 1858 | M150: =IF('INGRESO DE DATOS'!$W$19=1,'Tablas Guyanas y Santa Elena'!G150,'Tablas Resto de Ecuador'!G150) -> 1777 | O150: 2840 | P150: 2684 | Q150: 2034 | R150: 1858 | S150: 1777
A152: BUPA GLOBAL SELECT
A153: TARIFAS ANUALES
A155: EDAD | C155: 250 | D155: 2000 | E155: 5000 | F155: 10000 | G155: 20000 | I155: TARIFAS BASE | O155: TARIFAS BASE CON DESCUENTO
A156: 18 | C156: =O156*$X$2 -> 6386 | D156: =P156*$X$2 -> 4707 | E156: =Q156*$X$2 -> 4221 | F156: =R156*$X$2 -> 2755 | G156: 2389 | I156: =IF('INGRESO DE DATOS'!$W$19=1,'Tablas Guyanas y Santa Elena'!C156,'Tablas Resto de Ecuador'!C156) -> 6386 | J156: =IF('INGRESO DE DATOS'!$W$19=1,'Tablas Guyanas y Santa Elena'!D156,'Tablas Resto de Ecuador'!D156) -> 4707 | K156: =IF('INGRESO DE DATOS'!$W$19=1,'Tablas Guyanas y Santa Elena'!E156,'Tablas Resto de Ecuador'!E156) -> 4221 | L156: =IF('INGRESO DE DATOS'!$W$19=1,'Tablas Guyanas y Santa Elena'!F156,'Tablas Resto de Ecuador'!F156) -> 2755 | M156: =IF('INGRESO DE DATOS'!$W$19=1,'Tablas Guyanas y Santa Elena'!G156,'Tablas Resto de Ecuador'!G156) -> 2389 | O156: =I156*$R$4 -> 6386 | P156: =J156*$R$4 -> 4707 | Q156: =K156*$R$4 -> 4221 | R156: =L156*$R$4 -> 2755 | S156: =M156*$R$4 -> 2389
A157: 19 | C157: 6386 | D157: 4707 | E157: 4221 | F157: 2755 | G157: 2389 | I157: =IF('INGRESO DE DATOS'!$W$19=1,'Tablas Guyanas y Santa Elena'!C157,'Tablas Resto de Ecuador'!C157) -> 6386 | J157: =IF('INGRESO DE DATOS'!$W$19=1,'Tablas Guyanas y Santa Elena'!D157,'Tablas Resto de Ecuador'!D157) -> 4707 | K157: =IF('INGRESO DE DATOS'!$W$19=1,'Tablas Guyanas y Santa Elena'!E157,'Tablas Resto de Ecuador'!E157) -> 4221 | L157: =IF('INGRESO DE DATOS'!$W$19=1,'Tablas Guyanas y Santa Elena'!F157,'Tablas Resto de Ecuador'!F157) -> 2755 | M157: =IF('INGRESO DE DATOS'!$W$19=1,'Tablas Guyanas y Santa Elena'!G157,'Tablas Resto de Ecuador'!G157) -> 2389 | O157: =I157*$R$4 -> 6386 | P157: =J157*$R$4 -> 4707 | Q157: =K157*$R$4 -> 4221 | R157: =L157*$R$4 -> 2755 | S157: =M157*$R$4 -> 2389
A158: 20 | C158: 6386 | D158: 4707 | E158: 4221 | F158: 2755 | G158: 2389 | I158: =IF('INGRESO DE DATOS'!$W$19=1,'Tablas Guyanas y Santa Elena'!C158,'Tablas Resto de Ecuador'!C158) -> 6386 | J158: =IF('INGRESO DE DATOS'!$W$19=1,'Tablas Guyanas y Santa Elena'!D158,'Tablas Resto de Ecuador'!D158) -> 4707 | K158: =IF('INGRESO DE DATOS'!$W$19=1,'Tablas Guyanas y Santa Elena'!E158,'Tablas Resto de Ecuador'!E158) -> 4221 | L158: =IF('INGRESO DE DATOS'!$W$19=1,'Tablas Guyanas y Santa Elena'!F158,'Tablas Resto de Ecuador'!F158) -> 2755 | M158: =IF('INGRESO DE DATOS'!$W$19=1,'Tablas Guyanas y Santa Elena'!G158,'Tablas Resto de Ecuador'!G158) -> 2389 | O158: 6386 | P158: 4707 | Q158: 4221 | R158: 2755 | S158: 2389
A159: 21 | C159: 6386 | D159: 4707 | E159: 4221 | F159: 2755 | G159: 2389 | I159: =IF('INGRESO DE DATOS'!$W$19=1,'Tablas Guyanas y Santa Elena'!C159,'Tablas Resto de Ecuador'!C159) -> 6386 | J159: =IF('INGRESO DE DATOS'!$W$19=1,'Tablas Guyanas y Santa Elena'!D159,'Tablas Resto de Ecuador'!D159) -> 4707 | K159: =IF('INGRESO DE DATOS'!$W$19=1,'Tablas Guyanas y Santa Elena'!E159,'Tablas Resto de Ecuador'!E159) -> 4221 | L159: =IF('INGRESO DE DATOS'!$W$19=1,'Tablas Guyanas y Santa Elena'!F159,'Tablas Resto de Ecuador'!F159) -> 2755 | M159: =IF('INGRESO DE DATOS'!$W$19=1,'Tablas Guyanas y Santa Elena'!G159,'Tablas Resto de Ecuador'!G159) -> 2389 | O159: 6386 | P159: 4707 | Q159: 4221 | R159: 2755 | S159: 2389
A160: 22 | C160: 6386 | D160: 4707 | E160: 4221 | F160: 2755 | G160: 2389 | I160: =IF('INGRESO DE DATOS'!$W$19=1,'Tablas Guyanas y Santa Elena'!C160,'Tablas Resto de Ecuador'!C160) -> 6386 | J160: =IF('INGRESO DE DATOS'!$W$19=1,'Tablas Guyanas y Santa Elena'!D160,'Tablas Resto de Ecuador'!D160) -> 4707 | K160: =IF('INGRESO DE DATOS'!$W$19=1,'Tablas Guyanas y Santa Elena'!E160,'Tablas Resto de Ecuador'!E160) -> 4221 | L160: =IF('INGRESO DE DATOS'!$W$19=1,'Tablas Guyanas y Santa Elena'!F160,'Tablas Resto de Ecuador'!F160) -> 2755 | M160: =IF('INGRESO DE DATOS'!$W$19=1,'Tablas Guyanas y Santa Elena'!G160,'Tablas Resto de Ecuador'!G160) -> 2389 | O160: 6386 | P160: 4707 | Q160: 4221 | R160: 2755 | S160: 2389
A161: 23 | C161: 6386 | D161: 4707 | E161: 4221 | F161: 2755 | G161: 2389 | I161: =IF('INGRESO DE DATOS'!$W$19=1,'Tablas Guyanas y Santa Elena'!C161,'Tablas Resto de Ecuador'!C161) -> 6386 | J161: =IF('INGRESO DE DATOS'!$W$19=1,'Tablas Guyanas y Santa Elena'!D161,'Tablas Resto de Ecuador'!D161) -> 4707 | K161: =IF('INGRESO DE DATOS'!$W$19=1,'Tablas Guyanas y Santa Elena'!E161,'Tablas Resto de Ecuador'!E161) -> 4221 | L161: =IF('INGRESO DE DATOS'!$W$19=1,'Tablas Guyanas y Santa Elena'!F161,'Tablas Resto de Ecuador'!F161) -> 2755 | M161: =IF('INGRESO DE DATOS'!$W$19=1,'Tablas Guyanas y Santa Elena'!G161,'Tablas Resto de Ecuador'!G161) -> 2389 | O161: 6386 | P161: 4707 | Q161: 4221 | R161: 2755 | S161: 2389
A162: 24 | C162: 6386 | D162: 4707 | E162: 4221 | F162: 2755 | G162: 2389 | I162: =IF('INGRESO DE DATOS'!$W$19=1,'Tablas Guyanas y Santa Elena'!C162,'Tablas Resto de Ecuador'!C162) -> 6386 | J162: =IF('INGRESO DE DATOS'!$W$19=1,'Tablas Guyanas y Santa Elena'!D162,'Tablas Resto de Ecuador'!D162) -> 4707 | K162: =IF('INGRESO DE DATOS'!$W$19=1,'Tablas Guyanas y Santa Elena'!E162,'Tablas Resto de Ecuador'!E162) -> 4221 | L162: =IF('INGRESO DE DATOS'!$W$19=1,'Tablas Guyanas y Santa Elena'!F162,'Tablas Resto de Ecuador'!F162) -> 2755 | M162: =IF('INGRESO DE DATOS'!$W$19=1,'Tablas Guyanas y Santa Elena'!G162,'Tablas Resto de Ecuador'!G162) -> 2389 | O162: 6386 | P162: 4707 | Q162: 4221 | R162: 2755 | S162: 2389
A163: 25 | C163: 6891 | D163: 5960 | E163: 4264 | F163: 3243 | G163: 2545 | I163: =IF('INGRESO DE DATOS'!$W$19=1,'Tablas Guyanas y Santa Elena'!C163,'Tablas Resto de Ecuador'!C163) -> 6891 | J163: =IF('INGRESO DE DATOS'!$W$19=1,'Tablas Guyanas y Santa Elena'!D163,'Tablas Resto de Ecuador'!D163) -> 5960 | K163: =IF('INGRESO DE DATOS'!$W$19=1,'Tablas Guyanas y Santa Elena'!E163,'Tablas Resto de Ecuador'!E163) -> 4264 | L163: =IF('INGRESO DE DATOS'!$W$19=1,'Tablas Guyanas y Santa Elena'!F163,'Tablas Resto de Ecuador'!F163) -> 3243 | M163: =IF('INGRESO DE DATOS'!$W$19=1,'Tablas Guyanas y Santa Elena'!G163,'Tablas Resto de Ecuador'!G163) -> 2545 | O163: 6891 | P163: 5960 | Q163: 4264 | R163: 3243 | S163: 2545
A164: 26 | C164: 6891 | D164: 5960 | E164: 4264 | F164: 3243 | G164: 2545 | I164: =IF('INGRESO DE DATOS'!$W$19=1,'Tablas Guyanas y Santa Elena'!C164,'Tablas Resto de Ecuador'!C164) -> 6891 | J164: =IF('INGRESO DE DATOS'!$W$19=1,'Tablas Guyanas y Santa Elena'!D164,'Tablas Resto de Ecuador'!D164) -> 5960 | K164: =IF('INGRESO DE DATOS'!$W$19=1,'Tablas Guyanas y Santa Elena'!E164,'Tablas Resto de Ecuador'!E164) -> 4264 | L164: =IF('INGRESO DE DATOS'!$W$19=1,'Tablas Guyanas y Santa Elena'!F164,'Tablas Resto de Ecuador'!F164) -> 3243 | M164: =IF('INGRESO DE DATOS'!$W$19=1,'Tablas Guyanas y Santa Elena'!G164,'Tablas Resto de Ecuador'!G164) -> 2545 | O164: 6891 | P164: 5960 | Q164: 4264 | R164: 3243 | S164: 2545
A165: 27 | C165: 6891 | D165: 5960 | E165: 4264 | F165: 3243 | G165: 2545 | I165: =IF('INGRESO DE DATOS'!$W$19=1,'Tablas Guyanas y Santa Elena'!C165,'Tablas Resto de Ecuador'!C165) -> 6891 | J165: =IF('INGRESO DE DATOS'!$W$19=1,'Tablas Guyanas y Santa Elena'!D165,'Tablas Resto de Ecuador'!D165) -> 5960 | K165: =IF('INGRESO DE DATOS'!$W$19=1,'Tablas Guyanas y Santa Elena'!E165,'Tablas Resto de Ecuador'!E165) -> 4264 | L165: =IF('INGRESO DE DATOS'!$W$19=1,'Tablas Guyanas y Santa Elena'!F165,'Tablas Resto de Ecuador'!F165) -> 3243 | M165: =IF('INGRESO DE DATOS'!$W$19=1,'Tablas Guyanas y Santa Elena'!G165,'Tablas Resto de Ecuador'!G165) -> 2545 | O165: 6891 | P165: 5960 | Q165: 4264 | R165: 3243 | S165: 2545
A166: 28 | C166: 6891 | D166: 5960 | E166: 4264 | F166: 3243 | G166: 2545 | I166: =IF('INGRESO DE DATOS'!$W$19=1,'Tablas Guyanas y Santa Elena'!C166,'Tablas Resto de Ecuador'!C166) -> 6891 | J166: =IF('INGRESO DE DATOS'!$W$19=1,'Tablas Guyanas y Santa Elena'!D166,'Tablas Resto de Ecuador'!D166) -> 5960 | K166: =IF('INGRESO DE DATOS'!$W$19=1,'Tablas Guyanas y Santa Elena'!E166,'Tablas Resto de Ecuador'!E166) -> 4264 | L166: =IF('INGRESO DE DATOS'!$W$19=1,'Tablas Guyanas y Santa Elena'!F166,'Tablas Resto de Ecuador'!F166) -> 3243 | M166: =IF('INGRESO DE DATOS'!$W$19=1,'Tablas Guyanas y Santa Elena'!G166,'Tablas Resto de Ecuador'!G166) -> 2545 | O166: 6891 | P166: 5960 | Q166: 4264 | R166: 3243 | S166: 2545
A167: 29 | C167: 6891 | D167: 5960 | E167: 4264 | F167: 3243 | G167: 2545 | I167: =IF('INGRESO DE DATOS'!$W$19=1,'Tablas Guyanas y Santa Elena'!C167,'Tablas Resto de Ecuador'!C167) -> 6891 | J167: =IF('INGRESO DE DATOS'!$W$19=1,'Tablas Guyanas y Santa Elena'!D167,'Tablas Resto de Ecuador'!D167) -> 5960 | K167: =IF('INGRESO DE DATOS'!$W$19=1,'Tablas Guyanas y Santa Elena'!E167,'Tablas Resto de Ecuador'!E167) -> 4264 | L167: =IF('INGRESO DE DATOS'!$W$19=1,'Tablas Guyanas y Santa Elena'!F167,'Tablas Resto de Ecuador'!F167) -> 3243 | M167: =IF('INGRESO DE DATOS'!$W$19=1,'Tablas Guyanas y Santa Elena'!G167,'Tablas Resto de Ecuador'!G167) -> 2545 | O167: 6891 | P167: 5960 | Q167: 4264 | R167: 3243 | S167: 2545
A168: 30 | C168: 7774 | D168: 7591 | E168: 5074 | F168: 3608 | G168: 2832 | I168: =IF('INGRESO DE DATOS'!$W$19=1,'Tablas Guyanas y Santa Elena'!C168,'Tablas Resto de Ecuador'!C168) -> 7774 | J168: =IF('INGRESO DE DATOS'!$W$19=1,'Tablas Guyanas y Santa Elena'!D168,'Tablas Resto de Ecuador'!D168) -> 7591 | K168: =IF('INGRESO DE DATOS'!$W$19=1,'Tablas Guyanas y Santa Elena'!E168,'Tablas Resto de Ecuador'!E168) -> 5074 | L168: =IF('INGRESO DE DATOS'!$W$19=1,'Tablas Guyanas y Santa Elena'!F168,'Tablas Resto de Ecuador'!F168) -> 3608 | M168: =IF('INGRESO DE DATOS'!$W$19=1,'Tablas Guyanas y Santa Elena'!G168,'Tablas Resto de Ecuador'!G168) -> 2832 | O168: 7774 | P168: 7591 | Q168: 5074 | R168: 3608 | S168: 2832
A169: 31 | C169: 7774 | D169: 7591 | E169: 5074 | F169: 3608 | G169: 2832 | I169: =IF('INGRESO DE DATOS'!$W$19=1,'Tablas Guyanas y Santa Elena'!C169,'Tablas Resto de Ecuador'!C169) -> 7774 | J169: =IF('INGRESO DE DATOS'!$W$19=1,'Tablas Guyanas y Santa Elena'!D169,'Tablas Resto de Ecuador'!D169) -> 7591 | K169: =IF('INGRESO DE DATOS'!$W$19=1,'Tablas Guyanas y Santa Elena'!E169,'Tablas Resto de Ecuador'!E169) -> 5074 | L169: =IF('INGRESO DE DATOS'!$W$19=1,'Tablas Guyanas y Santa Elena'!F169,'Tablas Resto de Ecuador'!F169) -> 3608 | M169: =IF('INGRESO DE DATOS'!$W$19=1,'Tablas Guyanas y Santa Elena'!G169,'Tablas Resto de Ecuador'!G169) -> 2832 | O169: 7774 | P169: 7591 | Q169: 5074 | R169: 3608 | S169: 2832
A170: 32 | C170: 7774 | D170: 7591 | E170: 5074 | F170: 3608 | G170: 2832 | I170: =IF('INGRESO DE DATOS'!$W$19=1,'Tablas Guyanas y Santa Elena'!C170,'Tablas Resto de Ecuador'!C170) -> 7774 | J170: =IF('INGRESO DE DATOS'!$W$19=1,'Tablas Guyanas y Santa Elena'!D170,'Tablas Resto de Ecuador'!D170) -> 7591 | K170: =IF('INGRESO DE DATOS'!$W$19=1,'Tablas Guyanas y Santa Elena'!E170,'Tablas Resto de Ecuador'!E170) -> 5074 | L170: =IF('INGRESO DE DATOS'!$W$19=1,'Tablas Guyanas y Santa Elena'!F170,'Tablas Resto de Ecuador'!F170) -> 3608 | M170: =IF('INGRESO DE DATOS'!$W$19=1,'Tablas Guyanas y Santa Elena'!G170,'Tablas Resto de Ecuador'!G170) -> 2832 | O170: 7774 | P170: 7591 | Q170: 5074 | R170: 3608 | S170: 2832
A171: 33 | C171: 7774 | D171: 7591 | E171: 5074 | F171: 3608 | G171: 2832 | I171: =IF('INGRESO DE DATOS'!$W$19=1,'Tablas Guyanas y Santa Elena'!C171,'Tablas Resto de Ecuador'!C171) -> 7774 | J171: =IF('INGRESO DE DATOS'!$W$19=1,'Tablas Guyanas y Santa Elena'!D171,'Tablas Resto de Ecuador'!D171) -> 7591 | K171: =IF('INGRESO DE DATOS'!$W$19=1,'Tablas Guyanas y Santa Elena'!E171,'Tablas Resto de Ecuador'!E171) -> 5074 | L171: =IF('INGRESO DE DATOS'!$W$19=1,'Tablas Guyanas y Santa Elena'!F171,'Tablas Resto de Ecuador'!F171) -> 3608 | M171: =IF('INGRESO DE DATOS'!$W$19=1,'Tablas Guyanas y Santa Elena'!G171,'Tablas Resto de Ecuador'!G171) -> 2832 | O171: 7774 | P171: 7591 | Q171: 5074 | R171: 3608 | S171: 2832
A172: 34 | C172: 7774 | D172: 7591 | E172: 5074 | F172: 3608 | G172: 2832 | I172: =IF('INGRESO DE DATOS'!$W$19=1,'Tablas Guyanas y Santa Elena'!C172,'Tablas Resto de Ecuador'!C172) -> 7774 | J172: =IF('INGRESO DE DATOS'!$W$19=1,'Tablas Guyanas y Santa Elena'!D172,'Tablas Resto de Ecuador'!D172) -> 7591 | K172: =IF('INGRESO DE DATOS'!$W$19=1,'Tablas Guyanas y Santa Elena'!E172,'Tablas Resto de Ecuador'!E172) -> 5074 | L172: =IF('INGRESO DE DATOS'!$W$19=1,'Tablas Guyanas y Santa Elena'!F172,'Tablas Resto de Ecuador'!F172) -> 3608 | M172: =IF('INGRESO DE DATOS'!$W$19=1,'Tablas Guyanas y Santa Elena'!G172,'Tablas Resto de Ecuador'!G172) -> 2832 | O172: 7774 | P172: 7591 | Q172: 5074 | R172: 3608 | S172: 2832
A173: 35 | C173: 8799 | D173: 8491 | E173: 5796 | F173: 4041 | G173: 3170 | I173: =IF('INGRESO DE DATOS'!$W$19=1,'Tablas Guyanas y Santa Elena'!C173,'Tablas Resto de Ecuador'!C173) -> 8799 | J173: =IF('INGRESO DE DATOS'!$W$19=1,'Tablas Guyanas y Santa Elena'!D173,'Tablas Resto de Ecuador'!D173) -> 8491 | K173: =IF('INGRESO DE DATOS'!$W$19=1,'Tablas Guyanas y Santa Elena'!E173,'Tablas Resto de Ecuador'!E173) -> 5796 | L173: =IF('INGRESO DE DATOS'!$W$19=1,'Tablas Guyanas y Santa Elena'!F173,'Tablas Resto de Ecuador'!F173) -> 4041 | M173: =IF('INGRESO DE DATOS'!$W$19=1,'Tablas Guyanas y Santa Elena'!G173,'Tablas Resto de Ecuador'!G173) -> 3170 | O173: 8799 | P173: 8491 | Q173: 5796 | R173: 4041 | S173: 3170
A174: 36 | C174: 8799 | D174: 8491 | E174: 5796 | F174: 4041 | G174: 3170 | I174: =IF('INGRESO DE DATOS'!$W$19=1,'Tablas Guyanas y Santa Elena'!C174,'Tablas Resto de Ecuador'!C174) -> 8799 | J174: =IF('INGRESO DE DATOS'!$W$19=1,'Tablas Guyanas y Santa Elena'!D174,'Tablas Resto de Ecuador'!D174) -> 8491 | K174: =IF('INGRESO DE DATOS'!$W$19=1,'Tablas Guyanas y Santa Elena'!E174,'Tablas Resto de Ecuador'!E174) -> 5796 | L174: =IF('INGRESO DE DATOS'!$W$19=1,'Tablas Guyanas y Santa Elena'!F174,'Tablas Resto de Ecuador'!F174) -> 4041 | M174: =IF('INGRESO DE DATOS'!$W$19=1,'Tablas Guyanas y Santa Elena'!G174,'Tablas Resto de Ecuador'!G174) -> 3170 | O174: 8799 | P174: 8491 | Q174: 5796 | R174: 4041 | S174: 3170
A175: 37 | C175: 8799 | D175: 8491 | E175: 5796 | F175: 4041 | G175: 3170 | I175: =IF('INGRESO DE DATOS'!$W$19=1,'Tablas Guyanas y Santa Elena'!C175,'Tablas Resto de Ecuador'!C175) -> 8799 | J175: =IF('INGRESO DE DATOS'!$W$19=1,'Tablas Guyanas y Santa Elena'!D175,'Tablas Resto de Ecuador'!D175) -> 8491 | K175: =IF('INGRESO DE DATOS'!$W$19=1,'Tablas Guyanas y Santa Elena'!E175,'Tablas Resto de Ecuador'!E175) -> 5796 | L175: =IF('INGRESO DE DATOS'!$W$19=1,'Tablas Guyanas y Santa Elena'!F175,'Tablas Resto de Ecuador'!F175) -> 4041 | M175: =IF('INGRESO DE DATOS'!$W$19=1,'Tablas Guyanas y Santa Elena'!G175,'Tablas Resto de Ecuador'!G175) -> 3170 | O175: 8799 | P175: 8491 | Q175: 5796 | R175: 4041 | S175: 3170
A176: 38 | C176: 8799 | D176: 8491 | E176: 5796 | F176: 4041 | G176: 3170 | I176: =IF('INGRESO DE DATOS'!$W$19=1,'Tablas Guyanas y Santa Elena'!C176,'Tablas Resto de Ecuador'!C176) -> 8799 | J176: =IF('INGRESO DE DATOS'!$W$19=1,'Tablas Guyanas y Santa Elena'!D176,'Tablas Resto de Ecuador'!D176) -> 8491 | K176: =IF('INGRESO DE DATOS'!$W$19=1,'Tablas Guyanas y Santa Elena'!E176,'Tablas Resto de Ecuador'!E176) -> 5796 | L176: =IF('INGRESO DE DATOS'!$W$19=1,'Tablas Guyanas y Santa Elena'!F176,'Tablas Resto de Ecuador'!F176) -> 4041 | M176: =IF('INGRESO DE DATOS'!$W$19=1,'Tablas Guyanas y Santa Elena'!G176,'Tablas Resto de Ecuador'!G176) -> 3170 | O176: 8799 | P176: 8491 | Q176: 5796 | R176: 4041 | S176: 3170
A177: 39 | C177: 8799 | D177: 8491 | E177: 5796 | F177: 4041 | G177: 3170 | I177: =IF('INGRESO DE DATOS'!$W$19=1,'Tablas Guyanas y Santa Elena'!C177,'Tablas Resto de Ecuador'!C177) -> 8799 | J177: =IF('INGRESO DE DATOS'!$W$19=1,'Tablas Guyanas y Santa Elena'!D177,'Tablas Resto de Ecuador'!D177) -> 8491 | K177: =IF('INGRESO DE DATOS'!$W$19=1,'Tablas Guyanas y Santa Elena'!E177,'Tablas Resto de Ecuador'!E177) -> 5796 | L177: =IF('INGRESO DE DATOS'!$W$19=1,'Tablas Guyanas y Santa Elena'!F177,'Tablas Resto de Ecuador'!F177) -> 4041 | M177: =IF('INGRESO DE DATOS'!$W$19=1,'Tablas Guyanas y Santa Elena'!G177,'Tablas Resto de Ecuador'!G177) -> 3170 | O177: 8799 | P177: 8491 | Q177: 5796 | R177: 4041 | S177: 3170
A178: 40 | C178: 9980 | D178: 8835 | E178: 6204 | F178: 4547 | G178: 3567 | I178: =IF('INGRESO DE DATOS'!$W$19=1,'Tablas Guyanas y Santa Elena'!C178,'Tablas Resto de Ecuador'!C178) -> 9980 | J178: =IF('INGRESO DE DATOS'!$W$19=1,'Tablas Guyanas y Santa Elena'!D178,'Tablas Resto de Ecuador'!D178) -> 8835 | K178: =IF('INGRESO DE DATOS'!$W$19=1,'Tablas Guyanas y Santa Elena'!E178,'Tablas Resto de Ecuador'!E178) -> 6204 | L178: =IF('INGRESO DE DATOS'!$W$19=1,'Tablas Guyanas y Santa Elena'!F178,'Tablas Resto de Ecuador'!F178) -> 4547 | M178: =IF('INGRESO DE DATOS'!$W$19=1,'Tablas Guyanas y Santa Elena'!G178,'Tablas Resto de Ecuador'!G178) -> 3567 | O178: 9980 | P178: 8835 | Q178: 6204 | R178: 4547 | S178: 3567
A179: 41 | C179: 9980 | D179: 8835 | E179: 6204 | F179: 4547 | G179: 3567 | I179: =IF('INGRESO DE DATOS'!$W$19=1,'Tablas Guyanas y Santa Elena'!C179,'Tablas Resto de Ecuador'!C179) -> 9980 | J179: =IF('INGRESO DE DATOS'!$W$19=1,'Tablas Guyanas y Santa Elena'!D179,'Tablas Resto de Ecuador'!D179) -> 8835 | K179: =IF('INGRESO DE DATOS'!$W$19=1,'Tablas Guyanas y Santa Elena'!E179,'Tablas Resto de Ecuador'!E179) -> 6204 | L179: =IF('INGRESO DE DATOS'!$W$19=1,'Tablas Guyanas y Santa Elena'!F179,'Tablas Resto de Ecuador'!F179) -> 4547 | M179: =IF('INGRESO DE DATOS'!$W$19=1,'Tablas Guyanas y Santa Elena'!G179,'Tablas Resto de Ecuador'!G179) -> 3567 | O179: 9980 | P179: 8835 | Q179: 6204 | R179: 4547 | S179: 3567
A180: 42 | C180: 9980 | D180: 8835 | E180: 6204 | F180: 4547 | G180: 3567 | I180: =IF('INGRESO DE DATOS'!$W$19=1,'Tablas Guyanas y Santa Elena'!C180,'Tablas Resto de Ecuador'!C180) -> 9980 | J180: =IF('INGRESO DE DATOS'!$W$19=1,'Tablas Guyanas y Santa Elena'!D180,'Tablas Resto de Ecuador'!D180) -> 8835 | K180: =IF('INGRESO DE DATOS'!$W$19=1,'Tablas Guyanas y Santa Elena'!E180,'Tablas Resto de Ecuador'!E180) -> 6204 | L180: =IF('INGRESO DE DATOS'!$W$19=1,'Tablas Guyanas y Santa Elena'!F180,'Tablas Resto de Ecuador'!F180) -> 4547 | M180: =IF('INGRESO DE DATOS'!$W$19=1,'Tablas Guyanas y Santa Elena'!G180,'Tablas Resto de Ecuador'!G180) -> 3567 | O180: 9980 | P180: 8835 | Q180: 6204 | R180: 4547 | S180: 3567
A181: 43 | C181: 9980 | D181: 8835 | E181: 6204 | F181: 4547 | G181: 3567 | I181: =IF('INGRESO DE DATOS'!$W$19=1,'Tablas Guyanas y Santa Elena'!C181,'Tablas Resto de Ecuador'!C181) -> 9980 | J181: =IF('INGRESO DE DATOS'!$W$19=1,'Tablas Guyanas y Santa Elena'!D181,'Tablas Resto de Ecuador'!D181) -> 8835 | K181: =IF('INGRESO DE DATOS'!$W$19=1,'Tablas Guyanas y Santa Elena'!E181,'Tablas Resto de Ecuador'!E181) -> 6204 | L181: =IF('INGRESO DE DATOS'!$W$19=1,'Tablas Guyanas y Santa Elena'!F181,'Tablas Resto de Ecuador'!F181) -> 4547 | M181: =IF('INGRESO DE DATOS'!$W$19=1,'Tablas Guyanas y Santa Elena'!G181,'Tablas Resto de Ecuador'!G181) -> 3567 | O181: 9980 | P181: 8835 | Q181: 6204 | R181: 4547 | S181: 3567
A182: 44 | C182: 9980 | D182: 8835 | E182: 6204 | F182: 4547 | G182: 3567 | I182: =IF('INGRESO DE DATOS'!$W$19=1,'Tablas Guyanas y Santa Elena'!C182,'Tablas Resto de Ecuador'!C182) -> 9980 | J182: =IF('INGRESO DE DATOS'!$W$19=1,'Tablas Guyanas y Santa Elena'!D182,'Tablas Resto de Ecuador'!D182) -> 8835 | K182: =IF('INGRESO DE DATOS'!$W$19=1,'Tablas Guyanas y Santa Elena'!E182,'Tablas Resto de Ecuador'!E182) -> 6204 | L182: =IF('INGRESO DE DATOS'!$W$19=1,'Tablas Guyanas y Santa Elena'!F182,'Tablas Resto de Ecuador'!F182) -> 4547 | M182: =IF('INGRESO DE DATOS'!$W$19=1,'Tablas Guyanas y Santa Elena'!G182,'Tablas Resto de Ecuador'!G182) -> 3567 | O182: 9980 | P182: 8835 | Q182: 6204 | R182: 4547 | S182: 3567
A183: 45 | C183: 11294 | D183: 9630 | E183: 6688 | F183: 5117 | G183: 4017 | I183: =IF('INGRESO DE DATOS'!$W$19=1,'Tablas Guyanas y Santa Elena'!C183,'Tablas Resto de Ecuador'!C183) -> 11294 | J183: =IF('INGRESO DE DATOS'!$W$19=1,'Tablas Guyanas y Santa Elena'!D183,'Tablas Resto de Ecuador'!D183) -> 9630 | K183: =IF('INGRESO DE DATOS'!$W$19=1,'Tablas Guyanas y Santa Elena'!E183,'Tablas Resto de Ecuador'!E183) -> 6688 | L183: =IF('INGRESO DE DATOS'!$W$19=1,'Tablas Guyanas y Santa Elena'!F183,'Tablas Resto de Ecuador'!F183) -> 5117 | M183: =IF('INGRESO DE DATOS'!$W$19=1,'Tablas Guyanas y Santa Elena'!G183,'Tablas Resto de Ecuador'!G183) -> 4017 | O183: 11294 | P183: 9630 | Q183: 6688 | R183: 5117 | S183: 4017
A184: 46 | C184: 11294 | D184: 9630 | E184: 6688 | F184: 5117 | G184: 4017 | I184: =IF('INGRESO DE DATOS'!$W$19=1,'Tablas Guyanas y Santa Elena'!C184,'Tablas Resto de Ecuador'!C184) -> 11294 | J184: =IF('INGRESO DE DATOS'!$W$19=1,'Tablas Guyanas y Santa Elena'!D184,'Tablas Resto de Ecuador'!D184) -> 9630 | K184: =IF('INGRESO DE DATOS'!$W$19=1,'Tablas Guyanas y Santa Elena'!E184,'Tablas Resto de Ecuador'!E184) -> 6688 | L184: =IF('INGRESO DE DATOS'!$W$19=1,'Tablas Guyanas y Santa Elena'!F184,'Tablas Resto de Ecuador'!F184) -> 5117 | M184: =IF('INGRESO DE DATOS'!$W$19=1,'Tablas Guyanas y Santa Elena'!G184,'Tablas Resto de Ecuador'!G184) -> 4017 | O184: 11294 | P184: 9630 | Q184: 6688 | R184: 5117 | S184: 4017
A185: 47 | C185: 11294 | D185: 9630 | E185: 6688 | F185: 5117 | G185: 4017 | I185: =IF('INGRESO DE DATOS'!$W$19=1,'Tablas Guyanas y Santa Elena'!C185,'Tablas Resto de Ecuador'!C185) -> 11294 | J185: =IF('INGRESO DE DATOS'!$W$19=1,'Tablas Guyanas y Santa Elena'!D185,'Tablas Resto de Ecuador'!D185) -> 9630 | K185: =IF('INGRESO DE DATOS'!$W$19=1,'Tablas Guyanas y Santa Elena'!E185,'Tablas Resto de Ecuador'!E185) -> 6688 | L185: =IF('INGRESO DE DATOS'!$W$19=1,'Tablas Guyanas y Santa Elena'!F185,'Tablas Resto de Ecuador'!F185) -> 5117 | M185: =IF('INGRESO DE DATOS'!$W$19=1,'Tablas Guyanas y Santa Elena'!G185,'Tablas Resto de Ecuador'!G185) -> 4017 | O185: 11294 | P185: 9630 | Q185: 6688 | R185: 5117 | S185: 4017
A186: 48 | C186: 11294 | D186: 9630 | E186: 6688 | F186: 5117 | G186: 4017 | I186: =IF('INGRESO DE DATOS'!$W$19=1,'Tablas Guyanas y Santa Elena'!C186,'Tablas Resto de Ecuador'!C186) -> 11294 | J186: =IF('INGRESO DE DATOS'!$W$19=1,'Tablas Guyanas y Santa Elena'!D186,'Tablas Resto de Ecuador'!D186) -> 9630 | K186: =IF('INGRESO DE DATOS'!$W$19=1,'Tablas Guyanas y Santa Elena'!E186,'Tablas Resto de Ecuador'!E186) -> 6688 | L186: =IF('INGRESO DE DATOS'!$W$19=1,'Tablas Guyanas y Santa Elena'!F186,'Tablas Resto de Ecuador'!F186) -> 5117 | M186: =IF('INGRESO DE DATOS'!$W$19=1,'Tablas Guyanas y Santa Elena'!G186,'Tablas Resto de Ecuador'!G186) -> 4017 | O186: 11294 | P186: 9630 | Q186: 6688 | R186: 5117 | S186: 4017
A187: 49 | C187: 11294 | D187: 9630 | E187: 6688 | F187: 5117 | G187: 4017 | I187: =IF('INGRESO DE DATOS'!$W$19=1,'Tablas Guyanas y Santa Elena'!C187,'Tablas Resto de Ecuador'!C187) -> 11294 | J187: =IF('INGRESO DE DATOS'!$W$19=1,'Tablas Guyanas y Santa Elena'!D187,'Tablas Resto de Ecuador'!D187) -> 9630 | K187: =IF('INGRESO DE DATOS'!$W$19=1,'Tablas Guyanas y Santa Elena'!E187,'Tablas Resto de Ecuador'!E187) -> 6688 | L187: =IF('INGRESO DE DATOS'!$W$19=1,'Tablas Guyanas y Santa Elena'!F187,'Tablas Resto de Ecuador'!F187) -> 5117 | M187: =IF('INGRESO DE DATOS'!$W$19=1,'Tablas Guyanas y Santa Elena'!G187,'Tablas Resto de Ecuador'!G187) -> 4017 | O187: 11294 | P187: 9630 | Q187: 6688 | R187: 5117 | S187: 4017
A188: 50 | C188: =O188*$X$2 -> 12780 | D188: =P188*$X$2 -> 10675 | E188: =Q188*$X$2 -> 7277 | F188: =R188*$X$2 -> 5617 | G188: 4524 | I188: =IF('INGRESO DE DATOS'!$W$19=1,'Tablas Guyanas y Santa Elena'!C188,'Tablas Resto de Ecuador'!C188) -> 12780 | J188: =IF('INGRESO DE DATOS'!$W$19=1,'Tablas Guyanas y Santa Elena'!D188,'Tablas Resto de Ecuador'!D188) -> 10675 | K188: =IF('INGRESO DE DATOS'!$W$19=1,'Tablas Guyanas y Santa Elena'!E188,'Tablas Resto de Ecuador'!E188) -> 7277 | L188: =IF('INGRESO DE DATOS'!$W$19=1,'Tablas Guyanas y Santa Elena'!F188,'Tablas Resto de Ecuador'!F188) -> 5617 | M188: =IF('INGRESO DE DATOS'!$W$19=1,'Tablas Guyanas y Santa Elena'!G188,'Tablas Resto de Ecuador'!G188) -> 4524 | O188: 12780 | P188: 10675 | Q188: 7277 | R188: 5617 | S188: 4524
A189: 51 | C189: 12780 | D189: 10675 | E189: 7277 | F189: 5617 | G189: 4524 | I189: =IF('INGRESO DE DATOS'!$W$19=1,'Tablas Guyanas y Santa Elena'!C189,'Tablas Resto de Ecuador'!C189) -> 12780 | J189: =IF('INGRESO DE DATOS'!$W$19=1,'Tablas Guyanas y Santa Elena'!D189,'Tablas Resto de Ecuador'!D189) -> 10675 | K189: =IF('INGRESO DE DATOS'!$W$19=1,'Tablas Guyanas y Santa Elena'!E189,'Tablas Resto de Ecuador'!E189) -> 7277 | L189: =IF('INGRESO DE DATOS'!$W$19=1,'Tablas Guyanas y Santa Elena'!F189,'Tablas Resto de Ecuador'!F189) -> 5617 | M189: =IF('INGRESO DE DATOS'!$W$19=1,'Tablas Guyanas y Santa Elena'!G189,'Tablas Resto de Ecuador'!G189) -> 4524 | O189: 12780 | P189: 10675 | Q189: 7277 | R189: 5617 | S189: 4524
A190: 52 | C190: 12780 | D190: 10675 | E190: 7277 | F190: 5617 | G190: 4524 | I190: =IF('INGRESO DE DATOS'!$W$19=1,'Tablas Guyanas y Santa Elena'!C190,'Tablas Resto de Ecuador'!C190) -> 12780 | J190: =IF('INGRESO DE DATOS'!$W$19=1,'Tablas Guyanas y Santa Elena'!D190,'Tablas Resto de Ecuador'!D190) -> 10675 | K190: =IF('INGRESO DE DATOS'!$W$19=1,'Tablas Guyanas y Santa Elena'!E190,'Tablas Resto de Ecuador'!E190) -> 7277 | L190: =IF('INGRESO DE DATOS'!$W$19=1,'Tablas Guyanas y Santa Elena'!F190,'Tablas Resto de Ecuador'!F190) -> 5617 | M190: =IF('INGRESO DE DATOS'!$W$19=1,'Tablas Guyanas y Santa Elena'!G190,'Tablas Resto de Ecuador'!G190) -> 4524 | O190: 12780 | P190: 10675 | Q190: 7277 | R190: 5617 | S190: 4524
A191: 53 | C191: 12780 | D191: 10675 | E191: 7277 | F191: 5617 | G191: 4524 | I191: =IF('INGRESO DE DATOS'!$W$19=1,'Tablas Guyanas y Santa Elena'!C191,'Tablas Resto de Ecuador'!C191) -> 12780 | J191: =IF('INGRESO DE DATOS'!$W$19=1,'Tablas Guyanas y Santa Elena'!D191,'Tablas Resto de Ecuador'!D191) -> 10675 | K191: =IF('INGRESO DE DATOS'!$W$19=1,'Tablas Guyanas y Santa Elena'!E191,'Tablas Resto de Ecuador'!E191) -> 7277 | L191: =IF('INGRESO DE DATOS'!$W$19=1,'Tablas Guyanas y Santa Elena'!F191,'Tablas Resto de Ecuador'!F191) -> 5617 | M191: =IF('INGRESO DE DATOS'!$W$19=1,'Tablas Guyanas y Santa Elena'!G191,'Tablas Resto de Ecuador'!G191) -> 4524 | O191: 12780 | P191: 10675 | Q191: 7277 | R191: 5617 | S191: 4524
A192: 54 | C192: 12780 | D192: 10675 | E192: 7277 | F192: 5617 | G192: 4524 | I192: =IF('INGRESO DE DATOS'!$W$19=1,'Tablas Guyanas y Santa Elena'!C192,'Tablas Resto de Ecuador'!C192) -> 12780 | J192: =IF('INGRESO DE DATOS'!$W$19=1,'Tablas Guyanas y Santa Elena'!D192,'Tablas Resto de Ecuador'!D192) -> 10675 | K192: =IF('INGRESO DE DATOS'!$W$19=1,'Tablas Guyanas y Santa Elena'!E192,'Tablas Resto de Ecuador'!E192) -> 7277 | L192: =IF('INGRESO DE DATOS'!$W$19=1,'Tablas Guyanas y Santa Elena'!F192,'Tablas Resto de Ecuador'!F192) -> 5617 | M192: =IF('INGRESO DE DATOS'!$W$19=1,'Tablas Guyanas y Santa Elena'!G192,'Tablas Resto de Ecuador'!G192) -> 4524 | O192: 12780 | P192: 10675 | Q192: 7277 | R192: 5617 | S192: 4524
A193: 55 | C193: 14415 | D193: 13957 | E193: 9579 | F193: 6484 | G193: 5090 | I193: =IF('INGRESO DE DATOS'!$W$19=1,'Tablas Guyanas y Santa Elena'!C193,'Tablas Resto de Ecuador'!C193) -> 14415 | J193: =IF('INGRESO DE DATOS'!$W$19=1,'Tablas Guyanas y Santa Elena'!D193,'Tablas Resto de Ecuador'!D193) -> 13957 | K193: =IF('INGRESO DE DATOS'!$W$19=1,'Tablas Guyanas y Santa Elena'!E193,'Tablas Resto de Ecuador'!E193) -> 9579 | L193: =IF('INGRESO DE DATOS'!$W$19=1,'Tablas Guyanas y Santa Elena'!F193,'Tablas Resto de Ecuador'!F193) -> 6484 | M193: =IF('INGRESO DE DATOS'!$W$19=1,'Tablas Guyanas y Santa Elena'!G193,'Tablas Resto de Ecuador'!G193) -> 5090 | O193: 14415 | P193: 13957 | Q193: 9579 | R193: 6484 | S193: 5090
A194: 56 | C194: 14415 | D194: 13957 | E194: 9579 | F194: 6484 | G194: 5090 | I194: =IF('INGRESO DE DATOS'!$W$19=1,'Tablas Guyanas y Santa Elena'!C194,'Tablas Resto de Ecuador'!C194) -> 14415 | J194: =IF('INGRESO DE DATOS'!$W$19=1,'Tablas Guyanas y Santa Elena'!D194,'Tablas Resto de Ecuador'!D194) -> 13957 | K194: =IF('INGRESO DE DATOS'!$W$19=1,'Tablas Guyanas y Santa Elena'!E194,'Tablas Resto de Ecuador'!E194) -> 9579 | L194: =IF('INGRESO DE DATOS'!$W$19=1,'Tablas Guyanas y Santa Elena'!F194,'Tablas Resto de Ecuador'!F194) -> 6484 | M194: =IF('INGRESO DE DATOS'!$W$19=1,'Tablas Guyanas y Santa Elena'!G194,'Tablas Resto de Ecuador'!G194) -> 5090 | O194: 14415 | P194: 13957 | Q194: 9579 | R194: 6484 | S194: 5090
A195: 57 | C195: 14415 | D195: 13957 | E195: 9579 | F195: 6484 | G195: 5090 | I195: =IF('INGRESO DE DATOS'!$W$19=1,'Tablas Guyanas y Santa Elena'!C195,'Tablas Resto de Ecuador'!C195) -> 14415 | J195: =IF('INGRESO DE DATOS'!$W$19=1,'Tablas Guyanas y Santa Elena'!D195,'Tablas Resto de Ecuador'!D195) -> 13957 | K195: =IF('INGRESO DE DATOS'!$W$19=1,'Tablas Guyanas y Santa Elena'!E195,'Tablas Resto de Ecuador'!E195) -> 9579 | L195: =IF('INGRESO DE DATOS'!$W$19=1,'Tablas Guyanas y Santa Elena'!F195,'Tablas Resto de Ecuador'!F195) -> 6484 | M195: =IF('INGRESO DE DATOS'!$W$19=1,'Tablas Guyanas y Santa Elena'!G195,'Tablas Resto de Ecuador'!G195) -> 5090 | O195: 14415 | P195: 13957 | Q195: 9579 | R195: 6484 | S195: 5090
A196: 58 | C196: 14415 | D196: 13957 | E196: 9579 | F196: 6484 | G196: 5090 | I196: =IF('INGRESO DE DATOS'!$W$19=1,'Tablas Guyanas y Santa Elena'!C196,'Tablas Resto de Ecuador'!C196) -> 14415 | J196: =IF('INGRESO DE DATOS'!$W$19=1,'Tablas Guyanas y Santa Elena'!D196,'Tablas Resto de Ecuador'!D196) -> 13957 | K196: =IF('INGRESO DE DATOS'!$W$19=1,'Tablas Guyanas y Santa Elena'!E196,'Tablas Resto de Ecuador'!E196) -> 9579 | L196: =IF('INGRESO DE DATOS'!$W$19=1,'Tablas Guyanas y Santa Elena'!F196,'Tablas Resto de Ecuador'!F196) -> 6484 | M196: =IF('INGRESO DE DATOS'!$W$19=1,'Tablas Guyanas y Santa Elena'!G196,'Tablas Resto de Ecuador'!G196) -> 5090 | O196: 14415 | P196: 13957 | Q196: 9579 | R196: 6484 | S196: 5090
A197: 59 | C197: 14415 | D197: 13957 | E197: 9579 | F197: 6484 | G197: 5090 | I197: =IF('INGRESO DE DATOS'!$W$19=1,'Tablas Guyanas y Santa Elena'!C197,'Tablas Resto de Ecuador'!C197) -> 14415 | J197: =IF('INGRESO DE DATOS'!$W$19=1,'Tablas Guyanas y Santa Elena'!D197,'Tablas Resto de Ecuador'!D197) -> 13957 | K197: =IF('INGRESO DE DATOS'!$W$19=1,'Tablas Guyanas y Santa Elena'!E197,'Tablas Resto de Ecuador'!E197) -> 9579 | L197: =IF('INGRESO DE DATOS'!$W$19=1,'Tablas Guyanas y Santa Elena'!F197,'Tablas Resto de Ecuador'!F197) -> 6484 | M197: =IF('INGRESO DE DATOS'!$W$19=1,'Tablas Guyanas y Santa Elena'!G197,'Tablas Resto de Ecuador'!G197) -> 5090 | O197: 14415 | P197: 13957 | Q197: 9579 | R197: 6484 | S197: 5090
A198: 60 | C198: 15504 | D198: 15139 | E198: 10290 | F198: 6968 | G198: 5468 | I198: =IF('INGRESO DE DATOS'!$W$19=1,'Tablas Guyanas y Santa Elena'!C198,'Tablas Resto de Ecuador'!C198) -> 15504 | J198: =IF('INGRESO DE DATOS'!$W$19=1,'Tablas Guyanas y Santa Elena'!D198,'Tablas Resto de Ecuador'!D198) -> 15139 | K198: =IF('INGRESO DE DATOS'!$W$19=1,'Tablas Guyanas y Santa Elena'!E198,'Tablas Resto de Ecuador'!E198) -> 10290 | L198: =IF('INGRESO DE DATOS'!$W$19=1,'Tablas Guyanas y Santa Elena'!F198,'Tablas Resto de Ecuador'!F198) -> 6968 | M198: =IF('INGRESO DE DATOS'!$W$19=1,'Tablas Guyanas y Santa Elena'!G198,'Tablas Resto de Ecuador'!G198) -> 5468 | O198: 15504 | P198: 15139 | Q198: 10290 | R198: 6968 | S198: 5468
A199: 61 | C199: 17404 | D199: 16995 | E199: 11544 | F199: 7816 | G199: 6131 | I199: =IF('INGRESO DE DATOS'!$W$19=1,'Tablas Guyanas y Santa Elena'!C199,'Tablas Resto de Ecuador'!C199) -> 17404 | J199: =IF('INGRESO DE DATOS'!$W$19=1,'Tablas Guyanas y Santa Elena'!D199,'Tablas Resto de Ecuador'!D199) -> 16995 | K199: =IF('INGRESO DE DATOS'!$W$19=1,'Tablas Guyanas y Santa Elena'!E199,'Tablas Resto de Ecuador'!E199) -> 11544 | L199: =IF('INGRESO DE DATOS'!$W$19=1,'Tablas Guyanas y Santa Elena'!F199,'Tablas Resto de Ecuador'!F199) -> 7816 | M199: =IF('INGRESO DE DATOS'!$W$19=1,'Tablas Guyanas y Santa Elena'!G199,'Tablas Resto de Ecuador'!G199) -> 6131 | O199: 17404 | P199: 16995 | Q199: 11544 | R199: 7816 | S199: 6131
A200: 62 | C200: 19463 | D200: 19007 | E200: 12900 | F200: 8734 | G200: 6855 | I200: =IF('INGRESO DE DATOS'!$W$19=1,'Tablas Guyanas y Santa Elena'!C200,'Tablas Resto de Ecuador'!C200) -> 19463 | J200: =IF('INGRESO DE DATOS'!$W$19=1,'Tablas Guyanas y Santa Elena'!D200,'Tablas Resto de Ecuador'!D200) -> 19007 | K200: =IF('INGRESO DE DATOS'!$W$19=1,'Tablas Guyanas y Santa Elena'!E200,'Tablas Resto de Ecuador'!E200) -> 12900 | L200: =IF('INGRESO DE DATOS'!$W$19=1,'Tablas Guyanas y Santa Elena'!F200,'Tablas Resto de Ecuador'!F200) -> 8734 | M200: =IF('INGRESO DE DATOS'!$W$19=1,'Tablas Guyanas y Santa Elena'!G200,'Tablas Resto de Ecuador'!G200) -> 6855 | O200: 19463 | P200: 19007 | Q200: 12900 | R200: 8734 | S200: 6855
A201: 63 | C201: 21672 | D201: 21074 | E201: 14371 | F201: 9731 | G201: 7638 | I201: =IF('INGRESO DE DATOS'!$W$19=1,'Tablas Guyanas y Santa Elena'!C201,'Tablas Resto de Ecuador'!C201) -> 21672 | J201: =IF('INGRESO DE DATOS'!$W$19=1,'Tablas Guyanas y Santa Elena'!D201,'Tablas Resto de Ecuador'!D201) -> 21074 | K201: =IF('INGRESO DE DATOS'!$W$19=1,'Tablas Guyanas y Santa Elena'!E201,'Tablas Resto de Ecuador'!E201) -> 14371 | L201: =IF('INGRESO DE DATOS'!$W$19=1,'Tablas Guyanas y Santa Elena'!F201,'Tablas Resto de Ecuador'!F201) -> 9731 | M201: =IF('INGRESO DE DATOS'!$W$19=1,'Tablas Guyanas y Santa Elena'!G201,'Tablas Resto de Ecuador'!G201) -> 7638 | O201: 21672 | P201: 21074 | Q201: 14371 | R201: 9731 | S201: 7638
A202: 64 | C202: 24044 | D202: 22565 | E202: 15949 | F202: 10800 | G202: 8470 | I202: =IF('INGRESO DE DATOS'!$W$19=1,'Tablas Guyanas y Santa Elena'!C202,'Tablas Resto de Ecuador'!C202) -> 24044 | J202: =IF('INGRESO DE DATOS'!$W$19=1,'Tablas Guyanas y Santa Elena'!D202,'Tablas Resto de Ecuador'!D202) -> 22565 | K202: =IF('INGRESO DE DATOS'!$W$19=1,'Tablas Guyanas y Santa Elena'!E202,'Tablas Resto de Ecuador'!E202) -> 15949 | L202: =IF('INGRESO DE DATOS'!$W$19=1,'Tablas Guyanas y Santa Elena'!F202,'Tablas Resto de Ecuador'!F202) -> 10800 | M202: =IF('INGRESO DE DATOS'!$W$19=1,'Tablas Guyanas y Santa Elena'!G202,'Tablas Resto de Ecuador'!G202) -> 8470 | O202: 24044 | P202: 22565 | Q202: 15949 | R202: 10800 | S202: 8470
A203: 65 | C203: 26570 | D203: 24260 | E203: 17635 | F203: 11941 | G203: 9368 | I203: =IF('INGRESO DE DATOS'!$W$19=1,'Tablas Guyanas y Santa Elena'!C203,'Tablas Resto de Ecuador'!C203) -> 26570 | J203: =IF('INGRESO DE DATOS'!$W$19=1,'Tablas Guyanas y Santa Elena'!D203,'Tablas Resto de Ecuador'!D203) -> 24260 | K203: =IF('INGRESO DE DATOS'!$W$19=1,'Tablas Guyanas y Santa Elena'!E203,'Tablas Resto de Ecuador'!E203) -> 17635 | L203: =IF('INGRESO DE DATOS'!$W$19=1,'Tablas Guyanas y Santa Elena'!F203,'Tablas Resto de Ecuador'!F203) -> 11941 | M203: =IF('INGRESO DE DATOS'!$W$19=1,'Tablas Guyanas y Santa Elena'!G203,'Tablas Resto de Ecuador'!G203) -> 9368 | O203: 26570 | P203: 24260 | Q203: 17635 | R203: 11941 | S203: 9368
A204: 66 | C204: 29252 | D204: 26232 | E204: 19437 | F204: 13159 | G204: 10325 | I204: =IF('INGRESO DE DATOS'!$W$19=1,'Tablas Guyanas y Santa Elena'!C204,'Tablas Resto de Ecuador'!C204) -> 29252 | J204: =IF('INGRESO DE DATOS'!$W$19=1,'Tablas Guyanas y Santa Elena'!D204,'Tablas Resto de Ecuador'!D204) -> 26232 | K204: =IF('INGRESO DE DATOS'!$W$19=1,'Tablas Guyanas y Santa Elena'!E204,'Tablas Resto de Ecuador'!E204) -> 19437 | L204: =IF('INGRESO DE DATOS'!$W$19=1,'Tablas Guyanas y Santa Elena'!F204,'Tablas Resto de Ecuador'!F204) -> 13159 | M204: =IF('INGRESO DE DATOS'!$W$19=1,'Tablas Guyanas y Santa Elena'!G204,'Tablas Resto de Ecuador'!G204) -> 10325 | O204: 29252 | P204: 26232 | Q204: 19437 | R204: 13159 | S204: 10325
A205: 67 | C205: 32090 | D205: 28461 | E205: 21340 | F205: 14448 | G205: 11336 | I205: =IF('INGRESO DE DATOS'!$W$19=1,'Tablas Guyanas y Santa Elena'!C205,'Tablas Resto de Ecuador'!C205) -> 32090 | J205: =IF('INGRESO DE DATOS'!$W$19=1,'Tablas Guyanas y Santa Elena'!D205,'Tablas Resto de Ecuador'!D205) -> 28461 | K205: =IF('INGRESO DE DATOS'!$W$19=1,'Tablas Guyanas y Santa Elena'!E205,'Tablas Resto de Ecuador'!E205) -> 21340 | L205: =IF('INGRESO DE DATOS'!$W$19=1,'Tablas Guyanas y Santa Elena'!F205,'Tablas Resto de Ecuador'!F205) -> 14448 | M205: =IF('INGRESO DE DATOS'!$W$19=1,'Tablas Guyanas y Santa Elena'!G205,'Tablas Resto de Ecuador'!G205) -> 11336 | O205: 32090 | P205: 28461 | Q205: 21340 | R205: 14448 | S205: 11336
... 93 more rows

Sheet Tablas Guyanas y Santa Elena (hidden)
A2: BUPA GLOBAL ELITE
A3: TARIFAS ANUALES
A5: EDAD | C5: 250 | D5: 2000 | E5: 3500 | F5: 5000 | G5: 10000 | H5: 20000
A6: 18 | C6: 14069 | D6: 10435 | E6: 9287 | F6: 8522 | G6: 6985 | H6: 5484
A7: 19 | C7: 14069 | D7: 10435 | E7: 9287 | F7: 8522 | G7: 6985 | H7: 5484
A8: 20 | C8: 14069 | D8: 10435 | E8: 9287 | F8: 8522 | G8: 6985 | H8: 5484
A9: 21 | C9: 14069 | D9: 10435 | E9: 9287 | F9: 8522 | G9: 6985 | H9: 5484
A10: 22 | C10: 14069 | D10: 10435 | E10: 9287 | F10: 8522 | G10: 6985 | H10: 5484
A11: 23 | C11: 14069 | D11: 10435 | E11: 9287 | F11: 8522 | G11: 6985 | H11: 5484
A12: 24 | C12: 14069 | D12: 10435 | E12: 9287 | F12: 8522 | G12: 6985 | H12: 5484
A13: 25 | C13: 16612 | D13: 12086 | E13: 10210 | F13: 9424 | G13: 7416 | H13: 5822
A14: 26 | C14: 16612 | D14: 12086 | E14: 10210 | F14: 9424 | G14: 7416 | H14: 5822
A15: 27 | C15: 16612 | D15: 12086 | E15: 10210 | F15: 9424 | G15: 7416 | H15: 5822
A16: 28 | C16: 16612 | D16: 12086 | E16: 10210 | F16: 9424 | G16: 7416 | H16: 5822
A17: 29 | C17: 16612 | D17: 12086 | E17: 10210 | F17: 9424 | G17: 7416 | H17: 5822
A18: 30 | C18: 17391 | D18: 13576 | E18: 11958 | F18: 9998 | G18: 8185 | H18: 6427
A19: 31 | C19: 17391 | D19: 13576 | E19: 11958 | F19: 9998 | G19: 8185 | H19: 6427
A20: 32 | C20: 17391 | D20: 13576 | E20: 11958 | F20: 9998 | G20: 8185 | H20: 6427
A21: 33 | C21: 17391 | D21: 13576 | E21: 11958 | F21: 9998 | G21: 8185 | H21: 6427
A22: 34 | C22: 17391 | D22: 13576 | E22: 11958 | F22: 9998 | G22: 8185 | H22: 6427
A23: 35 | C23: 19560 | D23: 15289 | E23: 13317 | F23: 11558 | G23: 9087 | H23: 7134
A24: 36 | C24: 19560 | D24: 15289 | E24: 13317 | F24: 11558 | G24: 9087 | H24: 7134
A25: 37 | C25: 19560 | D25: 15289 | E25: 13317 | F25: 11558 | G25: 9087 | H25: 7134
A26: 38 | C26: 19560 | D26: 15289 | E26: 13317 | F26: 11558 | G26: 9087 | H26: 7134
A27: 39 | C27: 19560 | D27: 15289 | E27: 13317 | F27: 11558 | G27: 9087 | H27: 7134
A28: 40 | C28: 21393 | D28: 16417 | E28: 14088 | F28: 12938 | G28: 10132 | H28: 7955
A29: 41 | C29: 21393 | D29: 16417 | E29: 14088 | F29: 12938 | G29: 10132 | H29: 7955
A30: 42 | C30: 21393 | D30: 16417 | E30: 14088 | F30: 12938 | G30: 10132 | H30: 7955
A31: 43 | C31: 21393 | D31: 16417 | E31: 14088 | F31: 12938 | G31: 10132 | H31: 7955
A32: 44 | C32: 21393 | D32: 16417 | E32: 14088 | F32: 12938 | G32: 10132 | H32: 7955
A33: 45 | C33: 24845 | D33: 19155 | E33: 16502 | F33: 14963 | G33: 11303 | H33: 8874
A34: 46 | C34: 24845 | D34: 19155 | E34: 16502 | F34: 14963 | G34: 11303 | H34: 8874
A35: 47 | C35: 24845 | D35: 19155 | E35: 16502 | F35: 14963 | G35: 11303 | H35: 8874
A36: 48 | C36: 24845 | D36: 19155 | E36: 16502 | F36: 14963 | G36: 11303 | H36: 8874
A37: 49 | C37: 24845 | D37: 19155 | E37: 16502 | F37: 14963 | G37: 11303 | H37: 8874
A38: 50 | C38: 27920 | D38: 22437 | E38: 19032 | F38: 17058 | G38: 12377 | H38: 9916
A39: 51 | C39: 27920 | D39: 22437 | E39: 19032 | F39: 17058 | G39: 12377 | H39: 9916
A40: 52 | C40: 27920 | D40: 22437 | E40: 19032 | F40: 17058 | G40: 12377 | H40: 9916
A41: 53 | C41: 27920 | D41: 22437 | E41: 19032 | F41: 17058 | G41: 12377 | H41: 9916
A42: 54 | C42: 27920 | D42: 22437 | E42: 19032 | F42: 17058 | G42: 12377 | H42: 9916
A43: 55 | C43: 32533 | D43: 27004 | E43: 23163 | F43: 19744 | G43: 14099 | H43: 11070
A44: 56 | C44: 32533 | D44: 27004 | E44: 23163 | F44: 19744 | G44: 14099 | H44: 11070
A45: 57 | C45: 32533 | D45: 27004 | E45: 23163 | F45: 19744 | G45: 14099 | H45: 11070
A46: 58 | C46: 32533 | D46: 27004 | E46: 23163 | F46: 19744 | G46: 14099 | H46: 11070
A47: 59 | C47: 32533 | D47: 27004 | E47: 23163 | F47: 19744 | G47: 14099 | H47: 11070
A48: 60 | C48: 35773 | D48: 31911 | E48: 25040 | F48: 21332 | G48: 15081 | H48: 11840
A49: 61 | C49: 39867 | D49: 33856 | E49: 27881 | F49: 23759 | G49: 16792 | H49: 13184
A50: 62 | C50: 41405 | D50: 34991 | E50: 30046 | F50: 26387 | G50: 18650 | H50: 14642
A51: 63 | C51: 43108 | D51: 36434 | E51: 31713 | F51: 27692 | G51: 20658 | H51: 16218
A52: 64 | C52: 45345 | D52: 38492 | E52: 33827 | F52: 29464 | G52: 22322 | H52: 17905
A53: 65 | C53: 48395 | D53: 41470 | E53: 36560 | F53: 31974 | G53: 24470 | H53: 19705
A54: 66 | C54: 52509 | D54: 45655 | E54: 40118 | F54: 35446 | G54: 27498 | H54: 21618
A55: 67 | C55: 57502 | D55: 50842 | E55: 44383 | F55: 39710 | G55: 30122 | H55: 23648
A56: 68 | C56: 62996 | D56: 56603 | E56: 49048 | F56: 44425 | G56: 32855 | H56: 25793
A57: 69 | C57: 68615 | D57: 62507 | E57: 53816 | F57: 49254 | G57: 35732 | H57: 28052
A58: 70 | C58: 73984 | D58: 68124 | E58: 58382 | F58: 53856 | G58: 38749 | H58: 30421
A59: 71 | C59: 79102 | D59: 73455 | E59: 62746 | F59: 58232 | G59: 41918 | H59: 32908
A60: 72 | C60: 84218 | D60: 78786 | E60: 67110 | F60: 62608 | G60: 45226 | H60: 35505
A61: 73 | C61: 89336 | D61: 84116 | E61: 71474 | F61: 66985 | G61: 48687 | H61: 38222
A62: 74 | C62: 94454 | D62: 89448 | E62: 75839 | F62: 71361 | G62: 52288 | H62: 41049
A63: 75 | C63: 99487 | D63: 94692 | E63: 80117 | F63: 75653 | G63: 56031 | H63: 43989
A64: 76 | C64: 99487 | D64: 94692 | E64: 80117 | F64: 75653 | G64: 56031 | H64: 43989
A65: 77 | C65: 99487 | D65: 94692 | E65: 80117 | F65: 75653 | G65: 56031 | H65: 43989
A66: 78 | C66: 99487 | D66: 94692 | E66: 80117 | F66: 75653 | G66: 56031 | H66: 43989
A67: 79 | C67: 99487 | D67: 94692 | E67: 80117 | F67: 75653 | G67: 56031 | H67: 43989
A68: 80 | C68: 99487 | D68: 94692 | E68: 80117 | F68: 75653 | G68: 56031 | H68: 43989
A69: 81 | C69: 99487 | D69: 94692 | E69: 80117 | F69: 75653 | G69: 56031 | H69: 43989
A70: 82 | C70: 99487 | D70: 94692 | E70: 80117 | F70: 75653 | G70: 56031 | H70: 43989
A71: 83 | C71: 99487 | D71: 94692 | E71: 80117 | F71: 75653 | G71: 56031 | H71: 43989
A72: 84 | B72: o más | C72: 99487 | D72: 94692 | E72: 80117 | F72: 75653 | G72: 56031 | H72: 43989
A73: 1 | B73: Hijo | C73: 3302 | D73: 2199 | E73: 1595 | F73: 1560 | G73: 1777 | H73: 1493
A74: 2 | B74: Hijos | C74: 6006 | D74: 3864 | E74: 3005 | F74: 2839 | G74: 3095 | H74: 2600
A75: 3 | B75: Hijos o más | C75: 8687 | D75: 5469 | E75: 4389 | F75: 4073 | G75: 4419 | H75: 3638
A77: BUPA GLOBAL PREMIER
A78: TARIFAS ANUALES
A80: EDAD | C80: 250 | D80: 2000 | E80: 3500 | F80: 5000 | G80: 10000
A81: 18 | C81: 10106 | D81: 7355 | E81: 5403 | F81: 4262.94 | G81: 3354
A82: 19 | C82: 10106 | D82: 7355 | E82: 5403 | F82: 4262.94 | G82: 3354
A83: 20 | C83: 10106 | D83: 7355 | E83: 5403 | F83: 4262.94 | G83: 3354
A84: 21 | C84: 10106 | D84: 7355 | E84: 5403 | F84: 4262.94 | G84: 3354
A85: 22 | C85: 10106 | D85: 7355 | E85: 5403 | F85: 4262.94 | G85: 3354
A86: 23 | C86: 10106 | D86: 7355 | E86: 5403 | F86: 4262.94 | G86: 3354
A87: 24 | C87: 10106 | D87: 7355 | E87: 5403 | F87: 4262.94 | G87: 3354
A88: 25 | C88: 10160 | D88: 8100 | E88: 5503 | F88: 4296 | G88: 3796
A89: 26 | C89: 10160 | D89: 8100 | E89: 5503 | F89: 4296 | G89: 3796
A90: 27 | C90: 10160 | D90: 8100 | E90: 5503 | F90: 4296 | G90: 3796
A91: 28 | C91: 10160 | D91: 8100 | E91: 5503 | F91: 4296 | G91: 3796
A92: 29 | C92: 10160 | D92: 8100 | E92: 5503 | F92: 4296 | G92: 3796
A93: 30 | C93: 12100 | D93: 9427 | E93: 7194 | F93: 5309 | G93: 4163
A94: 31 | C94: 12100 | D94: 9427 | E94: 7194 | F94: 5309 | G94: 4163
A95: 32 | C95: 12100 | D95: 9427 | E95: 7194 | F95: 5309 | G95: 4163
A96: 33 | C96: 12100 | D96: 9427 | E96: 7194 | F96: 5309 | G96: 4163
A97: 34 | C97: 12100 | D97: 9427 | E97: 7194 | F97: 5309 | G97: 4163
A98: 35 | C98: 13503 | D98: 11388 | E98: 8558 | F98: 5870 | G98: 4603
A99: 36 | C99: 13503 | D99: 11388 | E99: 8558 | F99: 5870 | G99: 4603
A100: 37 | C100: 13503 | D100: 11388 | E100: 8558 | F100: 5870 | G100: 4603
A101: 38 | C101: 13503 | D101: 11388 | E101: 8558 | F101: 5870 | G101: 4603
A102: 39 | C102: 13503 | D102: 11388 | E102: 8558 | F102: 5870 | G102: 4603
A103: 40 | C103: 15128 | D103: 13343 | E103: 9536 | F103: 6521 | G103: 5117
A104: 41 | C104: 15128 | D104: 13343 | E104: 9536 | F104: 6521 | G104: 5117
A105: 42 | C105: 15128 | D105: 13343 | E105: 9536 | F105: 6521 | G105: 5117
A106: 43 | C106: 15128 | D106: 13343 | E106: 9536 | F106: 6521 | G106: 5117
A107: 44 | C107: 15128 | D107: 13343 | E107: 9536 | F107: 6521 | G107: 5117
A108: 45 | C108: 16929 | D108: 13437 | E108: 10602 | F108: 7257 | G108: 5693
A109: 46 | C109: 16929 | D109: 13437 | E109: 10602 | F109: 7257 | G109: 5693
A110: 47 | C110: 16929 | D110: 13437 | E110: 10602 | F110: 7257 | G110: 5693
A111: 48 | C111: 16929 | D111: 13437 | E111: 10602 | F111: 7257 | G111: 5693
A112: 49 | C112: 16929 | D112: 13437 | E112: 10602 | F112: 7257 | G112: 5693
A113: 50 | C113: 18959 | D113: 14193 | E113: 11454 | F113: 8098 | G113: 6352
A114: 51 | C114: 18959 | D114: 14193 | E114: 11454 | F114: 8098 | G114: 6352
A115: 52 | C115: 18959 | D115: 14193 | E115: 11454 | F115: 8098 | G115: 6352
A116: 53 | C116: 18959 | D116: 14193 | E116: 11454 | F116: 8098 | G116: 6352
A117: 54 | C117: 18959 | D117: 14193 | E117: 11454 | F117: 8098 | G117: 6352
A118: 55 | C118: 21202 | D118: 16564 | E118: 13314 | F118: 9026 | G118: 7085
A119: 56 | C119: 21202 | D119: 16564 | E119: 13314 | F119: 9026 | G119: 7085
A120: 57 | C120: 21202 | D120: 16564 | E120: 13314 | F120: 9026 | G120: 7085
A121: 58 | C121: 21202 | D121: 16564 | E121: 13314 | F121: 9026 | G121: 7085
A122: 59 | C122: 21202 | D122: 16564 | E122: 13314 | F122: 9026 | G122: 7085
A123: 60 | C123: 22683 | D123: 20044 | E123: 14236 | F123: 9653 | G123: 7572
A124: 61 | C124: 25279 | D124: 22333 | E124: 15843 | F124: 10744 | G124: 8427
A125: 62 | C125: 28087 | D125: 23965 | E125: 17594 | F125: 11927 | G125: 9356
A126: 63 | C126: 31103 | D126: 25267 | E126: 19489 | F126: 13211 | G126: 10364
A127: 64 | C127: 32855 | D127: 26811 | E127: 21517 | F127: 14584 | G127: 11444
A128: 65 | C128: 34780 | D128: 28718 | E128: 23146 | F128: 16060 | G128: 12601
A129: 66 | C129: 37251 | D129: 31101 | E129: 25150 | F129: 17627 | G129: 13832
A130: 67 | C130: 40166 | D130: 33881 | E130: 27524 | F130: 19289 | G130: 15131
A131: 68 | C131: 43334 | D131: 36887 | E131: 30111 | F131: 21048 | G131: 16513
A132: 69 | C132: 46566 | D132: 39949 | E132: 32749 | F132: 22897 | G132: 17964
A133: 70 | C133: 49671 | D133: 42898 | E133: 35283 | F133: 24846 | G133: 19490
A134: 71 | C134: 52650 | D134: 45735 | E134: 37710 | F134: 26889 | G134: 21095
A135: 72 | C135: 55627 | D135: 48571 | E135: 40137 | F135: 29030 | G135: 22775
A136: 73 | C136: 58606 | D136: 51407 | E136: 42564 | F136: 31263 | G136: 24526
A137: 74 | C137: 61583 | D137: 54243 | E137: 44992 | F137: 33590 | G137: 26353
A138: 75 | C138: 64477 | D138: 56996 | E138: 47334 | F138: 36014 | G138: 27768
A139: 76 | C139: 64477 | D139: 56996 | E139: 47334 | F139: 36014 | G139: 27768
A140: 77 | C140: 64477 | D140: 56996 | E140: 47334 | F140: 36014 | G140: 27768
A141: 78 | C141: 64477 | D141: 56996 | E141: 47334 | F141: 36014 | G141: 27768
A142: 79 | C142: 64477 | D142: 56996 | E142: 47334 | F142: 36014 | G142: 27768
A143: 80 | C143: 64477 | D143: 56996 | E143: 47334 | F143: 36014 | G143: 27768
A144: 81 | C144: 64477 | D144: 56996 | E144: 47334 | F144: 36014 | G144: 27768
A145: 82 | C145: 64477 | D145: 56996 | E145: 47334 | F145: 36014 | G145: 27768
A146: 83 | C146: 64477 | D146: 56996 | E146: 47334 | F146: 36014 | G146: 27768
A147: 84 | B147: o más | C147: 64477 | D147: 56996 | E147: 47334 | F147: 36014 | G147: 27768
A148: 1 | B148: Hijo | C148: 977 | D148: 881 | E148: 711 | F148: 713 | G148: 644
A149: 2 | B149: Hijos | C149: 1922 | D149: 1817 | E149: 1376 | F149: 1300 | G149: 1229
A150: 3 | B150: Hijos o más | C150: 2840 | D150: 2684 | E150: 2034 | F150: 1858 | G150: 1777
A152: BUPA GLOBAL SELECT
A153: TARIFAS ANUALES
A155: EDAD | C155: 250 | D155: 2000 | E155: 5000 | F155: 10000 | G155: 20000
A156: 18 | C156: 6386 | D156: 4707 | E156: 4221 | F156: 2755 | G156: 2389
A157: 19 | C157: 6386 | D157: 4707 | E157: 4221 | F157: 2755 | G157: 2389
A158: 20 | C158: 6386 | D158: 4707 | E158: 4221 | F158: 2755 | G158: 2389
A159: 21 | C159: 6386 | D159: 4707 | E159: 4221 | F159: 2755 | G159: 2389
A160: 22 | C160: 6386 | D160: 4707 | E160: 4221 | F160: 2755 | G160: 2389
A161: 23 | C161: 6386 | D161: 4707 | E161: 4221 | F161: 2755 | G161: 2389
A162: 24 | C162: 6386 | D162: 4707 | E162: 4221 | F162: 2755 | G162: 2389
A163: 25 | C163: 6891 | D163: 5960 | E163: 4264 | F163: 3243 | G163: 2545
A164: 26 | C164: 6891 | D164: 5960 | E164: 4264 | F164: 3243 | G164: 2545
A165: 27 | C165: 6891 | D165: 5960 | E165: 4264 | F165: 3243 | G165: 2545
A166: 28 | C166: 6891 | D166: 5960 | E166: 4264 | F166: 3243 | G166: 2545
A167: 29 | C167: 6891 | D167: 5960 | E167: 4264 | F167: 3243 | G167: 2545
A168: 30 | C168: 7774 | D168: 7591 | E168: 5074 | F168: 3608 | G168: 2832
A169: 31 | C169: 7774 | D169: 7591 | E169: 5074 | F169: 3608 | G169: 2832
A170: 32 | C170: 7774 | D170: 7591 | E170: 5074 | F170: 3608 | G170: 2832
A171: 33 | C171: 7774 | D171: 7591 | E171: 5074 | F171: 3608 | G171: 2832
A172: 34 | C172: 7774 | D172: 7591 | E172: 5074 | F172: 3608 | G172: 2832
A173: 35 | C173: 8799 | D173: 8491 | E173: 5796 | F173: 4041 | G173: 3170
A174: 36 | C174: 8799 | D174: 8491 | E174: 5796 | F174: 4041 | G174: 3170
A175: 37 | C175: 8799 | D175: 8491 | E175: 5796 | F175: 4041 | G175: 3170
A176: 38 | C176: 8799 | D176: 8491 | E176: 5796 | F176: 4041 | G176: 3170
A177: 39 | C177: 8799 | D177: 8491 | E177: 5796 | F177: 4041 | G177: 3170
A178: 40 | C178: 9980 | D178: 8835 | E178: 6204 | F178: 4547 | G178: 3567
A179: 41 | C179: 9980 | D179: 8835 | E179: 6204 | F179: 4547 | G179: 3567
A180: 42 | C180: 9980 | D180: 8835 | E180: 6204 | F180: 4547 | G180: 3567
A181: 43 | C181: 9980 | D181: 8835 | E181: 6204 | F181: 4547 | G181: 3567
A182: 44 | C182: 9980 | D182: 8835 | E182: 6204 | F182: 4547 | G182: 3567
A183: 45 | C183: 11294 | D183: 9630 | E183: 6688 | F183: 5117 | G183: 4017
A184: 46 | C184: 11294 | D184: 9630 | E184: 6688 | F184: 5117 | G184: 4017
A185: 47 | C185: 11294 | D185: 9630 | E185: 6688 | F185: 5117 | G185: 4017
A186: 48 | C186: 11294 | D186: 9630 | E186: 6688 | F186: 5117 | G186: 4017
A187: 49 | C187: 11294 | D187: 9630 | E187: 6688 | F187: 5117 | G187: 4017
A188: 50 | C188: 12780 | D188: 10675 | E188: 7277 | F188: 5617 | G188: 4524
A189: 51 | C189: 12780 | D189: 10675 | E189: 7277 | F189: 5617 | G189: 4524
A190: 52 | C190: 12780 | D190: 10675 | E190: 7277 | F190: 5617 | G190: 4524
A191: 53 | C191: 12780 | D191: 10675 | E191: 7277 | F191: 5617 | G191: 4524
A192: 54 | C192: 12780 | D192: 10675 | E192: 7277 | F192: 5617 | G192: 4524
A193: 55 | C193: 14415 | D193: 13957 | E193: 9579 | F193: 6484 | G193: 5090
A194: 56 | C194: 14415 | D194: 13957 | E194: 9579 | F194: 6484 | G194: 5090
A195: 57 | C195: 14415 | D195: 13957 | E195: 9579 | F195: 6484 | G195: 5090
A196: 58 | C196: 14415 | D196: 13957 | E196: 9579 | F196: 6484 | G196: 5090
A197: 59 | C197: 14415 | D197: 13957 | E197: 9579 | F197: 6484 | G197: 5090
A198: 60 | C198: 15504 | D198: 15139 | E198: 10290 | F198: 6968 | G198: 5468
A199: 61 | C199: 17404 | D199: 16995 | E199: 11544 | F199: 7816 | G199: 6131
A200: 62 | C200: 19463 | D200: 19007 | E200: 12900 | F200: 8734 | G200: 6855
A201: 63 | C201: 21672 | D201: 21074 | E201: 14371 | F201: 9731 | G201: 7638
A202: 64 | C202: 24044 | D202: 22565 | E202: 15949 | F202: 10800 | G202: 8470
A203: 65 | C203: 26570 | D203: 24260 | E203: 17635 | F203: 11941 | G203: 9368
A204: 66 | C204: 29252 | D204: 26232 | E204: 19437 | F204: 13159 | G204: 10325
A205: 67 | C205: 32090 | D205: 28461 | E205: 21340 | F205: 14448 | G205: 11336
A206: 68 | C206: 35085 | D206: 30837 | E206: 23357 | F206: 15815 | G206: 12410
... 92 more rows

Sheet Tablas Resto de Ecuador (hidden)
A2: BUPA GLOBAL ELITE
A3: TARIFAS ANUALES
A5: EDAD | C5: 250 | D5: 2000 | E5: 3500 | F5: 5000 | G5: 10000 | H5: 20000
A6: 18 | C6: 13795 | D6: 10231 | E6: 9106 | F6: 8356 | G6: 6421 | H6: 5484
A7: 19 | C7: 13795 | D7: 10231 | E7: 9106 | F7: 8356 | G7: 6421 | H7: 5484
A8: 20 | C8: 13795 | D8: 10231 | E8: 9106 | F8: 8356 | G8: 6421 | H8: 5484
A9: 21 | C9: 13795 | D9: 10231 | E9: 9106 | F9: 8356 | G9: 6421 | H9: 5484
A10: 22 | C10: 13795 | D10: 10231 | E10: 9106 | F10: 8356 | G10: 6421 | H10: 5484
A11: 23 | C11: 13795 | D11: 10231 | E11: 9106 | F11: 8356 | G11: 6421 | H11: 5484
A12: 24 | C12: 13795 | D12: 10231 | E12: 9106 | F12: 8356 | G12: 6421 | H12: 5484
A13: 25 | C13: 15874 | D13: 11851 | E13: 10096 | F13: 9240 | G13: 6817 | H13: 5822
A14: 26 | C14: 15874 | D14: 11851 | E14: 10096 | F14: 9240 | G14: 6817 | H14: 5822
A15: 27 | C15: 15874 | D15: 11851 | E15: 10096 | F15: 9240 | G15: 6817 | H15: 5822
A16: 28 | C16: 15874 | D16: 11851 | E16: 10096 | F16: 9240 | G16: 6817 | H16: 5822
A17: 29 | C17: 15874 | D17: 11851 | E17: 10096 | F17: 9240 | G17: 6817 | H17: 5822
A18: 30 | C18: 17052 | D18: 13311 | E18: 11725 | F18: 9998 | G18: 7525 | H18: 6427
A19: 31 | C19: 17052 | D19: 13311 | E19: 11725 | F19: 9998 | G19: 7525 | H19: 6427
A20: 32 | C20: 17052 | D20: 13311 | E20: 11725 | F20: 9998 | G20: 7525 | H20: 6427
A21: 33 | C21: 17052 | D21: 13311 | E21: 11725 | F21: 9998 | G21: 7525 | H21: 6427
A22: 34 | C22: 17052 | D22: 13311 | E22: 11725 | F22: 9998 | G22: 7525 | H22: 6427
A23: 35 | C23: 19178 | D23: 14991 | E23: 13057 | F23: 11333 | G23: 8353 | H23: 7134
A24: 36 | C24: 19178 | D24: 14991 | E24: 13057 | F24: 11333 | G24: 8353 | H24: 7134
A25: 37 | C25: 19178 | D25: 14991 | E25: 13057 | F25: 11333 | G25: 8353 | H25: 7134
A26: 38 | C26: 19178 | D26: 14991 | E26: 13057 | F26: 11333 | G26: 8353 | H26: 7134
A27: 39 | C27: 19178 | D27: 14991 | E27: 13057 | F27: 11333 | G27: 8353 | H27: 7134
A28: 40 | C28: 20976 | D28: 16097 | E28: 13813 | F28: 12686 | G28: 9313 | H28: 7955
A29: 41 | C29: 20976 | D29: 16097 | E29: 13813 | F29: 12686 | G29: 9313 | H29: 7955
A30: 42 | C30: 20976 | D30: 16097 | E30: 13813 | F30: 12686 | G30: 9313 | H30: 7955
A31: 43 | C31: 20976 | D31: 16097 | E31: 13813 | F31: 12686 | G31: 9313 | H31: 7955
A32: 44 | C32: 20976 | D32: 16097 | E32: 13813 | F32: 12686 | G32: 9313 | H32: 7955
A33: 45 | C33: 24361 | D33: 18782 | E33: 16180 | F33: 14671 | G33: 10392 | H33: 8874
A34: 46 | C34: 24361 | D34: 18782 | E34: 16180 | F34: 14671 | G34: 10392 | H34: 8874
A35: 47 | C35: 24361 | D35: 18782 | E35: 16180 | F35: 14671 | G35: 10392 | H35: 8874
A36: 48 | C36: 24361 | D36: 18782 | E36: 16180 | F36: 14671 | G36: 10392 | H36: 8874
A37: 49 | C37: 24361 | D37: 18782 | E37: 16180 | F37: 14671 | G37: 10392 | H37: 8874
A38: 50 | C38: 27376 | D38: 21999 | E38: 18661 | F38: 16485 | G38: 11612 | H38: 9916
A39: 51 | C39: 27376 | D39: 21999 | E39: 18661 | F39: 16485 | G39: 11612 | H39: 9916
A40: 52 | C40: 27376 | D40: 21999 | E40: 18661 | F40: 16485 | G40: 11612 | H40: 9916
A41: 53 | C41: 27376 | D41: 21999 | E41: 18661 | F41: 16485 | G41: 11612 | H41: 9916
A42: 54 | C42: 27376 | D42: 21999 | E42: 18661 | F42: 16485 | G42: 11612 | H42: 9916
A43: 55 | C43: 30928 | D43: 26477 | E43: 21592 | F43: 18400 | G43: 12964 | H43: 11070
A44: 56 | C44: 30928 | D44: 26477 | E44: 21592 | F44: 18400 | G44: 12964 | H44: 11070
A45: 57 | C45: 30928 | D45: 26477 | E45: 21592 | F45: 18400 | G45: 12964 | H45: 11070
A46: 58 | C46: 30928 | D46: 26477 | E46: 21592 | F46: 18400 | G46: 12964 | H46: 11070
A47: 59 | C47: 30928 | D47: 26477 | E47: 21592 | F47: 18400 | G47: 12964 | H47: 11070
A48: 60 | C48: 33103 | D48: 29529 | E48: 23098 | F48: 19678 | G48: 13864 | H48: 11840
A49: 61 | C49: 36892 | D49: 32904 | E49: 25720 | F49: 21916 | G49: 15439 | H49: 13184
A50: 62 | C50: 40983 | D50: 34991 | E50: 28567 | F50: 24342 | G50: 17145 | H50: 14642
A51: 63 | C51: 43108 | D51: 36434 | E51: 31636 | F51: 26959 | G51: 18991 | H51: 16218
A52: 64 | C52: 45345 | D52: 38492 | E52: 33827 | F52: 29464 | G52: 20966 | H52: 17905
A53: 65 | C53: 48395 | D53: 41470 | E53: 36560 | F53: 31974 | G53: 23075 | H53: 19705
A54: 66 | C54: 52509 | D54: 45655 | E54: 40118 | F54: 35446 | G54: 25315 | H54: 21618
A55: 67 | C55: 57502 | D55: 50842 | E55: 44383 | F55: 39314 | G55: 27691 | H55: 23648
A56: 68 | C56: 62996 | D56: 56603 | E56: 49048 | F56: 42882 | G56: 30207 | H56: 25793
A57: 69 | C57: 68615 | D57: 62507 | E57: 53816 | F57: 46637 | G57: 32850 | H57: 28052
A58: 70 | C58: 73984 | D58: 68124 | E58: 58382 | F58: 50578 | G58: 35624 | H58: 30421
A59: 71 | C59: 79102 | D59: 73455 | E59: 62746 | F59: 54710 | G59: 38538 | H59: 32908
A60: 72 | C60: 84218 | D60: 78786 | E60: 67110 | F60: 59032 | G60: 41578 | H60: 35505
A61: 73 | C61: 89336 | D61: 84116 | E61: 71474 | F61: 63545 | G61: 44762 | H61: 38222
A62: 74 | C62: 94454 | D62: 89448 | E62: 75839 | F62: 68247 | G62: 48073 | H62: 41049
A63: 75 | C63: 99487 | D63: 94692 | E63: 80117 | F63: 73136 | G63: 51513 | H63: 43989
A64: 76 | C64: 99487 | D64: 94692 | E64: 80117 | F64: 73136 | G64: 51513 | H64: 43989
A65: 77 | C65: 99487 | D65: 94692 | E65: 80117 | F65: 73136 | G65: 51513 | H65: 43989
A66: 78 | C66: 99487 | D66: 94692 | E66: 80117 | F66: 73136 | G66: 51513 | H66: 43989
A67: 79 | C67: 99487 | D67: 94692 | E67: 80117 | F67: 73136 | G67: 51513 | H67: 43989
A68: 80 | C68: 99487 | D68: 94692 | E68: 80117 | F68: 73136 | G68: 51513 | H68: 43989
A69: 81 | C69: 99487 | D69: 94692 | E69: 80117 | F69: 73136 | G69: 51513 | H69: 43989
A70: 82 | C70: 99487 | D70: 94692 | E70: 80117 | F70: 73136 | G70: 51513 | H70: 43989
A71: 83 | C71: 99487 | D71: 94692 | E71: 80117 | F71: 73136 | G71: 51513 | H71: 43989
A72: 84 | B72: o más | C72: 99487 | D72: 94692 | E72: 80117 | F72: 73136 | G72: 51513 | H72: 43989
A73: 1 | B73: Hijo | C73: 3295 | D73: 2199 | E73: 1595 | F73: 1454 | G73: 1777 | H73: 1493
A74: 2 | B74: Hijos | C74: 6001 | D74: 3864 | E74: 3005 | F74: 2839 | G74: 3095 | H74: 2600
A75: 3 | B75: Hijos o más | C75: 8684 | D75: 5469 | E75: 4389 | F75: 4073 | G75: 4419 | H75: 3638
A77: BUPA GLOBAL PREMIER
A78: TARIFAS ANUALES
A80: EDAD | C80: 250 | D80: 2000 | E80: 5000 | F80: 10000 | G80: 20000
A81: 18 | C81: 9421 | D81: 7355 | E81: 5267 | F81: 4209 | G81: 3101
A82: 19 | C82: 9421 | D82: 7355 | E82: 5267 | F82: 4209 | G82: 3101
A83: 20 | C83: 9421 | D83: 7355 | E83: 5267 | F83: 4209 | G83: 3101
A84: 21 | C84: 9421 | D84: 7355 | E84: 5267 | F84: 4209 | G84: 3101
A85: 22 | C85: 9421 | D85: 7355 | E85: 5267 | F85: 4209 | G85: 3101
A86: 23 | C86: 9421 | D86: 7355 | E86: 5267 | F86: 4209 | G86: 3101
A87: 24 | C87: 9421 | D87: 7355 | E87: 5267 | F87: 4209 | G87: 3101
A88: 25 | C88: 10067 | D88: 8100 | E88: 5503 | F88: 4296 | G88: 3489
A89: 26 | C89: 10067 | D89: 8100 | E89: 5503 | F89: 4296 | G89: 3489
A90: 27 | C90: 10067 | D90: 8100 | E90: 5503 | F90: 4296 | G90: 3489
A91: 28 | C91: 10067 | D91: 8100 | E91: 5503 | F91: 4296 | G91: 3489
A92: 29 | C92: 10067 | D92: 8100 | E92: 5503 | F92: 4296 | G92: 3489
A93: 30 | C93: 11196 | D93: 9427 | E93: 7008 | F93: 4880 | G93: 3828
A94: 31 | C94: 11196 | D94: 9427 | E94: 7008 | F94: 4880 | G94: 3828
A95: 32 | C95: 11196 | D95: 9427 | E95: 7008 | F95: 4880 | G95: 3828
A96: 33 | C96: 11196 | D96: 9427 | E96: 7008 | F96: 4880 | G96: 3828
A97: 34 | C97: 11196 | D97: 9427 | E97: 7008 | F97: 4880 | G97: 3828
A98: 35 | C98: 12496 | D98: 11041 | E98: 7911 | F98: 5395 | G98: 4232
A99: 36 | C99: 12496 | D99: 11041 | E99: 7911 | F99: 5395 | G99: 4232
A100: 37 | C100: 12496 | D100: 11041 | E100: 7911 | F100: 5395 | G100: 4232
A101: 38 | C101: 12496 | D101: 11041 | E101: 7911 | F101: 5395 | G101: 4232
A102: 39 | C102: 12496 | D102: 11041 | E102: 7911 | F102: 5395 | G102: 4232
A103: 40 | C103: 13999 | D103: 12335 | E103: 8816 | F103: 5997 | G103: 4704
A104: 41 | C104: 13999 | D104: 12335 | E104: 8816 | F104: 5997 | G104: 4704
A105: 42 | C105: 13999 | D105: 12335 | E105: 8816 | F105: 5997 | G105: 4704
A106: 43 | C106: 13999 | D106: 12335 | E106: 8816 | F106: 5997 | G106: 4704
A107: 44 | C107: 13999 | D107: 12335 | E107: 8816 | F107: 5997 | G107: 4704
A108: 45 | C108: 15665 | D108: 13437 | E108: 9875 | F108: 6673 | G108: 5236
A109: 46 | C109: 15665 | D109: 13437 | E109: 9875 | F109: 6673 | G109: 5236
A110: 47 | C110: 15665 | D110: 13437 | E110: 9875 | F110: 6673 | G110: 5236
A111: 48 | C111: 15665 | D111: 13437 | E111: 9875 | F111: 6673 | G111: 5236
A112: 49 | C112: 15665 | D112: 13437 | E112: 9875 | F112: 6673 | G112: 5236
A113: 50 | C113: 17544 | D113: 14193 | E113: 11016 | F113: 7445 | G113: 5842
A114: 51 | C114: 17544 | D114: 14193 | E114: 11016 | F114: 7445 | G114: 5842
A115: 52 | C115: 17544 | D115: 14193 | E115: 11016 | F115: 7445 | G115: 5842
A116: 53 | C116: 17544 | D116: 14193 | E116: 11016 | F116: 7445 | G116: 5842
A117: 54 | C117: 17544 | D117: 14193 | E117: 11016 | F117: 7445 | G117: 5842
A118: 55 | C118: 19620 | D118: 16564 | E118: 12284 | F118: 8298 | G118: 6512
A119: 56 | C119: 19620 | D119: 16564 | E119: 12284 | F119: 8298 | G119: 6512
A120: 57 | C120: 19620 | D120: 16564 | E120: 12284 | F120: 8298 | G120: 6512
A121: 58 | C121: 19620 | D121: 16564 | E121: 12284 | F121: 8298 | G121: 6512
A122: 59 | C122: 19620 | D122: 16564 | E122: 12284 | F122: 8298 | G122: 6512
A123: 60 | C123: 20992 | D123: 18547 | E123: 13131 | F123: 8874 | G123: 6963
A124: 61 | C124: 23391 | D124: 20669 | E124: 14615 | F124: 9878 | G124: 7748
A125: 62 | C125: 25990 | D125: 22962 | E125: 16231 | F125: 10965 | G125: 8602
A126: 63 | C126: 28781 | D126: 25267 | E126: 17976 | F126: 12144 | G126: 9527
A127: 64 | C127: 31771 | D127: 26811 | E127: 19849 | F127: 13409 | G127: 10520
A128: 65 | C128: 34780 | D128: 28718 | E128: 21855 | F128: 14765 | G128: 11586
A129: 66 | C129: 37251 | D129: 31101 | E129: 23983 | F129: 16206 | G129: 12717
A130: 67 | C130: 40166 | D130: 33881 | E130: 26246 | F130: 17733 | G130: 13912
A131: 68 | C131: 43334 | D131: 36887 | E131: 28640 | F131: 19351 | G131: 15181
A132: 69 | C132: 46566 | D132: 39949 | E132: 31157 | F132: 21051 | G132: 16515
A133: 70 | C133: 49671 | D133: 42898 | E133: 33810 | F133: 22842 | G133: 17917
A134: 71 | C134: 52650 | D134: 45735 | E134: 36590 | F134: 24721 | G134: 19394
A135: 72 | C135: 55627 | D135: 48571 | E135: 39500 | F135: 26689 | G135: 20939
A136: 73 | C136: 58606 | D136: 51407 | E136: 42539 | F136: 28741 | G136: 22548
A137: 74 | C137: 61583 | D137: 54243 | E137: 44992 | F137: 30882 | G137: 24227
A138: 75 | C138: 64477 | D138: 56996 | E138: 47334 | F138: 33112 | G138: 25975
A139: 76 | C139: 64477 | D139: 56996 | E139: 47334 | F139: 33112 | G139: 25975
A140: 77 | C140: 64477 | D140: 56996 | E140: 47334 | F140: 33112 | G140: 25975
A141: 78 | C141: 64477 | D141: 56996 | E141: 47334 | F141: 33112 | G141: 25975
A142: 79 | C142: 64477 | D142: 56996 | E142: 47334 | F142: 33112 | G142: 25975
A143: 80 | C143: 64477 | D143: 56996 | E143: 47334 | F143: 33112 | G143: 25975
A144: 81 | C144: 64477 | D144: 56996 | E144: 47334 | F144: 33112 | G144: 25975
A145: 82 | C145: 64477 | D145: 56996 | E145: 47334 | F145: 33112 | G145: 25975
A146: 83 | C146: 64477 | D146: 56996 | E146: 47334 | F146: 33112 | G146: 25975
A147: 84 | B147: o más | C147: 64477 | D147: 56996 | E147: 47334 | F147: 33112 | G147: 25975
A148: 1 | B148: Hijo | C148: 977 | D148: 922 | E148: 713 | F148: 713 | G148: 644
A149: 2 | B149: Hijos | C149: 1922 | D149: 1816 | E149: 1380 | F149: 1294 | G149: 1229
A150: 3 | B150: Hijos o más | C150: 2840 | D150: 2684 | E150: 2040 | F150: 1855 | G150: 1777
A152: BUPA GLOBAL SELECT
A153: TARIFAS ANUALES
A155: EDAD | C155: 250 | D155: 2000 | E155: 5000 | F155: 10000 | G155: 20000
A156: 18 | C156: 5858 | D156: 4311 | E156: 3938 | F156: 2523 | G156: 2191
A157: 19 | C157: 5858 | D157: 4311 | E157: 3938 | F157: 2523 | G157: 2191
A158: 20 | C158: 5858 | D158: 4311 | E158: 3938 | F158: 2523 | G158: 2191
A159: 21 | C159: 5858 | D159: 4311 | E159: 3938 | F159: 2523 | G159: 2191
A160: 22 | C160: 5858 | D160: 4311 | E160: 3938 | F160: 2523 | G160: 2191
A161: 23 | C161: 5858 | D161: 4311 | E161: 3938 | F161: 2523 | G161: 2191
A162: 24 | C162: 5858 | D162: 4311 | E162: 3938 | F162: 2523 | G162: 2191
A163: 25 | C163: 6360 | D163: 5458 | E163: 4264 | F163: 2974 | G163: 2334
A164: 26 | C164: 6360 | D164: 5458 | E164: 4264 | F164: 2974 | G164: 2334
A165: 27 | C165: 6360 | D165: 5458 | E165: 4264 | F165: 2974 | G165: 2334
A166: 28 | C166: 6360 | D166: 5458 | E166: 4264 | F166: 2974 | G166: 2334
A167: 29 | C167: 6360 | D167: 5458 | E167: 4264 | F167: 2974 | G167: 2334
A168: 30 | C168: 7175 | D168: 6991 | E168: 4899 | F168: 3307 | G168: 2596
A169: 31 | C169: 7175 | D169: 6991 | E169: 4899 | F169: 3307 | G169: 2596
A170: 32 | C170: 7175 | D170: 6991 | E170: 4899 | F170: 3307 | G170: 2596
A171: 33 | C171: 7175 | D171: 6991 | E171: 4899 | F171: 3307 | G171: 2596
A172: 34 | C172: 7175 | D172: 6991 | E172: 4899 | F172: 3307 | G172: 2596
A173: 35 | C173: 8122 | D173: 7930 | E173: 5485 | F173: 3704 | G173: 2906
A174: 36 | C174: 8122 | D174: 7930 | E174: 5485 | F174: 3704 | G174: 2906
A175: 37 | C175: 8122 | D175: 7930 | E175: 5485 | F175: 3704 | G175: 2906
A176: 38 | C176: 8122 | D176: 7930 | E176: 5485 | F176: 3704 | G176: 2906
A177: 39 | C177: 8122 | D177: 7930 | E177: 5485 | F177: 3704 | G177: 2906
A178: 40 | C178: 9212 | D178: 8835 | E178: 6174 | F178: 4166 | G178: 3269
A179: 41 | C179: 9212 | D179: 8835 | E179: 6174 | F179: 4166 | G179: 3269
A180: 42 | C180: 9212 | D180: 8835 | E180: 6174 | F180: 4166 | G180: 3269
A181: 43 | C181: 9212 | D181: 8835 | E181: 6174 | F181: 4166 | G181: 3269
A182: 44 | C182: 9212 | D182: 8835 | E182: 6174 | F182: 4166 | G182: 3269
A183: 45 | C183: 10425 | D183: 9630 | E183: 6688 | F183: 4691 | G183: 3682
A184: 46 | C184: 10425 | D184: 9630 | E184: 6688 | F184: 4691 | G184: 3682
A185: 47 | C185: 10425 | D185: 9630 | E185: 6688 | F185: 4691 | G185: 3682
A186: 48 | C186: 10425 | D186: 9630 | E186: 6688 | F186: 4691 | G186: 3682
A187: 49 | C187: 10425 | D187: 9630 | E187: 6688 | F187: 4691 | G187: 3682
A188: 50 | C188: 11796 | D188: 10675 | E188: 7277 | F188: 5286 | G188: 4147
A189: 51 | C189: 11796 | D189: 10675 | E189: 7277 | F189: 5286 | G189: 4147
A190: 52 | C190: 11796 | D190: 10675 | E190: 7277 | F190: 5286 | G190: 4147
A191: 53 | C191: 11796 | D191: 10675 | E191: 7277 | F191: 5286 | G191: 4147
A192: 54 | C192: 11796 | D192: 10675 | E192: 7277 | F192: 5286 | G192: 4147
A193: 55 | C193: 13306 | D193: 12991 | E193: 8812 | F193: 5944 | G193: 4667
A194: 56 | C194: 13306 | D194: 12991 | E194: 8812 | F194: 5944 | G194: 4667
A195: 57 | C195: 13306 | D195: 12991 | E195: 8812 | F195: 5944 | G195: 4667
A196: 58 | C196: 13306 | D196: 12991 | E196: 8812 | F196: 5944 | G196: 4667
A197: 59 | C197: 13306 | D197: 12991 | E197: 8812 | F197: 5944 | G197: 4667
A198: 60 | C198: 14312 | D198: 13975 | E198: 9468 | F198: 6387 | G198: 5012
A199: 61 | C199: 16066 | D199: 15689 | E199: 10619 | F199: 7167 | G199: 5622
A200: 62 | C200: 17965 | D200: 17545 | E200: 11869 | F200: 8006 | G200: 6283
A201: 63 | C201: 20005 | D201: 19537 | E201: 13222 | F201: 8922 | G201: 7001
A202: 64 | C202: 22194 | D202: 21672 | E202: 14673 | F202: 9900 | G202: 7763
A203: 65 | C203: 24528 | D203: 23949 | E203: 16225 | F203: 10946 | G203: 8587
A204: 66 | C204: 27003 | D204: 26232 | E204: 17881 | F204: 12063 | G204: 9466
A205: 67 | C205: 29624 | D205: 28461 | E205: 19633 | F205: 13246 | G205: 10391
A206: 68 | C206: 32388 | D206: 30837 | E206: 21489 | F206: 14498 | G206: 11376
... 92 more rows
